Merchandising Type Category,Detailed Merchant Category,Supplier,Purchase Details,Transaction Date,Value,Department,
Professional Services,Professional Services - Def,Protect International,Supplies and Services related expenditure,19/10/2023,10300,Director of Children's Services and Education,
Business To Business Eqpt/Furn,Commercial Equipment - Default,Cleveland Containers,Supplies and Services related expenditure,23/11/2023,5945,"Director of Housing, Neighbourhood and Building Services",
Transportation Conveyor,Travel Agencies,Bkg*hotel At Booking.C,Supplies and Services related expenditure,18/12/2023,5764.78,Solent LEP,
Miscellaneous,Member Organizations - Def,Institute Of Directors,Supplies and Services related expenditure,11/10/2023,5694,Solent LEP,
Government Service,Govt Serv - Default,Iscc2g8k98270c Ukvi,Employees related expenditure,31/10/2023,5000,"Director of Housing, Neighbourhood and Building Services",
Business To Business Eqpt/Furn,Computers/Peripherals/Software,Insight Uk,Supplies and Services related expenditure,10/11/2023,4798,Director of Corporate Services,
Other Supplies,Misc Speciality Retail,W&p / Medirite,Supplies and Services related expenditure,06/12/2023,4725.5,"Director of Housing, Neighbourhood and Building Services",
Transportation Conveyor,Travel Agencies,Bkg*hotel At Booking.C,Agency and Third Party Payments related expenditure,21/11/2023,3831.67,"Director of Housing, Neighbourhood and Building Services",
Miscellaneous,Charitable/Soc Service Orgs,London Hearts,Supplies and Services related expenditure,05/12/2023,3750,Director of Portsmouth International Port,
Business To Business Eqpt/Furn,Stationery/Office Supplies,Www.Banneruk.Com,Supplies and Services related expenditure,04/12/2023,3224.1,Director of Corporate Services,
Government Service,Schools - Default,2 Start Limited,Employees related expenditure,18/12/2023,3208.33,"Director of Housing, Neighbourhood and Building Services",
Government Service,Schools - Default,Alistair Bromhead Ltd,Employees related expenditure,30/10/2023,3175,"Director of Housing, Neighbourhood and Building Services",
Transportation Conveyor,Travel Agencies,Bkg*hotel At Booking.C,Agency and Third Party Payments related expenditure,24/11/2023,3121.4,"Director of Housing, Neighbourhood and Building Services",
Business To Business Eqpt/Furn,Stationery/Office Supplies,Www.Banneruk.Com,Supplies and Services related expenditure,27/10/2023,2995.2,Director of Corporate Services,
Government Service,Govt Serv - Default,29aa040968512 Ltr Fami,Supplies and Services related expenditure,18/10/2023,2885,Director of Children's Services and Education,
Business To Business Eqpt/Furn,Computers/Peripherals/Software,Insight Uk,Supplies and Services related expenditure,03/10/2023,2699,Director of Corporate Services,
Transportation Conveyor,Travel Agencies,Bkg*hotel At Booking.C,Agency and Third Party Payments related expenditure,06/12/2023,2650,"Director of Housing, Neighbourhood and Building Services",
Transportation Conveyor,Travel Agencies,Bkg*hotel At Booking.C,Agency and Third Party Payments related expenditure,03/11/2023,2635.83,"Director of Housing, Neighbourhood and Building Services",
Medical,Med/Health Services - Def,Zettle_*mobility Servi,Supplies and Services related expenditure,27/11/2023,2580,"Director of Culture, Leisure & Regulatory Services",
Transportation Conveyor,Travel Agencies,Bkg*hotel At Booking.C,Agency and Third Party Payments related expenditure,22/11/2023,2576.47,"Director of Housing, Neighbourhood and Building Services",
Transportation Conveyor,Travel Agencies,Bkg*hotel At Booking.C,Agency and Third Party Payments related expenditure,08/11/2023,2504.83,"Director of Housing, Neighbourhood and Building Services",
Transportation Conveyor,Travel Agencies,Bkg*hotel At Booking.C,Agency and Third Party Payments related expenditure,22/11/2023,2495.83,"Director of Housing, Neighbourhood and Building Services",
Facilities/Repair Services,Heating,Active Pump Services Limi,Premises related expenditure,06/12/2023,2478,"Director of Culture, Leisure & Regulatory Services",
Hotels And Motels,Lodging/Hotels/Motels/Resorts,Portsmouth Inns,Agency and Third Party Payments related expenditure,30/10/2023,2450,"Director of Housing, Neighbourhood and Building Services",
Hotels And Motels,Travelodge,Travelodge Gb0000,Agency and Third Party Payments related expenditure,17/10/2023,2406.6,"Director of Housing, Neighbourhood and Building Services",
Facilities/Repair Supplies,Lawn/Garden Supply/Nursery,Carters Of Swanwic,Supplies and Services related expenditure,14/11/2023,2355,"Director of Housing, Neighbourhood and Building Services",
Transportation Conveyor,Travel Agencies,Expedia Expedia 726994669,Agency and Third Party Payments related expenditure,22/11/2023,2342.59,"Director of Housing, Neighbourhood and Building Services",
Transportation Conveyor,Travel Agencies,Expedia 72695397963283,Agency and Third Party Payments related expenditure,15/11/2023,2269.25,"Director of Housing, Neighbourhood and Building Services",
Transportation Conveyor,Travel Agencies,Expedia Expedia 726954358,Agency and Third Party Payments related expenditure,15/11/2023,2240.06,"Director of Housing, Neighbourhood and Building Services",
Utility,Utilities/Elec/Gas/H2O/Sani,E.On Next,Agency and Third Party Payments related expenditure,12/12/2023,2134.33,"Director of Housing, Neighbourhood and Building Services",
Transportation Conveyor,Travel Agencies,Bkg*hotel At Booking.C,Agency and Third Party Payments related expenditure,08/12/2023,2128.33,"Director of Housing, Neighbourhood and Building Services",
Transportation Conveyor,Travel Agencies,Bkg*hotel At Booking.C,Agency and Third Party Payments related expenditure,23/11/2023,2112.27,"Director of Housing, Neighbourhood and Building Services",
Hotels And Motels,Travelodge,Travelodge Gb0000,Agency and Third Party Payments related expenditure,18/10/2023,2097.53,"Director of Housing, Neighbourhood and Building Services",
Airlines,Emirates Airlines,Emirates,Supplies and Services related expenditure,14/11/2023,2076.67,Director of Adult Care,
Hotels And Motels,Premier Travel Inns,Premier Inn,Agency and Third Party Payments related expenditure,30/11/2023,2052.03,"Director of Housing, Neighbourhood and Building Services",
Hotels And Motels,Lodging/Hotels/Motels/Resorts,Zettle_*expedius Prope,Supplies and Services related expenditure,03/11/2023,2050,Director of Children's Services and Education,
Facilities/Repair Services,Spec Contractors - Default,Broxap,Premises related expenditure,19/10/2023,2030,"Director of Culture, Leisure & Regulatory Services",
Transportation Conveyor,Travel Agencies,Expedia 72671948644471,Agency and Third Party Payments related expenditure,06/10/2023,2023.36,"Director of Housing, Neighbourhood and Building Services",
Professional Services,Real Estate Agents And Managers,Ptk Portsmouth,Agency and Third Party Payments related expenditure,02/10/2023,2000,"Director of Housing, Neighbourhood and Building Services",
Professional Services,Real Estate Agents And Managers,Ptk Portsmouth,Agency and Third Party Payments related expenditure,14/12/2023,2000,"Director of Housing, Neighbourhood and Building Services",
Professional Services,Real Estate Agents And Managers,Ptk Portsmouth,Agency and Third Party Payments related expenditure,14/12/2023,2000,"Director of Housing, Neighbourhood and Building Services",
Other Supplies,Misc Speciality Retail,W&p / Medirite,Premises related expenditure,13/11/2023,1998.49,"Director of Housing, Neighbourhood and Building Services",
Hotels And Motels,Lodging/Hotels/Motels/Resorts,Horseshoe Apartments,Agency and Third Party Payments related expenditure,12/12/2023,1995,"Director of Housing, Neighbourhood and Building Services",
Type of Retail Store,Electronics Sales,Lambdatek,Supplies and Services related expenditure,01/11/2023,1978.33,Director of Corporate Services,
Transportation Conveyor,Travel Agencies,Bkg*hotel At Booking.C,Agency and Third Party Payments related expenditure,06/12/2023,1960.83,"Director of Housing, Neighbourhood and Building Services",
Transportation Conveyor,Travel Agencies,Bkg*hotel At Booking.C,Agency and Third Party Payments related expenditure,13/12/2023,1952.5,"Director of Housing, Neighbourhood and Building Services",
Transportation Conveyor,Travel Agencies,Bkg*hotel At Booking.C,Agency and Third Party Payments related expenditure,03/10/2023,1898.57,"Director of Housing, Neighbourhood and Building Services",
Transportation Conveyor,Travel Agencies,Bkg*hotel At Booking.C,Agency and Third Party Payments related expenditure,01/12/2023,1893.93,"Director of Housing, Neighbourhood and Building Services",
Hotels And Motels,Premier Travel Inns,Premier Inn,Agency and Third Party Payments related expenditure,12/12/2023,1893.7,"Director of Housing, Neighbourhood and Building Services",
Hotels And Motels,Premier Travel Inns,Premier Inn,Agency and Third Party Payments related expenditure,05/12/2023,1879.53,"Director of Housing, Neighbourhood and Building Services",
Transportation Conveyor,Travel Agencies,Bkg*hotel At Booking.C,Agency and Third Party Payments related expenditure,22/11/2023,1858.33,"Director of Housing, Neighbourhood and Building Services",
Transportation Conveyor,Travel Agencies,Bkg*hotel At Booking.C,Agency and Third Party Payments related expenditure,08/12/2023,1848.33,"Director of Housing, Neighbourhood and Building Services",
Utility,Utilities/Elec/Gas/H2O/Sani,E.On Next,Agency and Third Party Payments related expenditure,12/12/2023,1845.08,"Director of Housing, Neighbourhood and Building Services",
Hotels And Motels,Lodging/Hotels/Motels/Resorts,Comfort Inn Hotel Arun,Agency and Third Party Payments related expenditure,26/10/2023,1834.17,"Director of Housing, Neighbourhood and Building Services",
Hotels And Motels,Travelodge,Travelodge Gb0000,Agency and Third Party Payments related expenditure,17/10/2023,1783.23,"Director of Housing, Neighbourhood and Building Services",
Transportation Conveyor,Travel Agencies,Bkg*hotel At Booking.C,Agency and Third Party Payments related expenditure,17/11/2023,1775.83,"Director of Housing, Neighbourhood and Building Services",
Miscellaneous,Charitable/Soc Service Orgs,Rtpi,Supplies and Services related expenditure,20/11/2023,1770,Director of Regeneration,
Hotels And Motels,Travelodge,Travelodge Gb0000,Agency and Third Party Payments related expenditure,26/10/2023,1760.43,"Director of Housing, Neighbourhood and Building Services",
Government Service,Schools - Default,2u Getsmarter (US) Llc,Employees related expenditure,28/11/2023,1760,Director of Regeneration,
Transportation Conveyor,Travel Agencies,Bkg*hotel At Booking.C,Agency and Third Party Payments related expenditure,15/11/2023,1759.17,"Director of Housing, Neighbourhood and Building Services",
Transportation Conveyor,Travel Agencies,Bkg*hotel At Booking.C,Agency and Third Party Payments related expenditure,15/11/2023,1759.17,"Director of Housing, Neighbourhood and Building Services",
Transportation Conveyor,Travel Agencies,Bkg*hotel At Booking.C,Agency and Third Party Payments related expenditure,15/11/2023,1759.17,"Director of Housing, Neighbourhood and Building Services",
Transportation Conveyor,Travel Agencies,Bkg*hotel At Booking.C,Agency and Third Party Payments related expenditure,20/11/2023,1753.06,"Director of Housing, Neighbourhood and Building Services",
Hotels And Motels,Travelodge,Travelodge Gb0000,Agency and Third Party Payments related expenditure,31/10/2023,-1747.72,"Director of Housing, Neighbourhood and Building Services",
Transportation Conveyor,Travel Agencies,Bkg*hotel At Booking.C,Agency and Third Party Payments related expenditure,11/10/2023,1742.5,"Director of Housing, Neighbourhood and Building Services",
Transportation Conveyor,Travel Agencies,Bkg*hotel At Booking.C,Agency and Third Party Payments related expenditure,24/10/2023,1740.83,"Director of Housing, Neighbourhood and Building Services",
Hotels And Motels,Lodging/Hotels/Motels/Resorts,Comfort Inn Hotel Arun,Agency and Third Party Payments related expenditure,16/11/2023,1724.46,"Director of Housing, Neighbourhood and Building Services",
Transportation Conveyor,Travel Agencies,Expedia Expedia 727116075,Agency and Third Party Payments related expenditure,11/12/2023,1722.61,"Director of Housing, Neighbourhood and Building Services",
Business To Business Eqpt/Furn,Durable Goods - Default,Survitec.Com,Premises related expenditure,27/11/2023,1696.8,"Director of Culture, Leisure & Regulatory Services",
Utility,Utilities/Elec/Gas/H2O/Sani,Biffa Waste Services Limi,Supplies and Services related expenditure,26/10/2023,1689.4,"Director of Housing, Neighbourhood and Building Services",
Transportation Conveyor,Travel Agencies,Expedia 72709116087625,Agency and Third Party Payments related expenditure,07/12/2023,1678.59,"Director of Housing, Neighbourhood and Building Services",
Transportation Conveyor,Travel Agencies,Bkg*hotel At Booking.C,Agency and Third Party Payments related expenditure,03/10/2023,1675.83,"Director of Housing, Neighbourhood and Building Services",
Transportation Conveyor,Travel Agencies,Bkg*hotel At Booking.C,Agency and Third Party Payments related expenditure,23/11/2023,1675.83,"Director of Housing, Neighbourhood and Building Services",
Professional Services,Real Estate Agents And Managers,Ptk Portsmouth,Agency and Third Party Payments related expenditure,16/10/2023,1666.67,"Director of Housing, Neighbourhood and Building Services",
Professional Services,Real Estate Agents And Managers,Ptk Portsmouth,Agency and Third Party Payments related expenditure,26/10/2023,1666.67,"Director of Housing, Neighbourhood and Building Services",
Professional Services,Real Estate Agents And Managers,Ptk Portsmouth,Agency and Third Party Payments related expenditure,14/11/2023,1666.67,"Director of Housing, Neighbourhood and Building Services",
Professional Services,Real Estate Agents And Managers,Ptk Portsmouth,Agency and Third Party Payments related expenditure,27/11/2023,1666.67,"Director of Housing, Neighbourhood and Building Services",
Transportation Conveyor,Travel Agencies,Bkg*hotel At Booking.C,Agency and Third Party Payments related expenditure,06/12/2023,1661.43,"Director of Housing, Neighbourhood and Building Services",
Miscellaneous,Member Organizations - Def,Www.Cipfa.Org.Uk/pfmco,Supplies and Services related expenditure,17/10/2023,1645,Director of Regeneration,
Transportation Conveyor,Travel Agencies,Expedia Expedia 727090814,Agency and Third Party Payments related expenditure,07/12/2023,1640.79,"Director of Housing, Neighbourhood and Building Services",
Business To Business Eqpt/Furn,Commercial Equipment - Default,Evac+chair International,Supplies and Services related expenditure,12/10/2023,1634,Director of Regeneration,
Transportation Conveyor,Travel Agencies,Expedia Expedia 727091220,Agency and Third Party Payments related expenditure,07/12/2023,1633.25,"Director of Housing, Neighbourhood and Building Services",
Transportation Conveyor,Travel Agencies,Bkg*hotel At Booking.C,Agency and Third Party Payments related expenditure,08/11/2023,1631.62,"Director of Housing, Neighbourhood and Building Services",
Transportation Conveyor,Travel Agencies,Bkg*hotel At Booking.C,Agency and Third Party Payments related expenditure,06/12/2023,1622.5,"Director of Housing, Neighbourhood and Building Services",
Transportation Conveyor,Travel Agencies,Bkg*hotel At Booking.C,Agency and Third Party Payments related expenditure,25/10/2023,1620.83,"Director of Housing, Neighbourhood and Building Services",
Transportation Conveyor,Travel Agencies,Bkg*hotel At Booking.C,Agency and Third Party Payments related expenditure,25/10/2023,1620.83,"Director of Housing, Neighbourhood and Building Services",
Transportation Conveyor,Travel Agencies,Bkg*hotel At Booking.C,Agency and Third Party Payments related expenditure,25/10/2023,1620.83,"Director of Housing, Neighbourhood and Building Services",
Transportation Conveyor,Travel Agencies,Bkg*hotel At Booking.C,Agency and Third Party Payments related expenditure,25/10/2023,1620.83,"Director of Housing, Neighbourhood and Building Services",
Transportation Conveyor,Travel Agencies,Expedia Expedia 727117274,Agency and Third Party Payments related expenditure,11/12/2023,1619.16,"Director of Housing, Neighbourhood and Building Services",
Transportation Conveyor,Travel Agencies,Expedia Expedia 726989552,Agency and Third Party Payments related expenditure,21/11/2023,1612.57,"Director of Housing, Neighbourhood and Building Services",
Transportation Conveyor,Travel Agencies,Bkg*hotel At Booking.C,Agency and Third Party Payments related expenditure,08/11/2023,1609.17,"Director of Housing, Neighbourhood and Building Services",
Transportation Conveyor,Travel Agencies,Bkg*hotel At Booking.C,Agency and Third Party Payments related expenditure,11/12/2023,1604.77,"Director of Housing, Neighbourhood and Building Services",
Transportation Conveyor,Travel Agencies,Bkg*hotel At Booking.C,Agency and Third Party Payments related expenditure,13/11/2023,1602.5,"Director of Housing, Neighbourhood and Building Services",
Transportation Conveyor,Travel Agencies,Bkg*hotel At Booking.C,Agency and Third Party Payments related expenditure,13/11/2023,1602.5,"Director of Housing, Neighbourhood and Building Services",
Transportation Conveyor,Travel Agencies,Bkg*hotel At Booking.C,Agency and Third Party Payments related expenditure,13/11/2023,1602.5,"Director of Housing, Neighbourhood and Building Services",
Hotels And Motels,Travelodge,Travelodge Gb0000,Agency and Third Party Payments related expenditure,27/10/2023,1594.27,"Director of Housing, Neighbourhood and Building Services",
Facilities Maintenance,Clean/Maint/Janitoral Serv,Hooper Services Limited,Supplies and Services related expenditure,10/11/2023,1586.7,"Director of Housing, Neighbourhood and Building Services",
Transportation Conveyor,Travel Agencies,Bkg*hotel At Booking.C,Supplies and Services related expenditure,15/11/2023,1584.74,Director of Regeneration,
Transportation Conveyor,Travel Agencies,Bkg*hotel At Booking.C,Agency and Third Party Payments related expenditure,10/11/2023,1583.65,"Director of Housing, Neighbourhood and Building Services",
Hotels And Motels,Premier Travel Inns,Premier Inn,Agency and Third Party Payments related expenditure,08/12/2023,1582.27,"Director of Housing, Neighbourhood and Building Services",
Transportation Conveyor,Travel Agencies,Bkg*hotel At Booking.C,Agency and Third Party Payments related expenditure,01/11/2023,1580.17,"Director of Housing, Neighbourhood and Building Services",
Transportation Conveyor,Travel Agencies,Bkg*hotel At Booking.C,Agency and Third Party Payments related expenditure,30/11/2023,1577.16,"Director of Housing, Neighbourhood and Building Services",
Transportation Conveyor,Travel Agencies,Bkg*hotel At Booking.C,Agency and Third Party Payments related expenditure,01/12/2023,1577.16,"Director of Housing, Neighbourhood and Building Services",
Transportation Conveyor,Travel Agencies,Bkg*hotel At Booking.C,Employees related expenditure,31/10/2023,1575,"Director of Housing, Neighbourhood and Building Services",
Transportation Conveyor,Travel Agencies,Bkg*hotel At Booking.C,Agency and Third Party Payments related expenditure,23/11/2023,1574.17,"Director of Housing, Neighbourhood and Building Services",
Transportation Conveyor,Travel Agencies,Expedia 72696023565626,Agency and Third Party Payments related expenditure,16/11/2023,1565.07,"Director of Housing, Neighbourhood and Building Services",
Transportation Conveyor,Travel Agencies,Bkg*hotel At Booking.C,Agency and Third Party Payments related expenditure,08/11/2023,1554.17,"Director of Housing, Neighbourhood and Building Services",
Hotels And Motels,Travelodge,Travelodge Gb0000,Agency and Third Party Payments related expenditure,08/12/2023,1539.56,"Director of Housing, Neighbourhood and Building Services",
Hotels And Motels,Travelodge,Travelodge Gb0000,Agency and Third Party Payments related expenditure,30/10/2023,1536.47,"Director of Housing, Neighbourhood and Building Services",
Transportation Conveyor,Travel Agencies,Bkg*hotel At Booking.C,Agency and Third Party Payments related expenditure,03/10/2023,1527.08,"Director of Housing, Neighbourhood and Building Services",
Transportation Conveyor,Travel Agencies,Bkg*hotel At Booking.C,Agency and Third Party Payments related expenditure,06/11/2023,1520,"Director of Housing, Neighbourhood and Building Services",
Hotels And Motels,Lodging/Hotels/Motels/Resorts,Comfort Inn Hotel Arun,Agency and Third Party Payments related expenditure,07/12/2023,1509.12,"Director of Housing, Neighbourhood and Building Services",
Amusement/Entertainment,Theatrical Producers,The Kings Theatre R/T,Supplies and Services related expenditure,15/11/2023,1506,Director of Children's Services and Education,
Business To Business Eqpt/Furn,Computer Software Stores,Sp Rose Clover,Supplies and Services related expenditure,19/10/2023,1500,Director of Portsmouth International Port,
Hotels And Motels,Travelodge,Travelodge Gb0000,Agency and Third Party Payments related expenditure,30/10/2023,1499.27,"Director of Housing, Neighbourhood and Building Services",
Transportation Conveyor,Travel Agencies,Bkg*hotel At Booking.C,Agency and Third Party Payments related expenditure,26/10/2023,1493.08,"Director of Housing, Neighbourhood and Building Services",
Transportation Conveyor,Travel Agencies,Bkg*hotel At Booking.C,Agency and Third Party Payments related expenditure,15/11/2023,1491.57,"Director of Housing, Neighbourhood and Building Services",
Transportation Conveyor,Travel Agencies,Bkg*hotel At Booking.C,Agency and Third Party Payments related expenditure,13/11/2023,1487.08,"Director of Housing, Neighbourhood and Building Services",
Business To Business Facility/,Hardware Equipment/Supplies,International Door Contr,Premises related expenditure,11/10/2023,1482.48,"Director of Culture, Leisure & Regulatory Services",
Transportation Conveyor,Travel Agencies,Bkg*hotel At Booking.C,Agency and Third Party Payments related expenditure,06/12/2023,1475.42,"Director of Housing, Neighbourhood and Building Services",
Hotels And Motels,Travelodge,Travelodge Gb0000,Agency and Third Party Payments related expenditure,30/10/2023,1465.22,"Director of Housing, Neighbourhood and Building Services",
Transportation Conveyor,Travel Agencies,Bkg*hotel At Booking.C,Agency and Third Party Payments related expenditure,06/12/2023,1463.33,"Director of Housing, Neighbourhood and Building Services",
Transportation Conveyor,Travel Agencies,Bkg*hotel At Booking.C,Agency and Third Party Payments related expenditure,08/12/2023,1437.89,"Director of Housing, Neighbourhood and Building Services",
Professional Services,Mgmt/Consult/Public Rel Ser,The Safety Box Cic,Employees related expenditure,21/12/2023,1430,"Director of Housing, Neighbourhood and Building Services",
Transportation Conveyor,Travel Agencies,Bkg*hotel At Booking.C,Agency and Third Party Payments related expenditure,15/11/2023,1427.11,"Director of Housing, Neighbourhood and Building Services",
Transportation Conveyor,Travel Agencies,Bkg*hotel At Booking.C,Agency and Third Party Payments related expenditure,08/12/2023,1424.19,"Director of Housing, Neighbourhood and Building Services",
Transportation Conveyor,Travel Agencies,Bkg*hotel At Booking.C,Agency and Third Party Payments related expenditure,11/12/2023,1422.27,"Director of Housing, Neighbourhood and Building Services",
Transportation Conveyor,Travel Agencies,Expedia Expedia 727180745,Agency and Third Party Payments related expenditure,20/12/2023,1409.18,"Director of Housing, Neighbourhood and Building Services",
Transportation Conveyor,Travel Agencies,Expedia Expedia 726919501,Agency and Third Party Payments related expenditure,09/11/2023,1404.23,"Director of Housing, Neighbourhood and Building Services",
Transportation Conveyor,Travel Agencies,Bkg*hotel At Booking.C,Agency and Third Party Payments related expenditure,06/12/2023,1403.92,"Director of Housing, Neighbourhood and Building Services",
Hotels And Motels,Lodging/Hotels/Motels/Resorts,Portsmouth Inns,Agency and Third Party Payments related expenditure,04/11/2023,-1400,"Director of Housing, Neighbourhood and Building Services",
Hotels And Motels,Lodging/Hotels/Motels/Resorts,Sajo Property,Agency and Third Party Payments related expenditure,24/11/2023,1400,"Director of Housing, Neighbourhood and Building Services",
Hotels And Motels,Lodging/Hotels/Motels/Resorts,Sajo Property,Agency and Third Party Payments related expenditure,12/12/2023,1400,"Director of Housing, Neighbourhood and Building Services",
Facilities/Repair Supplies,Lawn/Garden Supply/Nursery,Carters Of Swanwic,Supplies and Services related expenditure,30/11/2023,1398,"Director of Housing, Neighbourhood and Building Services",
Hotels And Motels,Premier Travel Inns,Premier Inn,Agency and Third Party Payments related expenditure,09/10/2023,1392.38,"Director of Housing, Neighbourhood and Building Services",
Hotels And Motels,Travelodge,Travelodge Gb0000,Agency and Third Party Payments related expenditure,04/12/2023,1391.02,"Director of Housing, Neighbourhood and Building Services",
Transportation Conveyor,Travel Agencies,Bkg*hotel At Booking.C,Agency and Third Party Payments related expenditure,06/12/2023,1390,"Director of Housing, Neighbourhood and Building Services",
Transportation Conveyor,Travel Agencies,Bkg*hotel At Booking.C,Agency and Third Party Payments related expenditure,15/11/2023,1389.84,"Director of Housing, Neighbourhood and Building Services",
Transportation Conveyor,Travel Agencies,Bkg*hotel At Booking.C,Agency and Third Party Payments related expenditure,06/12/2023,1385,"Director of Housing, Neighbourhood and Building Services",
Transportation Conveyor,Travel Agencies,Bkg*hotel At Booking.C,Agency and Third Party Payments related expenditure,06/12/2023,1385,"Director of Housing, Neighbourhood and Building Services",
Transportation Conveyor,Taxicabs/Limousines,Aqua Cars,Transport related expenditure,27/11/2023,1380,Director of Children's Services and Education,
Transportation Conveyor,Travel Agencies,Bkg*hotel At Booking.C,Agency and Third Party Payments related expenditure,06/12/2023,1380,"Director of Housing, Neighbourhood and Building Services",
Transportation Conveyor,Travel Agencies,Expedia 72674518852065,Agency and Third Party Payments related expenditure,09/10/2023,1379.03,"Director of Housing, Neighbourhood and Building Services",
Transportation Conveyor,Travel Agencies,Bkg*hotel At Booking.C,Agency and Third Party Payments related expenditure,22/11/2023,1363.33,"Director of Housing, Neighbourhood and Building Services",
Transportation Conveyor,Travel Agencies,Bkg*booking.Com Hotel,Agency and Third Party Payments related expenditure,26/10/2023,1362.43,"Director of Housing, Neighbourhood and Building Services",
Hotels And Motels,Travelodge,Travelodge Gb0000,Agency and Third Party Payments related expenditure,20/10/2023,1361.59,"Director of Housing, Neighbourhood and Building Services",
Hotels And Motels,Premier Travel Inns,Premier Inn,Agency and Third Party Payments related expenditure,04/10/2023,-1355.6,"Director of Housing, Neighbourhood and Building Services",
Amusement/Entertainment,Theatrical Producers,Mayflower Theatre,Supplies and Services related expenditure,06/10/2023,1351.5,Director of Children's Services and Education,
Other Supplies,Misc Speciality Retail,W&p / Medirite,Supplies and Services related expenditure,09/10/2023,1346.58,"Director of Housing, Neighbourhood and Building Services",
Transportation Conveyor,Travel Agencies,Bkg*hotel At Booking.C,Agency and Third Party Payments related expenditure,19/12/2023,1343.79,"Director of Housing, Neighbourhood and Building Services",
Transportation Conveyor,Travel Agencies,Bkg*hotel At Booking.C,Agency and Third Party Payments related expenditure,26/10/2023,1339.58,"Director of Housing, Neighbourhood and Building Services",
Transportation Conveyor,Travel Agencies,Bkg*hotel At Booking.C,Agency and Third Party Payments related expenditure,22/11/2023,1338.33,"Director of Housing, Neighbourhood and Building Services",
Transportation Conveyor,Travel Agencies,Bkg*hotel At Booking.C,Agency and Third Party Payments related expenditure,14/11/2023,1334.58,"Director of Housing, Neighbourhood and Building Services",
Hotels And Motels,Premier Travel Inns,Premier Inn,Agency and Third Party Payments related expenditure,02/10/2023,1330.6,"Director of Housing, Neighbourhood and Building Services",
Hotels And Motels,Lodging/Hotels/Motels/Resorts,Horseshoe Apartments,Agency and Third Party Payments related expenditure,30/11/2023,1330,"Director of Housing, Neighbourhood and Building Services",
Hotels And Motels,Travelodge,Travelodge Gb0000,Agency and Third Party Payments related expenditure,15/11/2023,1328.19,"Director of Housing, Neighbourhood and Building Services",
Other Supplies,Misc Speciality Retail,W&p / Medirite,Premises related expenditure,16/10/2023,1326.02,"Director of Housing, Neighbourhood and Building Services",
Hotels And Motels,Travelodge,Travelodge Gb0000,Agency and Third Party Payments related expenditure,25/10/2023,1324.28,"Director of Housing, Neighbourhood and Building Services",
Hotels And Motels,Travelodge,Travelodge Gb0000,Agency and Third Party Payments related expenditure,25/10/2023,1324.28,"Director of Housing, Neighbourhood and Building Services",
Hotels And Motels,Premier Travel Inns,Premier Inn,Agency and Third Party Payments related expenditure,05/12/2023,1314.88,"Director of Housing, Neighbourhood and Building Services",
Hotels And Motels,Travelodge,Travelodge Gb0000,Agency and Third Party Payments related expenditure,25/10/2023,1313.2,"Director of Housing, Neighbourhood and Building Services",
Transportation Conveyor,Travel Agencies,Expedia Expedia 726704244,Agency and Third Party Payments related expenditure,04/10/2023,1312.52,"Director of Housing, Neighbourhood and Building Services",
Hotels And Motels,Travelodge,Travelodge Gb0000,Supplies and Services related expenditure,18/12/2023,1309.65,Director of Children's Services and Education,
Transportation Conveyor,Travel Agencies,Bkg*hotel At Booking.C,Agency and Third Party Payments related expenditure,09/10/2023,1307.04,"Director of Housing, Neighbourhood and Building Services",
Transportation Conveyor,Travel Agencies,Bkg*hotel At Booking.C,Agency and Third Party Payments related expenditure,16/10/2023,1306.25,"Director of Housing, Neighbourhood and Building Services",
Hotels And Motels,Premier Travel Inns,Premier Inn,Agency and Third Party Payments related expenditure,19/10/2023,-1298.52,"Director of Housing, Neighbourhood and Building Services",
Hotels And Motels,Travelodge,Travelodge Gb0000,Agency and Third Party Payments related expenditure,04/12/2023,1297.31,"Director of Housing, Neighbourhood and Building Services",
Hotels And Motels,Premier Travel Inns,Premier Inn,Agency and Third Party Payments related expenditure,24/11/2023,1292.27,"Director of Housing, Neighbourhood and Building Services",
Transportation Conveyor,Travel Agencies,Bkg*hotel At Booking.C,Agency and Third Party Payments related expenditure,24/11/2023,1290.83,"Director of Housing, Neighbourhood and Building Services",
Transportation Conveyor,Travel Agencies,Bkg*hotel At Booking.C,Agency and Third Party Payments related expenditure,26/10/2023,1289.58,"Director of Housing, Neighbourhood and Building Services",
Transportation Conveyor,Travel Agencies,Bkg*hotel At Booking.C,Agency and Third Party Payments related expenditure,20/10/2023,1289.17,"Director of Housing, Neighbourhood and Building Services",
Transportation Conveyor,Travel Agencies,Bkg*hotel At Booking.C,Agency and Third Party Payments related expenditure,21/11/2023,1289.06,"Director of Housing, Neighbourhood and Building Services",
Hotels And Motels,Travelodge,Travelodge Gb0000,Agency and Third Party Payments related expenditure,17/10/2023,1286.42,"Director of Housing, Neighbourhood and Building Services",
Facilities/Repair Supplies,Lawn/Garden Supply/Nursery,Carters Of Swanwic,Supplies and Services related expenditure,15/12/2023,1284,"Director of Housing, Neighbourhood and Building Services",
Hotels And Motels,Premier Travel Inns,Premier Inn,Agency and Third Party Payments related expenditure,05/10/2023,1277.8,"Director of Housing, Neighbourhood and Building Services",
Transportation Conveyor,Travel Agencies,Bkg*hotel At Booking.C,Agency and Third Party Payments related expenditure,01/12/2023,1276.67,"Director of Housing, Neighbourhood and Building Services",
Type of Retail Store,Misc Food Stores - Default,Keystone,Premises related expenditure,12/12/2023,1274.54,Director of Portsmouth International Port,
Hotels And Motels,Premier Travel Inns,Premier Inn,Agency and Third Party Payments related expenditure,02/10/2023,1274.35,"Director of Housing, Neighbourhood and Building Services",
Transportation Conveyor,Travel Agencies,Bkg*hotel At Booking.C,Agency and Third Party Payments related expenditure,30/10/2023,1272.08,"Director of Housing, Neighbourhood and Building Services",
Transportation Conveyor,Travel Agencies,Bkg*hotel At Booking.C,Agency and Third Party Payments related expenditure,30/10/2023,1272.08,"Director of Housing, Neighbourhood and Building Services",
Hotels And Motels,Travelodge,Travelodge Gb0000,Agency and Third Party Payments related expenditure,18/12/2023,1271.18,"Director of Housing, Neighbourhood and Building Services",
Hotels And Motels,Travelodge,Travelodge Gb0000,Agency and Third Party Payments related expenditure,04/12/2023,1269.6,"Director of Housing, Neighbourhood and Building Services",
Hotels And Motels,Premier Travel Inns,Premier Inn,Agency and Third Party Payments related expenditure,02/10/2023,1258.22,"Director of Housing, Neighbourhood and Building Services",
Hotels And Motels,Premier Travel Inns,Premier Inn,Agency and Third Party Payments related expenditure,15/11/2023,1257.27,"Director of Housing, Neighbourhood and Building Services",
Transportation Conveyor,Travel Agencies,Bkg*hotel At Booking.C,Agency and Third Party Payments related expenditure,20/10/2023,1255.04,"Director of Housing, Neighbourhood and Building Services",
Transportation Conveyor,Travel Agencies,Bkg*hotel At Booking.C,Agency and Third Party Payments related expenditure,01/11/2023,1254.58,"Director of Housing, Neighbourhood and Building Services",
Facilities/Repair Supplies,Lawn/Garden Supply/Nursery,Www.Tudorenvironmental,Supplies and Services related expenditure,06/11/2023,1250,"Director of Culture, Leisure & Regulatory Services",
Transportation Conveyor,Travel Agencies,Expedia Expedia 726753171,Agency and Third Party Payments related expenditure,10/10/2023,1241.57,"Director of Housing, Neighbourhood and Building Services",
Transportation Conveyor,Travel Agencies,Bkg*hotel At Booking.C,Agency and Third Party Payments related expenditure,11/12/2023,1237.5,"Director of Housing, Neighbourhood and Building Services",
Transportation Conveyor,Travel Agencies,Bkg*hotel At Booking.C,Agency and Third Party Payments related expenditure,11/12/2023,1237.5,"Director of Housing, Neighbourhood and Building Services",
Transportation Conveyor,Travel Agencies,Bkg*hotel At Booking.C,Agency and Third Party Payments related expenditure,19/10/2023,1235.42,"Director of Housing, Neighbourhood and Building Services",
Transportation Conveyor,Travel Agencies,Bkg*hotel At Booking.C,Agency and Third Party Payments related expenditure,07/12/2023,1234.79,"Director of Housing, Neighbourhood and Building Services",
Transportation Conveyor,Travel Agencies,Bkg*hotel At Booking.C,Agency and Third Party Payments related expenditure,04/10/2023,1228.22,"Director of Housing, Neighbourhood and Building Services",
Hotels And Motels,Travelodge,Travelodge Gb0000,Agency and Third Party Payments related expenditure,08/12/2023,1226.08,"Director of Housing, Neighbourhood and Building Services",
Transportation Conveyor,Travel Agencies,Bkg*hotel At Booking.C,Agency and Third Party Payments related expenditure,22/11/2023,1223.75,"Director of Housing, Neighbourhood and Building Services",
Transportation Conveyor,Travel Agencies,Bkg*hotel At Booking.C,Agency and Third Party Payments related expenditure,22/11/2023,1223.75,"Director of Housing, Neighbourhood and Building Services",
Transportation Conveyor,Travel Agencies,Bkg*hotel At Booking.C,Agency and Third Party Payments related expenditure,22/11/2023,1223.75,"Director of Housing, Neighbourhood and Building Services",
Transportation Conveyor,Travel Agencies,Bkg*hotel At Booking.C,Agency and Third Party Payments related expenditure,22/11/2023,1223.75,"Director of Housing, Neighbourhood and Building Services",
Transportation Conveyor,Travel Agencies,Bkg*hotel At Booking.C,Agency and Third Party Payments related expenditure,13/10/2023,1223.22,"Director of Housing, Neighbourhood and Building Services",
Transportation Conveyor,Travel Agencies,Bkg*hotel At Booking.C,Agency and Third Party Payments related expenditure,23/11/2023,1217.92,"Director of Housing, Neighbourhood and Building Services",
Transportation Conveyor,Travel Agencies,Bkg*hotel At Booking.C,Agency and Third Party Payments related expenditure,23/11/2023,1217.92,"Director of Housing, Neighbourhood and Building Services",
Facilities Maintenance,Specialty Cleaning/Polishing,Cjs Portsmouth Limited,Supplies and Services related expenditure,07/12/2023,1215.53,Director of Children's Services and Education,
Transportation Conveyor,Travel Agencies,Bkg*hotel At Booking.C,Agency and Third Party Payments related expenditure,04/10/2023,1214.42,"Director of Housing, Neighbourhood and Building Services",
Hotels And Motels,Premier Travel Inns,Premier Inn,Agency and Third Party Payments related expenditure,02/10/2023,1213.22,"Director of Housing, Neighbourhood and Building Services",
Other Supplies,Misc Speciality Retail,Net World Sports,Supplies and Services related expenditure,09/11/2023,1209.94,Director of Children's Services and Education,
Transportation Conveyor,Travel Agencies,Bkg*hotel At Booking.C,Agency and Third Party Payments related expenditure,27/11/2023,1209.83,"Director of Housing, Neighbourhood and Building Services",
Transportation Conveyor,Travel Agencies,Bkg*hotel At Booking.C,Agency and Third Party Payments related expenditure,08/12/2023,1207.5,"Director of Housing, Neighbourhood and Building Services",
Transportation Conveyor,Travel Agencies,Bkg*hotel At Booking.C,Agency and Third Party Payments related expenditure,25/10/2023,1206.25,"Director of Housing, Neighbourhood and Building Services",
Transportation Conveyor,Travel Agencies,Bkg*hotel At Booking.C,Agency and Third Party Payments related expenditure,26/10/2023,1206.25,"Director of Housing, Neighbourhood and Building Services",
Other Supplies,Fuel Dealers,Scottish Power,Supplies and Services related expenditure,04/12/2023,1204,Director of Adult Care,
Professional Services,Mgmt/Consult/Public Rel Ser,The Safety Box Cic,Employees related expenditure,11/12/2023,1200,"Director of Housing, Neighbourhood and Building Services",
Transportation Conveyor,Travel Agencies,Bkg*hotel At Booking.C,Agency and Third Party Payments related expenditure,08/12/2023,1198.33,"Director of Housing, Neighbourhood and Building Services",
Transportation Conveyor,Travel Agencies,Bkg*hotel At Booking.C,Agency and Third Party Payments related expenditure,08/12/2023,1198.33,"Director of Housing, Neighbourhood and Building Services",
Transportation Conveyor,Travel Agencies,Bkg*hotel At Booking.C,Supplies and Services related expenditure,21/11/2023,1196,Director of Children's Services and Education,
Transportation Conveyor,Travel Agencies,Bkg*hotel At Booking.C,Agency and Third Party Payments related expenditure,08/12/2023,1194.58,"Director of Housing, Neighbourhood and Building Services",
Transportation Conveyor,Travel Agencies,Bkg*hotel At Booking.C,Agency and Third Party Payments related expenditure,08/12/2023,1194.58,"Director of Housing, Neighbourhood and Building Services",
Transportation Conveyor,Travel Agencies,Bkg*hotel At Booking.C,Agency and Third Party Payments related expenditure,08/12/2023,1194.58,"Director of Housing, Neighbourhood and Building Services",
Hotels And Motels,Premier Travel Inns,Premier Inn,Agency and Third Party Payments related expenditure,30/10/2023,1192.8,"Director of Housing, Neighbourhood and Building Services",
Hotels And Motels,Premier Travel Inns,Premier Inn,Agency and Third Party Payments related expenditure,23/11/2023,1192.38,"Director of Housing, Neighbourhood and Building Services",
Caterers Food,Caterers,The Southsea Deli,Supplies and Services related expenditure,02/10/2023,1189,Director of Portsmouth International Port,
Transportation Conveyor,Travel Agencies,Bkg*hotel At Booking.C,Agency and Third Party Payments related expenditure,30/10/2023,1185.12,"Director of Housing, Neighbourhood and Building Services",
Transportation Conveyor,Travel Agencies,Bkg*hotel At Booking.C,Agency and Third Party Payments related expenditure,27/11/2023,1182.5,"Director of Housing, Neighbourhood and Building Services",
Transportation Conveyor,Travel Agencies,Bkg*hotel At Booking.C,Agency and Third Party Payments related expenditure,01/12/2023,1178.33,"Director of Housing, Neighbourhood and Building Services",
Transportation Conveyor,Travel Agencies,Bkg*hotel At Booking.C,Agency and Third Party Payments related expenditure,01/12/2023,1178.33,"Director of Housing, Neighbourhood and Building Services",
Hotels And Motels,Premier Travel Inns,Premier Inn,Agency and Third Party Payments related expenditure,07/11/2023,1170.3,"Director of Housing, Neighbourhood and Building Services",
Transportation Conveyor,Travel Agencies,Expedia Expedia 726948203,Agency and Third Party Payments related expenditure,14/11/2023,1170.07,"Director of Housing, Neighbourhood and Building Services",
Hotels And Motels,Premier Travel Inns,Premier Inn,Agency and Third Party Payments related expenditure,22/11/2023,1165.3,"Director of Housing, Neighbourhood and Building Services",
Hotels And Motels,Premier Travel Inns,Premier Inn,Supplies and Services related expenditure,03/10/2023,1163.22,"Director of Housing, Neighbourhood and Building Services",
Transportation Conveyor,Travel Agencies,Bkg*hotel At Booking.C,Agency and Third Party Payments related expenditure,16/11/2023,1161.67,"Director of Housing, Neighbourhood and Building Services",
Facilities/Repair Supplies,Lawn/Garden Supply/Nursery,M & S Enterprises,Supplies and Services related expenditure,16/11/2023,1158.81,"Director of Housing, Neighbourhood and Building Services",
Other Supplies,Misc Speciality Retail,W&p / Medirite,Supplies and Services related expenditure,06/11/2023,1158,"Director of Housing, Neighbourhood and Building Services",
Hotels And Motels,Lodging/Hotels/Motels/Resorts,Comfort Inn Hotel Arun,Agency and Third Party Payments related expenditure,12/10/2023,1154.46,"Director of Housing, Neighbourhood and Building Services",
Hotels And Motels,Premier Travel Inns,Premier Inn,Agency and Third Party Payments related expenditure,13/10/2023,1154.05,"Director of Housing, Neighbourhood and Building Services",
Other Supplies,Misc Speciality Retail,W&p / Medirite,Supplies and Services related expenditure,09/10/2023,1152,"Director of Housing, Neighbourhood and Building Services",
Other Supplies,Misc Speciality Retail,W&p / Medirite,Supplies and Services related expenditure,06/11/2023,1152,"Director of Housing, Neighbourhood and Building Services",
Other Supplies,Misc Speciality Retail,W&p / Medirite,Supplies and Services related expenditure,05/12/2023,1152,"Director of Housing, Neighbourhood and Building Services",
Other Supplies,Misc Speciality Retail,W&p / Medirite,Supplies and Services related expenditure,05/12/2023,1152,"Director of Housing, Neighbourhood and Building Services",
Hotels And Motels,Premier Travel Inns,Premier Inn,Agency and Third Party Payments related expenditure,06/10/2023,-1151.97,"Director of Housing, Neighbourhood and Building Services",
Hotels And Motels,Travelodge,Travelodge Gb0000,Agency and Third Party Payments related expenditure,08/12/2023,1146.89,"Director of Housing, Neighbourhood and Building Services",
Hotels And Motels,Travelodge,Travelodge Gb0000,Agency and Third Party Payments related expenditure,28/12/2023,1146.1,"Director of Housing, Neighbourhood and Building Services",
Other Supplies,Misc Speciality Retail,W&p / Medirite,Premises related expenditure,13/12/2023,1143.4,"Director of Housing, Neighbourhood and Building Services",
Transportation Conveyor,Travel Agencies,Bkg*hotel At Booking.C,Agency and Third Party Payments related expenditure,24/11/2023,1142.3,"Director of Housing, Neighbourhood and Building Services",
Transportation Conveyor,Travel Agencies,Expedia Expedia 726745304,Agency and Third Party Payments related expenditure,09/10/2023,1137.39,"Director of Housing, Neighbourhood and Building Services",
Hotels And Motels,Premier Travel Inns,Premier Inn,Agency and Third Party Payments related expenditure,04/10/2023,-1136.97,"Director of Housing, Neighbourhood and Building Services",
Hotels And Motels,Premier Travel Inns,Premier Inn,Agency and Third Party Payments related expenditure,13/11/2023,1136.13,"Director of Housing, Neighbourhood and Building Services",
Transportation Conveyor,Travel Agencies,Bkg*hotel At Booking.C,Agency and Third Party Payments related expenditure,07/12/2023,1135.65,"Director of Housing, Neighbourhood and Building Services",
Transportation Conveyor,Travel Agencies,Bkg*hotel At Booking.C,Agency and Third Party Payments related expenditure,07/12/2023,1135.65,"Director of Housing, Neighbourhood and Building Services",
Business Services,Business Services - Default,Www.Phs.Co.Uk,Agency and Third Party Payments related expenditure,03/10/2023,1135.41,Director of Portsmouth International Port,
Government Service,Schools - Default,Edshed,Supplies and Services related expenditure,13/10/2023,1133.93,Director of Children's Services and Education,
Hotels And Motels,Premier Travel Inns,Premier Inn,Agency and Third Party Payments related expenditure,11/12/2023,1127.38,"Director of Housing, Neighbourhood and Building Services",
Transportation Conveyor,Travel Agencies,Bkg*hotel At Booking.C,Agency and Third Party Payments related expenditure,08/11/2023,1127.33,"Director of Housing, Neighbourhood and Building Services",
Transportation Conveyor,Travel Agencies,Bkg*hotel At Booking.C,Agency and Third Party Payments related expenditure,16/10/2023,1114.88,"Director of Housing, Neighbourhood and Building Services",
Hotels And Motels,Premier Travel Inns,Premier Inn,Agency and Third Party Payments related expenditure,13/11/2023,1112.8,"Director of Housing, Neighbourhood and Building Services",
Other Supplies,Misc Speciality Retail,W&p / Medirite,Supplies and Services related expenditure,06/11/2023,1110.5,"Director of Housing, Neighbourhood and Building Services",
Transportation Conveyor,Travel Agencies,Bkg*hotel At Booking.C,Agency and Third Party Payments related expenditure,16/10/2023,1108.22,"Director of Housing, Neighbourhood and Building Services",
Business To Business Facility/,Industrial Supplies - Def,Www.Woodsheets.Co.Uk,Supplies and Services related expenditure,29/11/2023,1108.07,Director of Regeneration,
Hotels And Motels,Premier Travel Inns,Premier Inn,Agency and Third Party Payments related expenditure,14/11/2023,1106.13,"Director of Housing, Neighbourhood and Building Services",
Transportation Conveyor,Travel Agencies,Bkg*hotel At Booking.C,Agency and Third Party Payments related expenditure,06/11/2023,1103.58,"Director of Housing, Neighbourhood and Building Services",
Transportation Conveyor,Travel Agencies,Bkg*hotel At Booking.C,Agency and Third Party Payments related expenditure,06/11/2023,1103.58,"Director of Housing, Neighbourhood and Building Services",
Hotels And Motels,Travelodge,Travelodge Gb0000,Supplies and Services related expenditure,01/12/2023,1101.42,Director of Children's Services and Education,
Transportation Conveyor,Travel Agencies,Bkg*hotel At Booking.C,Agency and Third Party Payments related expenditure,01/12/2023,-1100,"Director of Housing, Neighbourhood and Building Services",
Transportation Conveyor,Travel Agencies,Bkg*hotel At Booking.C,Agency and Third Party Payments related expenditure,24/10/2023,1099.62,"Director of Housing, Neighbourhood and Building Services",
Hotels And Motels,Premier Travel Inns,Premier Inn,Agency and Third Party Payments related expenditure,27/10/2023,1094.88,"Director of Housing, Neighbourhood and Building Services",
Transportation Conveyor,Travel Agencies,Bkg*hotel At Booking.C,Agency and Third Party Payments related expenditure,20/12/2023,1091.07,"Director of Housing, Neighbourhood and Building Services",
Transportation Conveyor,Travel Agencies,Bkg*hotel At Booking.C,Agency and Third Party Payments related expenditure,07/12/2023,1090.85,"Director of Housing, Neighbourhood and Building Services",
Transportation Conveyor,Travel Agencies,Bkg*hotel At Booking.C,Agency and Third Party Payments related expenditure,07/12/2023,1090.85,"Director of Housing, Neighbourhood and Building Services",
Transportation Conveyor,Travel Agencies,Bkg*hotel At Booking.C,Agency and Third Party Payments related expenditure,07/12/2023,1090.85,"Director of Housing, Neighbourhood and Building Services",
Government Service,Schools - Default,Smartrevise,Supplies and Services related expenditure,30/10/2023,1089.92,Director of Children's Services and Education,
Caterers Food,Caterers,Waterlogic Gb Limited,Premises related expenditure,27/12/2023,1087.81,Director of Adult Care,
Transportation Conveyor,Travel Agencies,Bkg*hotel At Booking.C,Supplies and Services related expenditure,21/11/2023,-1086.52,Director of Children's Services and Education,
Transportation Conveyor,Travel Agencies,Bkg*hotel At Booking.C,Agency and Third Party Payments related expenditure,03/11/2023,1086.25,"Director of Housing, Neighbourhood and Building Services",
Transportation Conveyor,Travel Agencies,Bkg*hotel At Booking.C,Agency and Third Party Payments related expenditure,17/10/2023,1082.38,"Director of Housing, Neighbourhood and Building Services",
Hotels And Motels,Premier Travel Inns,Premier Inn,Agency and Third Party Payments related expenditure,28/11/2023,1081.85,"Director of Housing, Neighbourhood and Building Services",
Hotels And Motels,Premier Travel Inns,Premier Inn,Agency and Third Party Payments related expenditure,28/11/2023,1081.85,"Director of Housing, Neighbourhood and Building Services",
Hotels And Motels,Travelodge,Travelodge Gb0000,Agency and Third Party Payments related expenditure,04/12/2023,1077.22,"Director of Housing, Neighbourhood and Building Services",
Transportation Conveyor,Travel Agencies,Expedia Expedia 726745123,Agency and Third Party Payments related expenditure,09/10/2023,1076.98,"Director of Housing, Neighbourhood and Building Services",
Transportation Conveyor,Travel Agencies,Expedia Expedia 726745025,Agency and Third Party Payments related expenditure,09/10/2023,1076.98,"Director of Housing, Neighbourhood and Building Services",
Business To Business Facility/,Construction Materials - Def,Ad Fabrication Limited,Capital related expenditure,02/10/2023,1074,"Capital - Culture, Leisure & Economic Development",
Hotels And Motels,Premier Travel Inns,Premier Inn,Agency and Third Party Payments related expenditure,04/10/2023,-1073.22,"Director of Housing, Neighbourhood and Building Services",
Hotels And Motels,Premier Travel Inns,Premier Inn,Agency and Third Party Payments related expenditure,08/11/2023,1073.1,"Director of Housing, Neighbourhood and Building Services",
Transportation Conveyor,Travel Agencies,Expedia Expedia 726745277,Agency and Third Party Payments related expenditure,09/10/2023,1072.81,"Director of Housing, Neighbourhood and Building Services",
Transportation Conveyor,Travel Agencies,Expedia 72674521399673,Agency and Third Party Payments related expenditure,09/10/2023,1072.81,"Director of Housing, Neighbourhood and Building Services",
Transportation Conveyor,Travel Agencies,Expedia Expedia 726745252,Agency and Third Party Payments related expenditure,09/10/2023,1072.81,"Director of Housing, Neighbourhood and Building Services",
Transportation Conveyor,Travel Agencies,Bkg*hotel At Booking.C,Agency and Third Party Payments related expenditure,24/11/2023,1072.8,"Director of Housing, Neighbourhood and Building Services",
Other Supplies,Department Stores,Www.Argos.Co.Uk,Supplies and Services related expenditure,19/12/2023,1071.95,Director of Children's Services and Education,
Hotels And Motels,Travelodge,Travelodge Gb0000,Agency and Third Party Payments related expenditure,04/12/2023,1067.72,"Director of Housing, Neighbourhood and Building Services",
Hotels And Motels,Premier Travel Inns,Premier Inn,Agency and Third Party Payments related expenditure,10/10/2023,1066.13,"Director of Housing, Neighbourhood and Building Services",
Hotels And Motels,Premier Travel Inns,Premier Inn,Agency and Third Party Payments related expenditure,17/10/2023,1065.18,"Director of Housing, Neighbourhood and Building Services",
Transportation Conveyor,Travel Agencies,Bkg*hotel At Booking.C,Agency and Third Party Payments related expenditure,16/10/2023,1062.5,"Director of Housing, Neighbourhood and Building Services",
Hotels And Motels,Premier Travel Inns,Premier Inn,Agency and Third Party Payments related expenditure,27/11/2023,1062.38,"Director of Housing, Neighbourhood and Building Services",
Other Supplies,Misc Speciality Retail,W&p / Medirite,Supplies and Services related expenditure,09/10/2023,1061.68,"Director of Housing, Neighbourhood and Building Services",
Hotels And Motels,Premier Travel Inns,Premier Inn,Agency and Third Party Payments related expenditure,13/11/2023,1060.18,"Director of Housing, Neighbourhood and Building Services",
Hotels And Motels,Premier Travel Inns,Premier Inn,Agency and Third Party Payments related expenditure,20/11/2023,1060.18,"Director of Housing, Neighbourhood and Building Services",
Hotels And Motels,Premier Travel Inns,Premier Inn,Agency and Third Party Payments related expenditure,30/11/2023,1060.18,"Director of Housing, Neighbourhood and Building Services",
Hotels And Motels,Premier Travel Inns,Premier Inn,Agency and Third Party Payments related expenditure,04/10/2023,-1059.88,"Director of Housing, Neighbourhood and Building Services",
Hotels And Motels,Premier Travel Inns,Premier Inn,Agency and Third Party Payments related expenditure,10/10/2023,1056.97,"Director of Housing, Neighbourhood and Building Services",
Transportation Conveyor,Travel Agencies,Expedia 72674532892667,Agency and Third Party Payments related expenditure,09/10/2023,1056.15,"Director of Housing, Neighbourhood and Building Services",
Hotels And Motels,Premier Travel Inns,Premier Inn,Agency and Third Party Payments related expenditure,10/10/2023,1055.3,"Director of Housing, Neighbourhood and Building Services",
Hotels And Motels,Premier Travel Inns,Premier Inn,Agency and Third Party Payments related expenditure,01/11/2023,1055.18,"Director of Housing, Neighbourhood and Building Services",
Hotels And Motels,Premier Travel Inns,Premier Inn,Agency and Third Party Payments related expenditure,24/11/2023,1053.52,"Director of Housing, Neighbourhood and Building Services",
Transportation Conveyor,Travel Agencies,Bkg*hotel At Booking.C,Supplies and Services related expenditure,30/10/2023,1052.12,"Director of Housing, Neighbourhood and Building Services",
Transportation Conveyor,Travel Agencies,Bkg*hotel At Booking.C,Agency and Third Party Payments related expenditure,20/12/2023,-1045.25,"Director of Housing, Neighbourhood and Building Services",
Hotels And Motels,Premier Travel Inns,Premier Inn,Agency and Third Party Payments related expenditure,27/10/2023,1040.72,"Director of Housing, Neighbourhood and Building Services",
Hotels And Motels,Hotel Ibis,Hotel Ibis,Supplies and Services related expenditure,16/11/2023,1040,"Director of Housing, Neighbourhood and Building Services",
Transportation Conveyor,Travel Agencies,Bkg*hotel At Booking.C,Agency and Third Party Payments related expenditure,19/10/2023,1036.29,"Director of Housing, Neighbourhood and Building Services",
Transportation Conveyor,Travel Agencies,Expedia 72675314562675,Agency and Third Party Payments related expenditure,10/10/2023,1032.38,"Director of Housing, Neighbourhood and Building Services",
Transportation Conveyor,Travel Agencies,Bkg*hotel At Booking.C,Agency and Third Party Payments related expenditure,11/12/2023,1031.25,"Director of Housing, Neighbourhood and Building Services",
Hotels And Motels,Hotel Ibis,Hotel Ibis,Supplies and Services related expenditure,29/11/2023,1030.5,"Director of Housing, Neighbourhood and Building Services",
Transportation Conveyor,Travel Agencies,Bkg*hotel At Booking.C,Agency and Third Party Payments related expenditure,02/10/2023,1029.17,"Director of Housing, Neighbourhood and Building Services",
Hotels And Motels,Premier Travel Inns,Premier Inn,Agency and Third Party Payments related expenditure,21/11/2023,1027.68,"Director of Housing, Neighbourhood and Building Services",
Transportation Conveyor,Travel Agencies,Bkg*hotel At Booking.C,Agency and Third Party Payments related expenditure,21/11/2023,1027.5,"Director of Housing, Neighbourhood and Building Services",
Hotels And Motels,Premier Travel Inns,Premier Inn,Agency and Third Party Payments related expenditure,08/11/2023,1026.13,"Director of Housing, Neighbourhood and Building Services",
Hotels And Motels,Travelodge,Travelodge Gb0000,Agency and Third Party Payments related expenditure,25/10/2023,1025.03,"Director of Housing, Neighbourhood and Building Services",
Hotels And Motels,Premier Travel Inns,Premier Inn,Agency and Third Party Payments related expenditure,13/11/2023,1022.38,"Director of Housing, Neighbourhood and Building Services",
Hotels And Motels,Premier Travel Inns,Premier Inn,Agency and Third Party Payments related expenditure,08/11/2023,1021.55,"Director of Housing, Neighbourhood and Building Services",
Hotels And Motels,Travelodge,Travelodge Gb0000,Agency and Third Party Payments related expenditure,08/12/2023,1021.02,"Director of Housing, Neighbourhood and Building Services",
Hotels And Motels,Premier Travel Inns,Premier Inn,Agency and Third Party Payments related expenditure,05/10/2023,-1020.73,"Director of Housing, Neighbourhood and Building Services",
Hotels And Motels,Premier Travel Inns,Premier Inn,Agency and Third Party Payments related expenditure,08/11/2023,1020.3,"Director of Housing, Neighbourhood and Building Services",
Hotels And Motels,Premier Travel Inns,Premier Inn,Agency and Third Party Payments related expenditure,22/11/2023,1020.18,"Director of Housing, Neighbourhood and Building Services",
Business Services,Advertising Services,Google Ads5247259773,Supplies and Services related expenditure,01/11/2023,1019.97,Director of Children's Services and Education,
Business Services,Advertising Services,Google Ads5247259773,Supplies and Services related expenditure,01/12/2023,1019.75,Director of Children's Services and Education,
Transportation Conveyor,Travel Agencies,Bkg*hotel At Booking.C,Agency and Third Party Payments related expenditure,16/10/2023,1016.67,"Director of Housing, Neighbourhood and Building Services",
Hotels And Motels,Travelodge,Travelodge Gb0000,Supplies and Services related expenditure,21/11/2023,1016.47,Director of Children's Services and Education,
Hotels And Motels,Premier Travel Inns,Premier Inn,Agency and Third Party Payments related expenditure,08/11/2023,1015.72,"Director of Housing, Neighbourhood and Building Services",
Transportation Conveyor,Travel Agencies,Bkg*hotel At Booking.C,Agency and Third Party Payments related expenditure,30/10/2023,-1015.31,"Director of Housing, Neighbourhood and Building Services",
Hotels And Motels,Premier Travel Inns,Premier Inn,Agency and Third Party Payments related expenditure,16/10/2023,-1010.72,"Director of Housing, Neighbourhood and Building Services",
Transportation Conveyor,Travel Agencies,Bkg*hotel At Booking.C,Agency and Third Party Payments related expenditure,17/10/2023,1008.33,"Director of Housing, Neighbourhood and Building Services",
Transportation Conveyor,Travel Agencies,Bkg*hotel At Booking.C,Agency and Third Party Payments related expenditure,08/12/2023,1006.25,"Director of Housing, Neighbourhood and Building Services",
Transportation Conveyor,Travel Agencies,Bkg*hotel At Booking.C,Agency and Third Party Payments related expenditure,01/12/2023,1001.67,"Director of Housing, Neighbourhood and Building Services",
Hotels And Motels,Premier Travel Inns,Premier Inn,Agency and Third Party Payments related expenditure,23/10/2023,996.55,"Director of Housing, Neighbourhood and Building Services",
Amusement/Entertainment,Amusement/Rec Serv - Def,Croma Locksmiths & Sec,Supplies and Services related expenditure,13/10/2023,993.88,"Director of Housing, Neighbourhood and Building Services",
Hotels And Motels,Premier Travel Inns,Premier Inn,Agency and Third Party Payments related expenditure,16/10/2023,993.63,"Director of Housing, Neighbourhood and Building Services",
Transportation Conveyor,Travel Agencies,Bkg*hotel At Booking.C,Agency and Third Party Payments related expenditure,25/10/2023,992.75,"Director of Housing, Neighbourhood and Building Services",
Hotels And Motels,Premier Travel Inns,Premier Inn,Agency and Third Party Payments related expenditure,07/11/2023,991.55,"Director of Housing, Neighbourhood and Building Services",
Hotels And Motels,Premier Travel Inns,Premier Inn,Agency and Third Party Payments related expenditure,27/12/2023,991.55,"Director of Housing, Neighbourhood and Building Services",
Auto/Vehicle Expenses,Automotive Tire Stores,Bigtyresltd,Transport related expenditure,27/10/2023,991,"Director of Culture, Leisure & Regulatory Services",
Business Services,Business Services - Default,Www.Local.Gov.Uk,Supplies and Services related expenditure,31/10/2023,990,Director of Children's Services and Education,
Other Supplies,Misc Gen Merchandise - Def,Ivo Group Ltd,Supplies and Services related expenditure,30/11/2023,987.5,"Director of Housing, Neighbourhood and Building Services",
Transportation Conveyor,Travel Agencies,Bkg*hotel At Booking.C,Agency and Third Party Payments related expenditure,30/11/2023,985.72,"Director of Housing, Neighbourhood and Building Services",
Hotels And Motels,Premier Travel Inns,Premier Inn,Agency and Third Party Payments related expenditure,08/12/2023,985.72,"Director of Housing, Neighbourhood and Building Services",
Facilities/Repair Supplies,Lawn/Garden Supply/Nursery,Www.Tudorenvironmental,Supplies and Services related expenditure,03/11/2023,985.2,"Director of Culture, Leisure & Regulatory Services",
Transportation Conveyor,Travel Agencies,Bkg*hotel At Booking.C,Supplies and Services related expenditure,09/10/2023,980,Director of Children's Services and Education,
Transportation Conveyor,Travel Agencies,Bkg*hotel At Booking.C,Agency and Third Party Payments related expenditure,31/10/2023,-976.12,"Director of Housing, Neighbourhood and Building Services",
Hotels And Motels,Premier Travel Inns,Premier Inn,Agency and Third Party Payments related expenditure,03/10/2023,974.05,"Director of Housing, Neighbourhood and Building Services",
Hotels And Motels,Premier Travel Inns,Premier Inn,Agency and Third Party Payments related expenditure,06/11/2023,972.8,"Director of Housing, Neighbourhood and Building Services",
Hotels And Motels,Premier Travel Inns,Premier Inn,Agency and Third Party Payments related expenditure,06/11/2023,972.8,"Director of Housing, Neighbourhood and Building Services",
Transportation Conveyor,Travel Agencies,Bkg*hotel At Booking.C,Agency and Third Party Payments related expenditure,25/10/2023,970.83,"Director of Housing, Neighbourhood and Building Services",
Hotels And Motels,Travelodge,Travelodge Gb0000,Agency and Third Party Payments related expenditure,27/12/2023,970.35,"Director of Housing, Neighbourhood and Building Services",
Transportation Conveyor,Travel Agencies,Bkg*hotel At Booking.C,Agency and Third Party Payments related expenditure,27/11/2023,966.67,"Director of Housing, Neighbourhood and Building Services",
Hotels And Motels,Premier Travel Inns,Premier Inn,Agency and Third Party Payments related expenditure,22/11/2023,965.3,"Director of Housing, Neighbourhood and Building Services",
Hotels And Motels,Premier Travel Inns,Premier Inn,Agency and Third Party Payments related expenditure,05/12/2023,964.91,"Director of Housing, Neighbourhood and Building Services",
Transportation Conveyor,Travel Agencies,Bkg*hotel At Booking.C,Agency and Third Party Payments related expenditure,15/11/2023,964.17,"Director of Housing, Neighbourhood and Building Services",
Equipment And Furniture,Furniture/Equip Stores,Dfs Trading Limited,Supplies and Services related expenditure,02/11/2023,964,Director of Adult Care,
Equipment And Furniture,Furniture/Equip Stores,Dfs Trading Limited,Supplies and Services related expenditure,02/11/2023,964,Director of Adult Care,
Hotels And Motels,Travelodge,Travelodge Gb0000,Agency and Third Party Payments related expenditure,15/12/2023,963.28,"Director of Housing, Neighbourhood and Building Services",
Transportation Conveyor,Travel Agencies,Bkg*hotel At Booking.C,Agency and Third Party Payments related expenditure,29/12/2023,960.5,"Director of Housing, Neighbourhood and Building Services",
Transportation Conveyor,Travel Agencies,Bkg*hotel At Booking.C,Agency and Third Party Payments related expenditure,20/10/2023,958.33,"Director of Housing, Neighbourhood and Building Services",
Hotels And Motels,Premier Travel Inns,Premier Inn,Agency and Third Party Payments related expenditure,22/11/2023,956.97,"Director of Housing, Neighbourhood and Building Services",
Hotels And Motels,Hotel Ibis,Hotel Ibis,Supplies and Services related expenditure,18/12/2023,956.67,"Director of Housing, Neighbourhood and Building Services",
Hotels And Motels,Travelodge,Travelodge Gb0000,Agency and Third Party Payments related expenditure,15/12/2023,954.57,"Director of Housing, Neighbourhood and Building Services",
Facilities/Repair Services,Radio/Tv/Stereo Repair Shop,Www.Avpartmaster.Net,Supplies and Services related expenditure,22/12/2023,951.27,Director of Finance & Resources,
Hotels And Motels,Premier Travel Inns,Premier Inn,Agency and Third Party Payments related expenditure,08/11/2023,951.13,"Director of Housing, Neighbourhood and Building Services",
Transportation Conveyor,Travel Agencies,Bkg*hotel At Booking.C,Supplies and Services related expenditure,26/10/2023,951,"Director of Housing, Neighbourhood and Building Services",
Transportation Conveyor,Travel Agencies,Bkg*hotel At Booking.C,Agency and Third Party Payments related expenditure,20/12/2023,949.32,"Director of Housing, Neighbourhood and Building Services",
Transportation Conveyor,Travel Agencies,Bkg*hotel At Booking.C,Agency and Third Party Payments related expenditure,08/12/2023,949.17,"Director of Housing, Neighbourhood and Building Services",
Transportation Conveyor,Travel Agencies,Bkg*hotel At Booking.C,Agency and Third Party Payments related expenditure,08/12/2023,949.17,"Director of Housing, Neighbourhood and Building Services",
Transportation Conveyor,Travel Agencies,Bkg*hotel At Booking.C,Agency and Third Party Payments related expenditure,08/12/2023,946.22,"Director of Housing, Neighbourhood and Building Services",
Transportation Conveyor,Travel Agencies,Bkg*hotel At Booking.C,Agency and Third Party Payments related expenditure,08/12/2023,946.22,"Director of Housing, Neighbourhood and Building Services",
Hotels And Motels,Travelodge,Travelodge Gb0000,Supplies and Services related expenditure,07/11/2023,945.92,Director of Children's Services and Education,
Transportation Conveyor,Travel Agencies,Bkg*hotel At Booking.C,Agency and Third Party Payments related expenditure,06/11/2023,945.83,"Director of Housing, Neighbourhood and Building Services",
Hotels And Motels,Travelodge,Travelodge Gb0000,Agency and Third Party Payments related expenditure,30/11/2023,945.42,"Director of Housing, Neighbourhood and Building Services",
Hotels And Motels,Premier Travel Inns,Premier Inn,Agency and Third Party Payments related expenditure,26/10/2023,945.3,"Director of Housing, Neighbourhood and Building Services",
Hotels And Motels,Premier Travel Inns,Premier Inn,Agency and Third Party Payments related expenditure,07/11/2023,945.3,"Director of Housing, Neighbourhood and Building Services",
Hotels And Motels,Premier Travel Inns,Premier Inn,Agency and Third Party Payments related expenditure,16/11/2023,943.22,"Director of Housing, Neighbourhood and Building Services",
Transportation Conveyor,Travel Agencies,Bkg*hotel At Booking.C,Agency and Third Party Payments related expenditure,20/12/2023,942.5,"Director of Housing, Neighbourhood and Building Services",
Transportation Conveyor,Travel Agencies,Bkg*hotel At Booking.C,Agency and Third Party Payments related expenditure,01/12/2023,941.67,"Director of Housing, Neighbourhood and Building Services",
Hotels And Motels,Premier Travel Inns,Premier Inn,Agency and Third Party Payments related expenditure,19/10/2023,940.72,"Director of Housing, Neighbourhood and Building Services",
Hotels And Motels,Travelodge,Travelodge Gb0000,Agency and Third Party Payments related expenditure,19/10/2023,-940.67,"Director of Housing, Neighbourhood and Building Services",
Utility,Utilities/Elec/Gas/H2O/Sani,E.On Next,Agency and Third Party Payments related expenditure,09/10/2023,940.02,"Director of Housing, Neighbourhood and Building Services",
Business To Business Eqpt/Furn,Computers/Peripherals/Software,Insight Uk,Supplies and Services related expenditure,25/10/2023,939.8,Director of Corporate Services,
Hotels And Motels,Premier Travel Inns,Premier Inn,Agency and Third Party Payments related expenditure,26/10/2023,939.05,"Director of Housing, Neighbourhood and Building Services",
Transportation Conveyor,Travel Agencies,Expedia Expedia 727117510,Agency and Third Party Payments related expenditure,11/12/2023,937.01,"Director of Housing, Neighbourhood and Building Services",
Transportation Conveyor,Travel Agencies,Expedia Expedia 727117462,Agency and Third Party Payments related expenditure,11/12/2023,937.01,"Director of Housing, Neighbourhood and Building Services",
Hotels And Motels,Premier Travel Inns,Premier Inn,Agency and Third Party Payments related expenditure,23/11/2023,936.97,"Director of Housing, Neighbourhood and Building Services",
Other Supplies,Misc Gen Merchandise - Def,First Rescue Train,Supplies and Services related expenditure,13/11/2023,935,"Director of Culture, Leisure & Regulatory Services",
Business To Business Eqpt/Furn,Book Stores,Scholastic Book Fairs,Supplies and Services related expenditure,27/11/2023,934.01,Director of Children's Services and Education,
Transportation Conveyor,Travel Agencies,Bkg*hotel At Booking.C,Agency and Third Party Payments related expenditure,01/12/2023,933.33,"Director of Housing, Neighbourhood and Building Services",
Hotels And Motels,Premier Travel Inns,Premier Inn,Agency and Third Party Payments related expenditure,02/10/2023,933.17,"Director of Housing, Neighbourhood and Building Services",
Transportation Conveyor,Travel Agencies,Bkg*hotel At Booking.C,Agency and Third Party Payments related expenditure,20/10/2023,931.79,"Director of Housing, Neighbourhood and Building Services",
Hotels And Motels,Premier Travel Inns,Premier Inn,Agency and Third Party Payments related expenditure,27/11/2023,929.05,"Director of Housing, Neighbourhood and Building Services",
Hotels And Motels,Premier Travel Inns,Premier Inn,Agency and Third Party Payments related expenditure,02/10/2023,928.66,"Director of Housing, Neighbourhood and Building Services",
Hotels And Motels,Premier Travel Inns,Premier Inn,Agency and Third Party Payments related expenditure,05/12/2023,928.1,"Director of Housing, Neighbourhood and Building Services",
Hotels And Motels,Premier Travel Inns,Premier Inn,Agency and Third Party Payments related expenditure,05/12/2023,928.1,"Director of Housing, Neighbourhood and Building Services",
Hotels And Motels,Premier Travel Inns,Premier Inn,Agency and Third Party Payments related expenditure,11/12/2023,925.72,"Director of Housing, Neighbourhood and Building Services",
Hotels And Motels,Travelodge,Travelodge Gb0000,Agency and Third Party Payments related expenditure,01/12/2023,925.34,"Director of Housing, Neighbourhood and Building Services",
Hotels And Motels,Premier Travel Inns,Premier Inn,Agency and Third Party Payments related expenditure,05/12/2023,925.18,"Director of Housing, Neighbourhood and Building Services",
Transportation Conveyor,Travel Agencies,Bkg*hotel At Booking.C,Supplies and Services related expenditure,09/10/2023,925,Director of Children's Services and Education,
Hotels And Motels,Premier Travel Inns,Premier Inn,Agency and Third Party Payments related expenditure,26/10/2023,924.88,"Director of Housing, Neighbourhood and Building Services",
Hotels And Motels,Premier Travel Inns,Premier Inn,Agency and Third Party Payments related expenditure,30/10/2023,924.88,"Director of Housing, Neighbourhood and Building Services",
Transportation Conveyor,Travel Agencies,Bkg*hotel At Booking.C,Agency and Third Party Payments related expenditure,16/11/2023,922.5,"Director of Housing, Neighbourhood and Building Services",
Transportation Conveyor,Travel Agencies,Bkg*hotel At Booking.C,Agency and Third Party Payments related expenditure,22/11/2023,922.5,"Director of Housing, Neighbourhood and Building Services",
Transportation Conveyor,Travel Agencies,Bkg*hotel At Booking.C,Agency and Third Party Payments related expenditure,23/10/2023,920.83,"Director of Housing, Neighbourhood and Building Services",
Hotels And Motels,Premier Travel Inns,Premier Inn,Agency and Third Party Payments related expenditure,26/10/2023,920.72,"Director of Housing, Neighbourhood and Building Services",
Other Supplies,Misc Speciality Retail,W&p / Medirite,Premises related expenditure,09/10/2023,920.1,"Director of Housing, Neighbourhood and Building Services",
Airlines,British Awys,British A,Transport related expenditure,19/12/2023,916.89,Solent LEP,
Airlines,British Awys,British A,Transport related expenditure,19/12/2023,916.89,Solent LEP,
Hotels And Motels,Travelodge,Travelodge Gb0000,Agency and Third Party Payments related expenditure,31/10/2023,915.83,"Director of Housing, Neighbourhood and Building Services",
Transportation Conveyor,Travel Agencies,Bkg*hotel At Booking.C,Agency and Third Party Payments related expenditure,28/12/2023,915.83,"Director of Housing, Neighbourhood and Building Services",
Government Service,Schools - Default,Charanga,Supplies and Services related expenditure,25/10/2023,910,Director of Children's Services and Education,
Government Service,Govt Serv - Default,Ofsted Internet,Agency and Third Party Payments related expenditure,24/11/2023,910,Director of Children's Services and Education,
Hotels And Motels,Premier Travel Inns,Premier Inn,Agency and Third Party Payments related expenditure,03/10/2023,906.97,"Director of Housing, Neighbourhood and Building Services",
Transportation Conveyor,Travel Agencies,Bkg*hotel At Booking.C,Agency and Third Party Payments related expenditure,17/10/2023,-906.3,"Director of Housing, Neighbourhood and Building Services",
Hotels And Motels,Premier Travel Inns,Premier Inn,Agency and Third Party Payments related expenditure,07/12/2023,906.13,"Director of Housing, Neighbourhood and Building Services",
Hotels And Motels,Travelodge,Travelodge Gb0000,Agency and Third Party Payments related expenditure,17/10/2023,904.62,"Director of Housing, Neighbourhood and Building Services",
Transportation Conveyor,Travel Agencies,Bkg*hotel At Booking.C,Agency and Third Party Payments related expenditure,25/10/2023,904.17,"Director of Housing, Neighbourhood and Building Services",
Freight/Courier/Warehouse Svcs,Motor Freight Carriers,Safestore Ltd Online R,Premises related expenditure,27/12/2023,904.12,"Director of Housing, Neighbourhood and Building Services",
Transportation Conveyor,Travel Agencies,Bkg*hotel At Booking.C,Agency and Third Party Payments related expenditure,11/12/2023,904,"Director of Housing, Neighbourhood and Building Services",
Hotels And Motels,Premier Travel Inns,Premier Inn,Agency and Third Party Payments related expenditure,07/11/2023,902.38,"Director of Housing, Neighbourhood and Building Services",
Government Service,Schools - Default,Energy Trust,Employees related expenditure,03/11/2023,900,"Director of Housing, Neighbourhood and Building Services",
Hotels And Motels,Premier Travel Inns,Premier Inn,Agency and Third Party Payments related expenditure,24/11/2023,899.88,"Director of Housing, Neighbourhood and Building Services",
Amusement/Entertainment,Theatrical Producers,Government Events,Employees related expenditure,17/10/2023,897,Director of Regeneration,
Transportation Conveyor,Travel Agencies,Bkg*hotel At Booking.C,Agency and Third Party Payments related expenditure,03/11/2023,892.12,"Director of Housing, Neighbourhood and Building Services",
Transportation Conveyor,Travel Agencies,Bkg*hotel At Booking.C,Agency and Third Party Payments related expenditure,24/10/2023,891.67,"Director of Housing, Neighbourhood and Building Services",
Transportation Conveyor,Travel Agencies,Bkg*hotel At Booking.C,Agency and Third Party Payments related expenditure,22/11/2023,-891.67,"Director of Housing, Neighbourhood and Building Services",
Transportation Conveyor,Travel Agencies,Bkg*hotel At Booking.C,Agency and Third Party Payments related expenditure,22/11/2023,891.67,"Director of Housing, Neighbourhood and Building Services",
Hotels And Motels,Lodging/Hotels/Motels/Resorts,Village Hotels,Supplies and Services related expenditure,18/10/2023,890,Director of Children's Services and Education,
Hotels And Motels,Premier Travel Inns,Premier Inn,Agency and Third Party Payments related expenditure,05/10/2023,-889.48,"Director of Housing, Neighbourhood and Building Services",
Hotels And Motels,Premier Travel Inns,Premier Inn,Agency and Third Party Payments related expenditure,23/11/2023,889.47,"Director of Housing, Neighbourhood and Building Services",
Transportation Conveyor,Travel Agencies,Bkg*hotel At Booking.C,Supplies and Services related expenditure,09/10/2023,885,Director of Children's Services and Education,
Transportation Conveyor,Travel Agencies,Bkg*hotel At Booking.C,Agency and Third Party Payments related expenditure,03/11/2023,885,"Director of Housing, Neighbourhood and Building Services",
Hotels And Motels,Travelodge,Travelodge Gb0000,Agency and Third Party Payments related expenditure,01/12/2023,884.97,"Director of Housing, Neighbourhood and Building Services",
Business Services,Business Services - Default,Sp Sackmaker,Supplies and Services related expenditure,07/11/2023,884,"Director of Housing, Neighbourhood and Building Services",
Business To Business Eqpt/Furn,Commercial Equipment - Default,Host Online Ltd,Supplies and Services related expenditure,17/10/2023,879,Director of Corporate Services,
Facilities/Repair Supplies,Lawn/Garden Supply/Nursery,Carters Of Swanwic,Supplies and Services related expenditure,09/10/2023,878.06,"Director of Housing, Neighbourhood and Building Services",
Hotels And Motels,Hotel Ibis,Hotel Ibis,Supplies and Services related expenditure,05/12/2023,877.5,"Director of Housing, Neighbourhood and Building Services",
Hotels And Motels,Premier Travel Inns,Premier Inn,Agency and Third Party Payments related expenditure,12/12/2023,875.18,"Director of Housing, Neighbourhood and Building Services",
Hotels And Motels,Premier Travel Inns,Premier Inn,Agency and Third Party Payments related expenditure,13/10/2023,-872.39,"Director of Housing, Neighbourhood and Building Services",
Hotels And Motels,Premier Travel Inns,Premier Inn,Agency and Third Party Payments related expenditure,31/10/2023,-869.47,"Director of Housing, Neighbourhood and Building Services",
Hotels And Motels,Premier Travel Inns,Premier Inn,Agency and Third Party Payments related expenditure,12/12/2023,869.05,"Director of Housing, Neighbourhood and Building Services",
Transportation Conveyor,Travel Agencies,Bkg*hotel At Booking.C,Agency and Third Party Payments related expenditure,14/11/2023,868.33,"Director of Housing, Neighbourhood and Building Services",
Hotels And Motels,Premier Travel Inns,Premier Inn,Agency and Third Party Payments related expenditure,31/10/2023,-867.8,"Director of Housing, Neighbourhood and Building Services",
Hotels And Motels,Travelodge,Travelodge Gb0000,Agency and Third Party Payments related expenditure,26/10/2023,866.76,"Director of Housing, Neighbourhood and Building Services",
Hotels And Motels,Premier Travel Inns,Premier Inn,Agency and Third Party Payments related expenditure,27/12/2023,863.22,"Director of Housing, Neighbourhood and Building Services",
Hotels And Motels,Premier Travel Inns,Premier Inn,Agency and Third Party Payments related expenditure,10/10/2023,862.42,"Director of Housing, Neighbourhood and Building Services",
Hotels And Motels,Premier Travel Inns,Premier Inn,Agency and Third Party Payments related expenditure,05/12/2023,862.38,"Director of Housing, Neighbourhood and Building Services",
Hotels And Motels,Premier Travel Inns,Premier Inn,Agency and Third Party Payments related expenditure,11/12/2023,862.38,"Director of Housing, Neighbourhood and Building Services",
Hotels And Motels,Premier Travel Inns,Premier Inn,Agency and Third Party Payments related expenditure,27/12/2023,861.13,"Director of Housing, Neighbourhood and Building Services",
Facilities/Repair Supplies,Lawn/Garden Supply/Nursery,Carters Of Swanwic,Supplies and Services related expenditure,18/10/2023,860.18,"Director of Housing, Neighbourhood and Building Services",
Hotels And Motels,Premier Travel Inns,Premier Inn,Agency and Third Party Payments related expenditure,04/10/2023,-853.63,"Director of Housing, Neighbourhood and Building Services",
Hotels And Motels,Premier Travel Inns,Premier Inn,Agency and Third Party Payments related expenditure,12/12/2023,853.63,"Director of Housing, Neighbourhood and Building Services",
Hotels And Motels,Premier Travel Inns,Premier Inn,Agency and Third Party Payments related expenditure,03/10/2023,852.42,"Director of Housing, Neighbourhood and Building Services",
Other Supplies,Misc Gen Merchandise - Def,Ivo Group Ltd,Supplies and Services related expenditure,28/11/2023,852.42,"Director of Housing, Neighbourhood and Building Services",
Transportation Conveyor,Travel Agencies,Bkg*hotel At Booking.C,Agency and Third Party Payments related expenditure,02/11/2023,850.83,"Director of Housing, Neighbourhood and Building Services",
Hotels And Motels,Premier Travel Inns,Premier Inn,Agency and Third Party Payments related expenditure,05/12/2023,850.72,"Director of Housing, Neighbourhood and Building Services",
Transportation Conveyor,Travel Agencies,Bkg*hotel At Booking.C,Agency and Third Party Payments related expenditure,02/11/2023,849.17,"Director of Housing, Neighbourhood and Building Services",
Transportation Conveyor,Travel Agencies,Bkg*hotel At Booking.C,Agency and Third Party Payments related expenditure,05/10/2023,847.92,"Director of Housing, Neighbourhood and Building Services",
Other Supplies,Misc Speciality Retail,W&p / Medirite,Premises related expenditure,26/10/2023,847.11,Director of Portsmouth International Port,
Hotels And Motels,Premier Travel Inns,Premier Inn,Agency and Third Party Payments related expenditure,28/12/2023,845.3,"Director of Housing, Neighbourhood and Building Services",
Hotels And Motels,Premier Travel Inns,Premier Inn,Agency and Third Party Payments related expenditure,04/10/2023,-844.88,"Director of Housing, Neighbourhood and Building Services",
Business To Business Eqpt/Furn,Commercial Furniture,Online Ergonomics Ltd,Supplies and Services related expenditure,07/12/2023,843.8,Director of Children's Services and Education,
Transportation Conveyor,Travel Agencies,Bkg*hotel At Booking.C,Agency and Third Party Payments related expenditure,23/11/2023,843.24,"Director of Housing, Neighbourhood and Building Services",
Transportation Conveyor,Travel Agencies,Bkg*hotel At Booking.C,Agency and Third Party Payments related expenditure,26/10/2023,841.67,"Director of Housing, Neighbourhood and Building Services",
Transportation Conveyor,Travel Agencies,Bkg*hotel At Booking.C,Agency and Third Party Payments related expenditure,22/11/2023,841.67,"Director of Housing, Neighbourhood and Building Services",
Transportation Conveyor,Travel Agencies,Bkg*hotel At Booking.C,Agency and Third Party Payments related expenditure,08/11/2023,840,"Director of Housing, Neighbourhood and Building Services",
Transportation Conveyor,Travel Agencies,Bkg*hotel At Booking.C,Agency and Third Party Payments related expenditure,02/11/2023,839.17,"Director of Housing, Neighbourhood and Building Services",
Transportation Conveyor,Travel Agencies,Bkg*hotel At Booking.C,Agency and Third Party Payments related expenditure,02/11/2023,839.17,"Director of Housing, Neighbourhood and Building Services",
Miscellaneous,Agricultural Co-Operativ,Palmsteadnu,Premises related expenditure,13/11/2023,838.43,"Director of Housing, Neighbourhood and Building Services",
Hotels And Motels,Premier Travel Inns,Premier Inn,Agency and Third Party Payments related expenditure,12/12/2023,838.22,"Director of Housing, Neighbourhood and Building Services",
Hotels And Motels,Travelodge,Travelodge Gb0000,Supplies and Services related expenditure,05/12/2023,837.12,Director of Children's Services and Education,
Other Supplies,Misc Speciality Retail,W&p / Medirite,Supplies and Services related expenditure,05/12/2023,835.91,"Director of Housing, Neighbourhood and Building Services",
Transportation Conveyor,Travel Agencies,Bkg*hotel At Booking.C,Premises related expenditure,04/10/2023,835.21,"Director of Housing, Neighbourhood and Building Services",
Transportation Conveyor,Travel Agencies,Bkg*hotel At Booking.C,Agency and Third Party Payments related expenditure,08/11/2023,835,"Director of Housing, Neighbourhood and Building Services",
Transportation Conveyor,Travel Agencies,Bkg*hotel At Booking.C,Agency and Third Party Payments related expenditure,08/11/2023,835,"Director of Housing, Neighbourhood and Building Services",
Transportation Conveyor,Travel Agencies,Bkg*hotel At Booking.C,Agency and Third Party Payments related expenditure,08/11/2023,835,"Director of Housing, Neighbourhood and Building Services",
Transportation Conveyor,Travel Agencies,Bkg*hotel At Booking.C,Agency and Third Party Payments related expenditure,08/11/2023,835,"Director of Housing, Neighbourhood and Building Services",
Transportation Conveyor,Travel Agencies,Bkg*hotel At Booking.C,Agency and Third Party Payments related expenditure,22/11/2023,834.17,"Director of Housing, Neighbourhood and Building Services",
Facilities/Repair Supplies,Lawn/Garden Supply/Nursery,M & S Enterprises,Supplies and Services related expenditure,30/10/2023,833.21,"Director of Housing, Neighbourhood and Building Services",
Hotels And Motels,Hotel Ibis,Hotel Ibis,Supplies and Services related expenditure,12/12/2023,831.09,"Director of Housing, Neighbourhood and Building Services",
Transportation Conveyor,Travel Agencies,Bkg*hotel At Booking.C,Agency and Third Party Payments related expenditure,02/11/2023,829.17,"Director of Housing, Neighbourhood and Building Services",
Hotels And Motels,Premier Travel Inns,Premier Inn,Agency and Third Party Payments related expenditure,05/12/2023,829.05,"Director of Housing, Neighbourhood and Building Services",
Business To Business Facility/,Electrical Parts/Equipment,Newey & Eyre,Supplies and Services related expenditure,16/11/2023,828,"Director of Housing, Neighbourhood and Building Services",
Business To Business Facility/,Industrial Supplies - Def,Arco Limited,Supplies and Services related expenditure,13/10/2023,827.52,"Director of Housing, Neighbourhood and Building Services",
Other Supplies,Misc Speciality Retail,W&p / Medirite,Premises related expenditure,28/11/2023,827.16,"Director of Housing, Neighbourhood and Building Services",
Transportation Conveyor,Travel Agencies,Bkg*hotel At Booking.C,Agency and Third Party Payments related expenditure,21/11/2023,823.7,"Director of Housing, Neighbourhood and Building Services",
Hotels And Motels,Travelodge,Travelodge Gb0000,Agency and Third Party Payments related expenditure,25/10/2023,823.22,"Director of Housing, Neighbourhood and Building Services",
Hotels And Motels,Premier Travel Inns,Premier Inn,Agency and Third Party Payments related expenditure,05/12/2023,823.22,"Director of Housing, Neighbourhood and Building Services",
Business To Business Facility/,Industrial Supplies - Def,Arco Ltd,Supplies and Services related expenditure,06/10/2023,822.39,Director of Regeneration,
Hotels And Motels,Premier Travel Inns,Premier Inn,Agency and Third Party Payments related expenditure,07/12/2023,821.13,"Director of Housing, Neighbourhood and Building Services",
Transportation Conveyor,Travel Agencies,Bkg*hotel At Booking.C,Agency and Third Party Payments related expenditure,16/10/2023,816.67,"Director of Housing, Neighbourhood and Building Services",
Transportation Conveyor,Travel Agencies,Bkg*hotel At Booking.C,Agency and Third Party Payments related expenditure,26/10/2023,816.67,"Director of Housing, Neighbourhood and Building Services",
Transportation Conveyor,Travel Agencies,Bkg*hotel At Booking.C,Agency and Third Party Payments related expenditure,01/12/2023,816.67,"Director of Housing, Neighbourhood and Building Services",
Business To Business Facility/,Industrial Supplies - Def,Www.Agri-Gem.Co.Uk,Supplies and Services related expenditure,15/12/2023,815.83,"Director of Culture, Leisure & Regulatory Services",
Transportation Conveyor,Travel Agencies,Bkg*hotel At Booking.C,Agency and Third Party Payments related expenditure,26/10/2023,812.5,"Director of Housing, Neighbourhood and Building Services",
Transportation Conveyor,Travel Agencies,Bkg*hotel At Booking.C,Agency and Third Party Payments related expenditure,26/10/2023,812.5,"Director of Housing, Neighbourhood and Building Services",
Hotels And Motels,Premier Travel Inns,Premier Inn,Agency and Third Party Payments related expenditure,05/12/2023,810.72,"Director of Housing, Neighbourhood and Building Services",
Hotels And Motels,Premier Travel Inns,Premier Inn,Agency and Third Party Payments related expenditure,05/12/2023,810.65,"Director of Housing, Neighbourhood and Building Services",
Business Expenses/Services,Computer Maint/Svcs - Def,Truecommerce Manchester,Supplies and Services related expenditure,21/12/2023,810.31,Director of Finance & Resources,
Other Supplies,Misc Speciality Retail,W&p / Medirite,Supplies and Services related expenditure,06/11/2023,807.2,"Director of Housing, Neighbourhood and Building Services",
Professional Services,Architectural/Eng/Survey,Trimble Solutions Uk,Supplies and Services related expenditure,16/10/2023,805,Director of Portsmouth International Port,
Utility,Utilities/Elec/Gas/H2O/Sani,Yellowstone Envrionmen,Premises related expenditure,15/12/2023,805,"Director of Housing, Neighbourhood and Building Services",
Hotels And Motels,Premier Travel Inns,Premier Inn,Agency and Third Party Payments related expenditure,06/12/2023,799.05,"Director of Housing, Neighbourhood and Building Services",
Transportation Conveyor,Travel Agencies,Bkg*hotel At Booking.C,Agency and Third Party Payments related expenditure,13/11/2023,795.64,"Director of Housing, Neighbourhood and Building Services",
Hotels And Motels,Premier Travel Inns,Premier Inn,Agency and Third Party Payments related expenditure,08/12/2023,794.47,"Director of Housing, Neighbourhood and Building Services",
Facilities/Repair Supplies,Lawn/Garden Supply/Nursery,M & S Enterprises,Supplies and Services related expenditure,26/10/2023,794.46,"Director of Housing, Neighbourhood and Building Services",
Transportation Conveyor,Travel Agencies,Bkg*hotel At Booking.C,Agency and Third Party Payments related expenditure,01/12/2023,-792.59,"Director of Housing, Neighbourhood and Building Services",
Utility,Utilities/Elec/Gas/H2O/Sani,E.On Next,Agency and Third Party Payments related expenditure,09/10/2023,789.96,"Director of Housing, Neighbourhood and Building Services",
Hotels And Motels,Lodging/Hotels/Motels/Resorts,Butlins,Supplies and Services related expenditure,24/10/2023,788.97,Director of Adult Care,
Business To Business Eqpt/Furn,Commercial Equipment - Default,Safety Signs 4 Less,Supplies and Services related expenditure,18/12/2023,786.5,"Director of Housing, Neighbourhood and Building Services",
Hotels And Motels,Hotel Ibis,Hotel Ibis,Supplies and Services related expenditure,30/11/2023,785.82,"Director of Housing, Neighbourhood and Building Services",
Other Supplies,Misc Speciality Retail,W&p / Medirite,Premises related expenditure,16/10/2023,785.72,"Director of Housing, Neighbourhood and Building Services",
Hotels And Motels,Premier Travel Inns,Premier Inn,Agency and Third Party Payments related expenditure,07/12/2023,781.97,"Director of Housing, Neighbourhood and Building Services",
Facilities/Repair Services,Spec Contractors - Default,Southern Water Service,Premises related expenditure,23/11/2023,776.86,Director of Portsmouth International Port,
Business Services,Business Services - Default,Croma Locksmiths & Sec,Supplies and Services related expenditure,05/12/2023,772,"Director of Housing, Neighbourhood and Building Services",
Hotels And Motels,Lodging/Hotels/Motels/Resorts,Sajo Property,Supplies and Services related expenditure,02/11/2023,770,Director of Children's Services and Education,
Hotels And Motels,Lodging/Hotels/Motels/Resorts,Sajo Property,Supplies and Services related expenditure,03/11/2023,770,Director of Children's Services and Education,
Hotels And Motels,Lodging/Hotels/Motels/Resorts,Sajo Property,Supplies and Services related expenditure,13/12/2023,770,Director of Children's Services and Education,
Hotels And Motels,Lodging/Hotels/Motels/Resorts,Sajo Property,Supplies and Services related expenditure,13/12/2023,770,Director of Children's Services and Education,
Hotels And Motels,Lodging/Hotels/Motels/Resorts,Sajo Property,Supplies and Services related expenditure,13/12/2023,770,Director of Children's Services and Education,
Hotels And Motels,Lodging/Hotels/Motels/Resorts,Sajo Property,Supplies and Services related expenditure,13/12/2023,770,Director of Children's Services and Education,
Hotels And Motels,Lodging/Hotels/Motels/Resorts,Sajo Property,Supplies and Services related expenditure,13/12/2023,770,Director of Children's Services and Education,
Hotels And Motels,Hotel Ibis,Hotel Ibis,Supplies and Services related expenditure,08/12/2023,768.51,"Director of Housing, Neighbourhood and Building Services",
Type of Retail Store,Electronics Sales,Currys Online,Supplies and Services related expenditure,18/12/2023,765,"Director of Housing, Neighbourhood and Building Services",
Transportation Conveyor,Travel Agencies,Bkg*hotel At Booking.C,Agency and Third Party Payments related expenditure,13/10/2023,759.3,"Director of Housing, Neighbourhood and Building Services",
Type of Retail Store,Electronics Sales,Currys Portsmouth,Supplies and Services related expenditure,11/10/2023,759.27,Director of Children's Services and Education,
Business To Business Services,Misc Publishing & Printing,Www.Solopress.Com,Supplies and Services related expenditure,10/10/2023,758.01,"Director of Culture, Leisure & Regulatory Services",
Other Supplies,Misc Speciality Retail,W&p / Medirite,Premises related expenditure,13/12/2023,753.62,"Director of Housing, Neighbourhood and Building Services",
Transportation Conveyor,Travel Agencies,Bkg*hotel At Booking.C,Agency and Third Party Payments related expenditure,08/11/2023,751.54,"Director of Housing, Neighbourhood and Building Services",
Miscellaneous,Charitable/Soc Service Orgs,London Hearts,Capital related expenditure,13/11/2023,750,"Capital - Culture, Leisure & Economic Development",
Facilities Maintenance,Specialty Cleaning/Polishing,Complex Cleaning Suppl,Supplies and Services related expenditure,15/12/2023,750,"Director of Housing, Neighbourhood and Building Services",
Other Supplies,Variety Stores,Paypal,Supplies and Services related expenditure,07/12/2023,744.95,Director of Adult Care,
Business To Business Eqpt/Furn,Commercial Equipment - Default,Safety Signs 4 Less,Supplies and Services related expenditure,29/11/2023,744.75,"Director of Housing, Neighbourhood and Building Services",
Hotels And Motels,Travelodge,Travelodge Gb0000,Agency and Third Party Payments related expenditure,09/11/2023,-743.72,"Director of Housing, Neighbourhood and Building Services",
Hotels And Motels,Travelodge,Travelodge Gb0000,Agency and Third Party Payments related expenditure,11/12/2023,742.53,"Director of Housing, Neighbourhood and Building Services",
Miscellaneous,Charitable/Soc Service Orgs,Shared Lives Plus Limi,Supplies and Services related expenditure,30/11/2023,740.62,Director of Adult Care,
Hotels And Motels,Travelodge,Travelodge Gb0000,Agency and Third Party Payments related expenditure,17/10/2023,740.57,"Director of Housing, Neighbourhood and Building Services",
Transportation Conveyor,Travel Agencies,Bkg*hotel At Booking.C,Agency and Third Party Payments related expenditure,16/10/2023,737.5,"Director of Housing, Neighbourhood and Building Services",
Other Supplies,Misc Gen Merchandise - Def,Sp Medisave.Co.Uk,Supplies and Services related expenditure,05/12/2023,735.54,Director of Children's Services and Education,
Business Services,Business Services - Default,Fire Aid Academy Ltd,Employees related expenditure,06/12/2023,735,Director of Portsmouth International Port,
Hotels And Motels,Premier Travel Inns,Premier Inn,Agency and Third Party Payments related expenditure,05/12/2023,733.17,"Director of Housing, Neighbourhood and Building Services",
Hotels And Motels,Premier Travel Inns,Premier Inn,Agency and Third Party Payments related expenditure,05/12/2023,733.17,"Director of Housing, Neighbourhood and Building Services",
Equipment And Furniture,Household Appliance Stores,Ao Retail Limited,Supplies and Services related expenditure,22/11/2023,727.5,"Director of Housing, Neighbourhood and Building Services",
Hotels And Motels,Travelodge,Travelodge Gb0000,Agency and Third Party Payments related expenditure,01/12/2023,725.09,"Director of Housing, Neighbourhood and Building Services",
Facilities/Repair Supplies,Lawn/Garden Supply/Nursery,Carters Of Swanwic,Supplies and Services related expenditure,09/11/2023,723.84,"Director of Housing, Neighbourhood and Building Services",
Facilities/Repair Supplies,Lawn/Garden Supply/Nursery,Carters Of Swanwic,Supplies and Services related expenditure,15/12/2023,723.66,"Director of Housing, Neighbourhood and Building Services",
Transportation Conveyor,Travel Agencies,Bkg*hotel At Booking.C,Agency and Third Party Payments related expenditure,24/11/2023,723.21,"Director of Housing, Neighbourhood and Building Services",
Transportation Conveyor,Travel Agencies,Bkg*hotel At Booking.C,Agency and Third Party Payments related expenditure,24/11/2023,723.21,"Director of Housing, Neighbourhood and Building Services",
Transportation Conveyor,Travel Agencies,Bkg*hotel At Booking.C,Agency and Third Party Payments related expenditure,27/12/2023,721.25,"Director of Housing, Neighbourhood and Building Services",
Hotels And Motels,Premier Travel Inns,Premier Inn,Agency and Third Party Payments related expenditure,05/12/2023,720.32,"Director of Housing, Neighbourhood and Building Services",
Transportation Conveyor,Travel Agencies,Bkg*hotel At Booking.C,Agency and Third Party Payments related expenditure,22/11/2023,716.12,"Director of Housing, Neighbourhood and Building Services",
Facilities/Repair Supplies,Lawn/Garden Supply/Nursery,Www.Tudorenvironmental,Supplies and Services related expenditure,20/10/2023,710.27,"Director of Culture, Leisure & Regulatory Services",
Other Supplies,Misc Speciality Retail,W&p / Medirite,Premises related expenditure,06/10/2023,706.68,"Director of Housing, Neighbourhood and Building Services",
Transportation Conveyor,Travel Agencies,Bkg*hotel At Booking.C,Agency and Third Party Payments related expenditure,11/12/2023,705.5,"Director of Housing, Neighbourhood and Building Services",
Miscellaneous,Veterinary Service,Harbour Veterinary Gro,Supplies and Services related expenditure,03/10/2023,704.27,"Director of Housing, Neighbourhood and Building Services",
Hotels And Motels,Premier Travel Inns,Premier Inn,Agency and Third Party Payments related expenditure,16/10/2023,702.84,"Director of Housing, Neighbourhood and Building Services",
Transportation Conveyor,Travel Agencies,Bkg*hotel At Booking.C,Agency and Third Party Payments related expenditure,11/12/2023,701.67,"Director of Housing, Neighbourhood and Building Services",
Other Supplies,Misc Speciality Retail,Zettle_*vocal Star Limite,Supplies and Services related expenditure,23/11/2023,701.66,"Director of Housing, Neighbourhood and Building Services",
Other Supplies,Misc Speciality Retail,W&p / Medirite,Premises related expenditure,18/12/2023,701.59,"Director of Housing, Neighbourhood and Building Services",
Business Services,Advertising Services,Facebk *jbyc9utql2,Supplies and Services related expenditure,04/10/2023,700,"Director of Culture, Leisure & Regulatory Services",
Business Services,Advertising Services,Facebk Hway8u38z2,Supplies and Services related expenditure,05/10/2023,700,Director of Corporate Services,
Business Services,Advertising Services,Facebk *6wldevppl2,Supplies and Services related expenditure,10/10/2023,700,"Director of Culture, Leisure & Regulatory Services",
Business Services,Advertising Services,Facebk *c93p4vxpl2,Supplies and Services related expenditure,14/10/2023,700,"Director of Culture, Leisure & Regulatory Services",
Business Services,Advertising Services,Facebk *xsj8cvfql2,Supplies and Services related expenditure,22/10/2023,700,"Director of Culture, Leisure & Regulatory Services",
Business Services,Advertising Services,Facebk Edv7fwt8z2,Supplies and Services related expenditure,23/10/2023,700,Director of Corporate Services,
Business Services,Advertising Services,Facebk Fjmbqux7z2,Supplies and Services related expenditure,31/10/2023,700,Director of Corporate Services,
Amusement/Entertainment,Amusement/Rec Serv - Def,Stansted Park,Supplies and Services related expenditure,02/11/2023,700,"Director of Culture, Leisure & Regulatory Services",
Business Services,Advertising Services,Facebk Zpm5su78z2,Supplies and Services related expenditure,09/11/2023,700,Director of Corporate Services,
Business Services,Advertising Services,Facebk 2pa2hvt7z2,Supplies and Services related expenditure,12/11/2023,700,Director of Corporate Services,
Business Services,Advertising Services,Facebk Y963nv38z2,Supplies and Services related expenditure,15/11/2023,700,Director of Corporate Services,
Business Services,Advertising Services,Facebk Ghn54vp8z2,Supplies and Services related expenditure,19/11/2023,700,Director of Corporate Services,
Business Services,Advertising Services,Facebk Ujw8tvb8z2,Supplies and Services related expenditure,25/11/2023,700,Director of Corporate Services,
Hotels And Motels,Lodging/Hotels/Motels/Resorts,Sajo Property,Agency and Third Party Payments related expenditure,04/12/2023,700,"Director of Housing, Neighbourhood and Building Services",
Business Services,Advertising Services,Facebk Qbketwk8z2,Supplies and Services related expenditure,19/12/2023,700,Director of Corporate Services,
Hotels And Motels,Lodging/Hotels/Motels/Resorts,Sajo Property,Agency and Third Party Payments related expenditure,27/12/2023,700,"Director of Housing, Neighbourhood and Building Services",
Facilities/Repair Supplies,Lawn/Garden Supply/Nursery,Carters Of Swanwic,Supplies and Services related expenditure,30/11/2023,699,"Director of Housing, Neighbourhood and Building Services",
Transportation Conveyor,Travel Agencies,Bkg*hotel At Booking.C,Agency and Third Party Payments related expenditure,27/12/2023,698.42,"Director of Housing, Neighbourhood and Building Services",
Other Supplies,Misc Speciality Retail,W&p / Medirite,Supplies and Services related expenditure,09/10/2023,698.16,"Director of Housing, Neighbourhood and Building Services",
Transportation Conveyor,Travel Agencies,Bkg*hotel At Booking.C,Supplies and Services related expenditure,02/11/2023,696.25,Director of Children's Services and Education,
Hotels And Motels,Travelodge,Travelodge Gb0000,Agency and Third Party Payments related expenditure,17/10/2023,694.65,"Director of Housing, Neighbourhood and Building Services",
Other Supplies,Misc Speciality Retail,W&p / Medirite,Supplies and Services related expenditure,05/12/2023,692.8,"Director of Housing, Neighbourhood and Building Services",
Other Supplies,Misc Speciality Retail,Www.Thorne.Co.Uk,Supplies and Services related expenditure,21/11/2023,692.5,"Director of Housing, Neighbourhood and Building Services",
Business To Business Eqpt/Furn,Book Stores,Www.Jctltd.Co.Uk,Supplies and Services related expenditure,10/11/2023,692.33,"Director of Housing, Neighbourhood and Building Services",
Business To Business Eqpt/Furn,Stationery/Office Supplies,Www.Banneruk.Com,Supplies and Services related expenditure,01/12/2023,691.5,Director of Corporate Services,
Facilities/Repair Supplies,Lumber/Build. Supply Stores,F H Brundle,Premises related expenditure,12/10/2023,690.2,Director of Portsmouth International Port,
Business Services,Business Services - Default,Www.Cl-Events.Com,Supplies and Services related expenditure,13/10/2023,690,Director of Portsmouth International Port,
Professional Services,Professional Services - Def,Sq *public Policy Exchang,Agency and Third Party Payments related expenditure,29/11/2023,684,Director of Regeneration,
Business Services,Advertising Services,Facebk 5verywb8z2,Supplies and Services related expenditure,31/12/2023,681.15,Director of Corporate Services,
Hotels And Motels,Travelodge,Travelodge Gb0000,Agency and Third Party Payments related expenditure,28/12/2023,680.71,"Director of Housing, Neighbourhood and Building Services",
Business To Business Eqpt/Furn,Stationery/Office Supplies,Www.Banneruk.Com,Supplies and Services related expenditure,02/10/2023,675.81,"Director of Culture, Leisure & Regulatory Services",
Equipment And Furniture,Furniture/Equip Stores,Christmastreeworld Ltd,Supplies and Services related expenditure,23/10/2023,674.96,"Director of Culture, Leisure & Regulatory Services",
Transportation Conveyor,Travel Agencies,Bkg*hotel At Booking.C,Agency and Third Party Payments related expenditure,08/11/2023,673.25,"Director of Housing, Neighbourhood and Building Services",
Hotels And Motels,Premier Travel Inns,Premier Inn,Agency and Third Party Payments related expenditure,17/10/2023,672,"Director of Housing, Neighbourhood and Building Services",
Business Services,Advertising Services,Facebk *tg4wfvtpl2,Supplies and Services related expenditure,18/11/2023,671.76,"Director of Culture, Leisure & Regulatory Services",
Transportation Conveyor,Travel Agencies,Bkg*hotel At Booking.C,Agency and Third Party Payments related expenditure,27/12/2023,669.17,"Director of Housing, Neighbourhood and Building Services",
Hotels And Motels,Lodging/Hotels/Motels/Resorts,Queens Hotel,Supplies and Services related expenditure,10/11/2023,666.67,Director of Children's Services and Education,
Business To Business Facility/,Electrical Parts/Equipment,Trafalgar Cleaning Equip,Supplies and Services related expenditure,22/11/2023,665.72,"Director of Housing, Neighbourhood and Building Services",
Business To Business Eqpt/Furn,Book Stores,Www.Jctltd.Co.Uk,Supplies and Services related expenditure,15/11/2023,664.33,"Director of Housing, Neighbourhood and Building Services",
Amusement/Entertainment,Bands/Orchestras/Entertain,Portsmouthguildhall,Supplies and Services related expenditure,17/11/2023,663,Director of Children's Services and Education,
Other Supplies,Misc Speciality Retail,W&p / Medirite,Premises related expenditure,18/12/2023,661.61,"Director of Housing, Neighbourhood and Building Services",
Transportation Conveyor,Travel Agencies,Bkg*hotel At Booking.C,Supplies and Services related expenditure,06/11/2023,-658.75,Director of Children's Services and Education,
Business To Business Facility/,Electrical Parts/Equipment,Rs Components,Supplies and Services related expenditure,23/11/2023,654.15,Director of Regeneration,
Business Services,Business Services - Default,Vivid Housing Ltd,Supplies and Services related expenditure,29/11/2023,653.47,"Director of Housing, Neighbourhood and Building Services",
Facilities/Repair Supplies,Lawn/Garden Supply/Nursery,M & S Enterprises,Supplies and Services related expenditure,26/10/2023,649.09,"Director of Housing, Neighbourhood and Building Services",
Facilities/Repair Supplies,Lawn/Garden Supply/Nursery,M & S Enterprises,Supplies and Services related expenditure,30/10/2023,649.08,"Director of Housing, Neighbourhood and Building Services",
Business To Business Facility/,Industrial Supplies - Def,Cable Ties Direct,Supplies and Services related expenditure,20/11/2023,646.22,Director of Regeneration,
Transportation Conveyor,Travel Agencies,Bkg*hotel At Booking.C,Premises related expenditure,14/11/2023,645.83,"Director of Housing, Neighbourhood and Building Services",
Hotels And Motels,Premier Travel Inns,Premier Inn,Agency and Third Party Payments related expenditure,24/10/2023,644.47,"Director of Housing, Neighbourhood and Building Services",
Equipment And Furniture,Furniture/Equip Stores,Dunelm Softfurnishings,Supplies and Services related expenditure,25/10/2023,643,Director of Children's Services and Education,
Facilities/Repair Supplies,Lawn/Garden Supply/Nursery,Carters Of Swanwic,Supplies and Services related expenditure,20/12/2023,642.8,"Director of Housing, Neighbourhood and Building Services",
Hotels And Motels,Premier Travel Inns,Premier Inn,Agency and Third Party Payments related expenditure,03/10/2023,642.02,"Director of Housing, Neighbourhood and Building Services",
Type of Retail Store,Electronics Sales,Currys Online,Supplies and Services related expenditure,17/10/2023,640.83,"Director of Culture, Leisure & Regulatory Services",
Facilities/Repair Supplies,Lawn/Garden Supply/Nursery,M & S Enterprises,Premises related expenditure,03/11/2023,640.45,"Director of Housing, Neighbourhood and Building Services",
Miscellaneous,Member Organizations - Def,Institute Of Econ Dev,Supplies and Services related expenditure,21/11/2023,639,Solent LEP,
Business To Business Eqpt/Furn,Stationery/Office Supplies,Www.Banneruk.Com,Supplies and Services related expenditure,27/10/2023,635.81,"Director of Culture, Leisure & Regulatory Services",
Transportation Conveyor,Travel Agencies,Bkg*hotel At Booking.C,Agency and Third Party Payments related expenditure,03/11/2023,635,"Director of Housing, Neighbourhood and Building Services",
Business Expenses/Services,Quick Copy/Repro Services,Custom Labels Ltd,Supplies and Services related expenditure,18/12/2023,635,Director of Portsmouth International Port,
Equipment And Furniture,Equip/Furn Rent/Lease Serv,Generation Chichester,Supplies and Services related expenditure,04/12/2023,630,"Director of Housing, Neighbourhood and Building Services",
Hotels And Motels,Premier Travel Inns,Premier Inn,Agency and Third Party Payments related expenditure,01/12/2023,626.97,"Director of Housing, Neighbourhood and Building Services",
Other Supplies,Department Stores,Www.Argos.Co.Uk,Agency and Third Party Payments related expenditure,19/12/2023,625.95,Director of Children's Services and Education,
Business To Business Eqpt/Furn,Commercial Equipment - Default,Parts Town UK Limited,Supplies and Services related expenditure,07/12/2023,625.5,Director of Children's Services and Education,
Transportation Conveyor,Travel Agencies,Bkg*hotel At Booking.C,Agency and Third Party Payments related expenditure,16/10/2023,623.83,"Director of Housing, Neighbourhood and Building Services",
Freight/Courier/Warehouse Svcs,Public Warehousing,Big Yellow - Portsmout,Premises related expenditure,07/12/2023,621.25,"Director of Housing, Neighbourhood and Building Services",
Facilities/Repair Services,Gen Contractors Residentl/Coml,Sumup *flooring By A,Premises related expenditure,19/11/2023,620,Director of Children's Services and Education,
Type of Retail Store,Electronics Sales,Currys Online,Supplies and Services related expenditure,16/10/2023,618.99,Director of Adult Care,
Freight/Courier/Warehouse Svcs,Public Warehousing,Big Yellow - Portsmout,Premises related expenditure,12/12/2023,617.92,"Director of Housing, Neighbourhood and Building Services",
Hotels And Motels,Travelodge,Travelodge Gb0000,Agency and Third Party Payments related expenditure,04/12/2023,616,"Director of Housing, Neighbourhood and Building Services",
Business To Business Eqpt/Furn,Stationery/Office Supplies,Www.Banneruk.Com,Supplies and Services related expenditure,27/10/2023,615.89,"Director of Culture, Leisure & Regulatory Services",
Transportation Conveyor,Travel Agencies,Bkg*hotel At Booking.C,Agency and Third Party Payments related expenditure,01/12/2023,614.17,"Director of Housing, Neighbourhood and Building Services",
Transportation Conveyor,Travel Agencies,Esky Eskyuk,Transport related expenditure,15/11/2023,612.6,Director of Regeneration,
Facilities/Repair Supplies,Lawn/Garden Supply/Nursery,Carters Of Swanwic,Supplies and Services related expenditure,09/10/2023,610.03,"Director of Housing, Neighbourhood and Building Services",
Transportation Conveyor,Travel Agencies,Bkg*hotel At Booking.C,Agency and Third Party Payments related expenditure,03/11/2023,609.3,"Director of Housing, Neighbourhood and Building Services",
Transportation Conveyor,Travel Agencies,Bkg*hotel At Booking.C,Agency and Third Party Payments related expenditure,04/10/2023,-607.21,"Director of Housing, Neighbourhood and Building Services",
Transportation Conveyor,Travel Agencies,Bkg*hotel At Booking.C,Agency and Third Party Payments related expenditure,04/10/2023,-607.21,"Director of Housing, Neighbourhood and Building Services",
Transportation Conveyor,Travel Agencies,Bkg*hotel At Booking.C,Agency and Third Party Payments related expenditure,17/11/2023,606.41,"Director of Housing, Neighbourhood and Building Services",
Other Supplies,Misc Gen Merchandise - Def,Incuk,Supplies and Services related expenditure,24/10/2023,605.87,Director of Adult Care,
Hotels And Motels,Premier Travel Inns,Premier Inn,Agency and Third Party Payments related expenditure,02/11/2023,603.63,"Director of Housing, Neighbourhood and Building Services",
Other Supplies,Misc Speciality Retail,W&p / Medirite,Premises related expenditure,15/11/2023,600.2,"Director of Housing, Neighbourhood and Building Services",
Hotels And Motels,Travelodge,Travelodge Gb0000,Supplies and Services related expenditure,05/10/2023,600.04,Director of Children's Services and Education,
Government Service,Govt Serv - Default,Calshot Activity Ctr,Supplies and Services related expenditure,03/10/2023,600,Director of Children's Services and Education,
Business Services,Business Services - Default,Vivid Housing Ltd,Supplies and Services related expenditure,06/10/2023,600,Director of Children's Services and Education,
Hotels And Motels,Lodging/Hotels/Motels/Resorts,Village Hotels,Supplies and Services related expenditure,02/11/2023,600,Director of Children's Services and Education,
Amusement/Entertainment,Amusement/Rec Serv - Def,Www.Lasersquad.Co.Uk,Supplies and Services related expenditure,05/12/2023,600,"Director of Housing, Neighbourhood and Building Services",
Medical,Lab/Med/Hospital Equipment,Easy Living Mobility,Supplies and Services related expenditure,13/10/2023,599.98,Director of Adult Care,
Transportation Conveyor,Travel Agencies,Expedia Expedia 726745238,Agency and Third Party Payments related expenditure,09/10/2023,599.93,"Director of Housing, Neighbourhood and Building Services",
Hotels And Motels,Premier Travel Inns,Premier Inn,Agency and Third Party Payments related expenditure,05/12/2023,599.08,"Director of Housing, Neighbourhood and Building Services",
Hotels And Motels,Premier Travel Inns,Premier Inn,Agency and Third Party Payments related expenditure,14/11/2023,596.97,"Director of Housing, Neighbourhood and Building Services",
Transportation Conveyor,Travel Agencies,Bkg*hotel At Booking.C,Agency and Third Party Payments related expenditure,22/11/2023,593.33,"Director of Housing, Neighbourhood and Building Services",
Other Supplies,Misc Gen Merchandise - Def,In Car Safety Centre,Supplies and Services related expenditure,25/10/2023,590.79,Director of Children's Services and Education,
Other Supplies,Misc Speciality Retail,The Sign Shop,Supplies and Services related expenditure,18/10/2023,590,"Director of Housing, Neighbourhood and Building Services",
Facilities/Repair Supplies,Misc Home Furnishing,Interior Goods Direct,Premises related expenditure,12/12/2023,589.43,Director of Children's Services and Education,
Other Supplies,Misc Speciality Retail,W&p / Medirite,Premises related expenditure,22/11/2023,589.19,"Director of Housing, Neighbourhood and Building Services",
Facilities/Repair Supplies,Lumber/Build. Supply Stores,B&q Marketplace,Supplies and Services related expenditure,19/10/2023,588,Director of Children's Services and Education,
Hotels And Motels,Premier Travel Inns,Premier Inn,Agency and Third Party Payments related expenditure,24/10/2023,585.72,"Director of Housing, Neighbourhood and Building Services",
Hotels And Motels,Lodging/Hotels/Motels/Resorts,Pembroke Park Hotel,Supplies and Services related expenditure,16/10/2023,583.33,"Director of Housing, Neighbourhood and Building Services",
Hotels And Motels,Lodging/Hotels/Motels/Resorts,Pembroke Park Hotel,Supplies and Services related expenditure,25/10/2023,583.33,"Director of Housing, Neighbourhood and Building Services",
Hotels And Motels,Lodging/Hotels/Motels/Resorts,Pembroke Park Hotel,Supplies and Services related expenditure,13/11/2023,583.33,"Director of Housing, Neighbourhood and Building Services",
Hotels And Motels,Lodging/Hotels/Motels/Resorts,Pembroke Park Hotel,Supplies and Services related expenditure,16/11/2023,583.33,"Director of Housing, Neighbourhood and Building Services",
Hotels And Motels,Lodging/Hotels/Motels/Resorts,Pembroke Park Hotel,Supplies and Services related expenditure,24/11/2023,583.33,"Director of Housing, Neighbourhood and Building Services",
Hotels And Motels,Lodging/Hotels/Motels/Resorts,Pembroke Park Hotel,Supplies and Services related expenditure,28/11/2023,583.33,"Director of Housing, Neighbourhood and Building Services",
Hotels And Motels,Hotel Ibis,Hotel Ibis,Supplies and Services related expenditure,20/12/2023,582.75,"Director of Housing, Neighbourhood and Building Services",
Hotels And Motels,Travelodge,Travelodge Gb0000,Supplies and Services related expenditure,22/12/2023,577.02,Director of Children's Services and Education,
Facilities Maintenance,Clean/Maint/Janitoral Serv,Hooper Services Limited,Capital related expenditure,30/10/2023,577.01,"Director of Housing, Neighbourhood and Building Services",
Hotels And Motels,Premier Travel Inns,Premier Inn,Agency and Third Party Payments related expenditure,05/12/2023,574.51,"Director of Housing, Neighbourhood and Building Services",
Business Services,Advertising Services,Facebk Rv4rfv78z2,Supplies and Services related expenditure,30/11/2023,568.83,Director of Corporate Services,
Clothing Services,Mens/Womens Clothing Stores,Designs Alike,Supplies and Services related expenditure,14/12/2023,568.25,Director of Children's Services and Education,
Business To Business Eqpt/Furn,Computer Software Stores,Dri*,Supplies and Services related expenditure,21/11/2023,566.66,Director of Public Health,
Business To Business Eqpt/Furn,Computer Software Stores,Forest Rock Systems,Supplies and Services related expenditure,07/10/2023,565.96,Capital - Transport,
Transportation Conveyor,Travel Agencies,Bkg*hotel At Booking.C,Supplies and Services related expenditure,22/12/2023,565,"Director of Housing, Neighbourhood and Building Services",
Other Supplies,Misc Speciality Retail,W&p / Medirite,Premises related expenditure,06/11/2023,562.32,"Director of Housing, Neighbourhood and Building Services",
Facilities/Repair Supplies,Lumber/Build. Supply Stores,B&q Marketplace,Supplies and Services related expenditure,31/10/2023,560.82,"Director of Housing, Neighbourhood and Building Services",
Hotels And Motels,Premier Travel Inns,Premier Inn,Agency and Third Party Payments related expenditure,26/10/2023,556.61,"Director of Housing, Neighbourhood and Building Services",
Business Expenses/Services,Florist Supplies/Nursery Stock,Fargro Limited,Premises related expenditure,03/10/2023,556,"Director of Culture, Leisure & Regulatory Services",
Hotels And Motels,Premier Travel Inns,Premier Inn,Agency and Third Party Payments related expenditure,05/12/2023,554.92,"Director of Housing, Neighbourhood and Building Services",
Utility,Phone Serv/Equip Utility,Www.Broadbandbuyer.Co.Uk,Supplies and Services related expenditure,21/11/2023,554.89,Capital - Transport,
Other Supplies,Misc Speciality Retail,W&p / Medirite,Premises related expenditure,13/12/2023,554.79,"Director of Housing, Neighbourhood and Building Services",
Other Supplies,Misc Speciality Retail,W&p / Medirite,Supplies and Services related expenditure,09/10/2023,554.24,"Director of Housing, Neighbourhood and Building Services",
Other Supplies,Misc Speciality Retail,W&p / Medirite,Supplies and Services related expenditure,05/12/2023,554.24,"Director of Housing, Neighbourhood and Building Services",
Facilities/Repair Supplies,Hardware Stores,Hilti (Gt. Britain) Ltd.,Supplies and Services related expenditure,06/12/2023,550.24,Capital - Transport,
Hotels And Motels,Travelodge,Travelodge Gb0000,Agency and Third Party Payments related expenditure,08/12/2023,550,"Director of Housing, Neighbourhood and Building Services",
Miscellaneous,Financial Inst/Merchandise,Lantern,Supplies and Services related expenditure,08/12/2023,549.43,Director of Adult Care,
Other Supplies,Department Stores,Www.Argos.Co.Uk,Supplies and Services related expenditure,21/11/2023,549,Director of Adult Care,
Facilities/Repair Supplies,Lawn/Garden Supply/Nursery,Carters Of Swanwic,Supplies and Services related expenditure,19/10/2023,548.96,"Director of Housing, Neighbourhood and Building Services",
Hotels And Motels,Travelodge,Travelodge Gb0000,Agency and Third Party Payments related expenditure,17/10/2023,547.75,"Director of Housing, Neighbourhood and Building Services",
Freight/Courier/Warehouse Svcs,Motor Freight Carriers,Agincourt Removals,Agency and Third Party Payments related expenditure,22/12/2023,545,"Director of Housing, Neighbourhood and Building Services",
Type of Retail Store,Hobby/Toy/Game Stores,Www.Game.Co.Uk,Supplies and Services related expenditure,02/11/2023,544.98,Director of Adult Care,
Medical,Lab/Med/Hospital Equipment,Www.Dorset-Nursing.Co.,Supplies and Services related expenditure,14/11/2023,543.99,Director of Adult Care,
Business To Business Eqpt/Furn,Book Stores,Scholastic Book Fairs,Supplies and Services related expenditure,07/12/2023,543.15,Director of Children's Services and Education,
Other Supplies,Misc Speciality Retail,Amznmktplace,Supplies and Services related expenditure,07/10/2023,541.98,Director of Adult Care,
Type of Retail Store,Hobby/Toy/Game Stores,Sp Sensory Education,Supplies and Services related expenditure,10/10/2023,-541.12,Director of Children's Services and Education,
Business To Business Facility/,Electrical Parts/Equipment,Edmundson Electrical,Premises related expenditure,25/10/2023,539.87,Director of Portsmouth International Port,
Business To Business Eqpt/Furn,Durable Goods - Default,Paypal,Supplies and Services related expenditure,11/10/2023,536.63,"Director of Culture, Leisure & Regulatory Services",
Business Services,Advertising Services,Facebk *lvaypvx3s2,Supplies and Services related expenditure,27/10/2023,534.16,"Director of Culture, Leisure & Regulatory Services",
Other Supplies,Department Stores,Www.Argos.Co.Uk,Supplies and Services related expenditure,02/11/2023,530.79,Director of Children's Services and Education,
Business Services,Business Services - Default,Www.Phs.Co.Uk,Agency and Third Party Payments related expenditure,04/12/2023,530.44,Director of Children's Services and Education,
Transportation Conveyor,Travel Agencies,Bkg*hotel At Booking.C,Supplies and Services related expenditure,25/10/2023,528,"Director of Housing, Neighbourhood and Building Services",
Business To Business Eqpt/Furn,Stationery/Office Supplies,Www.Banneruk.Com,Supplies and Services related expenditure,20/12/2023,527.8,"Director of Culture, Leisure & Regulatory Services",
Facilities Maintenance,Specialty Cleaning/Polishing,Cleaning Supplies 4 U,Premises related expenditure,29/11/2023,527,"Director of Housing, Neighbourhood and Building Services",
Hotels And Motels,Travelodge,Travelodge Gb0000,Agency and Third Party Payments related expenditure,12/11/2023,-526.29,"Director of Housing, Neighbourhood and Building Services",
Other Supplies,Misc Speciality Retail,Talent Management,Supplies and Services related expenditure,06/10/2023,525,Director of Regeneration,
Transportation Conveyor,Travel Agencies,Bkg*hotel At Booking.C,Agency and Third Party Payments related expenditure,09/11/2023,524.62,"Director of Housing, Neighbourhood and Building Services",
Business Services,Advertising Services,Facebk *sgk98vxpl2,Supplies and Services related expenditure,18/10/2023,524.26,"Director of Culture, Leisure & Regulatory Services",
Business Services,Business Services - Default,Vivid Housing Ltd,Supplies and Services related expenditure,03/10/2023,523.36,"Director of Housing, Neighbourhood and Building Services",
Hotels And Motels,Premier Travel Inns,Premier Inn,Agency and Third Party Payments related expenditure,23/11/2023,521.18,"Director of Housing, Neighbourhood and Building Services",
Facilities/Repair Supplies,Lawn/Garden Supply/Nursery,Www.Tudorenvironmental,Supplies and Services related expenditure,07/11/2023,520.93,"Director of Culture, Leisure & Regulatory Services",
Other Supplies,Misc Speciality Retail,W&p / Medirite,Supplies and Services related expenditure,24/10/2023,520.67,Director of Adult Care,
Other Supplies,Misc Speciality Retail,W&p / Medirite,Premises related expenditure,06/11/2023,520.56,"Director of Housing, Neighbourhood and Building Services",
Equipment And Furniture,Household Appliance Stores,Blow Motion Ltd,Premises related expenditure,11/10/2023,520,Director of Portsmouth International Port,
Business To Business Eqpt/Furn,Computer Software Stores,Sp Book Protectors,Supplies and Services related expenditure,08/12/2023,520,"Director of Culture, Leisure & Regulatory Services",
Eating And Drinking Places,Eating Places/Restaurants,G Gs Corner Ltd,Premises related expenditure,18/12/2023,520,Director of Portsmouth International Port,
Type of Retail Store,Drug Stores & Pharmacies,Goldchem Pharmacy,Employees related expenditure,09/11/2023,516,Director of Children's Services and Education,
Other Supplies,Misc Gen Merchandise - Def,Made By Cooper,Supplies and Services related expenditure,16/10/2023,515,Director of Corporate Services,
Other Supplies,Misc Speciality Retail,W&p / Medirite,Premises related expenditure,03/11/2023,509.28,"Director of Housing, Neighbourhood and Building Services",
Other Supplies,Misc Speciality Retail,W&p / Medirite,Premises related expenditure,12/12/2023,509.18,"Director of Housing, Neighbourhood and Building Services",
Hotels And Motels,Hotel Ibis,Hotel Ibis,Supplies and Services related expenditure,22/12/2023,508.5,"Director of Housing, Neighbourhood and Building Services",
Professional Services,Professional Services - Def,Sumup *snazzy Roo Face P,Supplies and Services related expenditure,07/10/2023,508.5,Director of Portsmouth International Port,
Government Service,Schools - Default,2 Start Limited,Supplies and Services related expenditure,07/12/2023,508.33,"Director of Housing, Neighbourhood and Building Services",
Hotels And Motels,Hotel Ibis,Hotel Ibis,Supplies and Services related expenditure,09/11/2023,508,"Director of Housing, Neighbourhood and Building Services",
Facilities/Repair Supplies,Lawn/Garden Supply/Nursery,Carters Of Swanwic,Supplies and Services related expenditure,15/12/2023,506.66,"Director of Housing, Neighbourhood and Building Services",
Auto/Vehicle Expenses,Auto Service Shops/Non Dealer,Solent Motor Services Lim,Transport related expenditure,03/10/2023,505,"Director of Housing, Neighbourhood and Building Services",
Facilities/Repair Supplies,Lawn/Garden Supply/Nursery,Carters Of Swanwic,Supplies and Services related expenditure,06/12/2023,505,"Director of Housing, Neighbourhood and Building Services",
Type of Retail Store,Fabric Stores,Merchant And Mills Wholes,Supplies and Services related expenditure,12/12/2023,502.12,"Director of Culture, Leisure & Regulatory Services",
Miscellaneous,Civic/Social/Fraternal Assc,Sp Hants Council,Capital related expenditure,19/10/2023,500,"Capital - Culture, Leisure & Economic Development",
Miscellaneous,Civic/Social/Fraternal Assc,Sp Hants Council,Capital related expenditure,27/11/2023,500,"Capital - Culture, Leisure & Economic Development",
Business To Business Eqpt/Furn,Book Stores,Scholastic Book Fairs,Supplies and Services related expenditure,07/12/2023,500,Director of Children's Services and Education,
Hotels And Motels,Travelodge,Travelodge Gb0000,Agency and Third Party Payments related expenditure,25/10/2023,498.69,"Director of Housing, Neighbourhood and Building Services",
Miscellaneous,Member Organizations - Def,Www.Haymarket.Com,Supplies and Services related expenditure,05/10/2023,495,Director of Regeneration,
Medical,Med/Health Services - Def,Solentmedic,Employees related expenditure,04/11/2023,495,Director of Portsmouth International Port,
Other Supplies,Misc Speciality Retail,W&p / Medirite,Supplies and Services related expenditure,20/12/2023,495,"Director of Housing, Neighbourhood and Building Services",
Freight/Courier/Warehouse Svcs,Motor Freight Carriers,Agincourt Removals,Agency and Third Party Payments related expenditure,22/12/2023,495,"Director of Housing, Neighbourhood and Building Services",
Facilities Maintenance,Clean/Maint/Janitoral Serv,Wsm Credit Control,Premises related expenditure,13/12/2023,493.85,Director of Regeneration,
Facilities/Repair Supplies,Lumber/Build. Supply Stores,Marshalls Group Limited,Premises related expenditure,11/10/2023,491.33,Director of Portsmouth International Port,
Type of Retail Store,Electronics Sales,Currys Online,Supplies and Services related expenditure,07/12/2023,490.83,"Director of Housing, Neighbourhood and Building Services",
Business To Business Eqpt/Furn,Computer Software Stores,Ability Smart,Supplies and Services related expenditure,06/12/2023,490,Director of Public Health,
Facilities/Repair Supplies,Floor Covering Stores,Direct Carpet Centre,Supplies and Services related expenditure,12/12/2023,487.5,Director of Children's Services and Education,
Facilities/Repair Supplies,Lawn/Garden Supply/Nursery,M & S Enterprises,Supplies and Services related expenditure,26/10/2023,485.42,"Director of Housing, Neighbourhood and Building Services",
Hotels And Motels,Travelodge,Travelodge Gb0000,Agency and Third Party Payments related expenditure,09/10/2023,-485,"Director of Housing, Neighbourhood and Building Services",
Utility,Utilities/Elec/Gas/H2O/Sani,Southern Electric Power D,Capital related expenditure,13/12/2023,485,Capital - Housing and Tackling Homelessness,
Business To Business Facility/,Electrical Parts/Equipment,Edmundson Electrical,Premises related expenditure,02/10/2023,484.58,Director of Portsmouth International Port,
Hotels And Motels,Travelodge,Travelodge Gb0000,Supplies and Services related expenditure,15/11/2023,484.43,Director of Children's Services and Education,
Miscellaneous,Charitable/Soc Service Orgs,St John Ambulance,Supplies and Services related expenditure,02/10/2023,484,Director of Children's Services and Education,
Other Supplies,Variety Stores,Paypal,Supplies and Services related expenditure,12/12/2023,483.29,Director of Children's Services and Education,
Other Supplies,Misc Speciality Retail,W&p / Medirite,Supplies and Services related expenditure,07/12/2023,483.19,Director of Adult Care,
Freight/Courier/Warehouse Svcs,Public Warehousing,Big Yellow - Portsmout,Premises related expenditure,26/10/2023,483,"Director of Housing, Neighbourhood and Building Services",
Freight/Courier/Warehouse Svcs,Public Warehousing,Big Yellow - Portsmout,Premises related expenditure,24/11/2023,483,"Director of Housing, Neighbourhood and Building Services",
Freight/Courier/Warehouse Svcs,Public Warehousing,Big Yellow - Portsmout,Premises related expenditure,21/12/2023,483,"Director of Housing, Neighbourhood and Building Services",
Other Supplies,Misc Speciality Retail,W&p / Medirite,Premises related expenditure,19/12/2023,482.83,"Director of Housing, Neighbourhood and Building Services",
Other Supplies,Gift/Card/Novelty And Souvenir Stores,Westfield Advertising,Supplies and Services related expenditure,31/10/2023,482.75,Director of Children's Services and Education,
Type of Retail Store,Electronics Sales,Currys Online,Premises related expenditure,27/12/2023,482.5,"Director of Housing, Neighbourhood and Building Services",
Other Supplies,Catalog Merchant,Www.Softcat.Com,Supplies and Services related expenditure,27/12/2023,481.71,Director of Portsmouth International Port,
Transportation Conveyor,Travel Agencies,Bkg*hotel At Booking.C,Agency and Third Party Payments related expenditure,17/10/2023,481.25,"Director of Housing, Neighbourhood and Building Services",
Other Supplies,Wholesale Clubs,The Fruit Basket,Supplies and Services related expenditure,06/11/2023,480.77,"Director of Housing, Neighbourhood and Building Services",
Business To Business Eqpt/Furn,Stationery/Office Supplies,Www.Banneruk.Com,Supplies and Services related expenditure,22/12/2023,480.21,"Director of Culture, Leisure & Regulatory Services",
Other Supplies,Misc Speciality Retail,W&p / Medirite,Premises related expenditure,20/11/2023,480.05,"Director of Housing, Neighbourhood and Building Services",
Government Service,Colleges/Univ/Jc/Profession,Paypal,Employees related expenditure,06/10/2023,480,Director of Public Health,
Business To Business Eqpt/Furn,Computer Software Stores,Arbor Education,Supplies and Services related expenditure,12/10/2023,480,Director of Children's Services and Education,
Business To Business Eqpt/Furn,Computer Software Stores,Arbor Education,Supplies and Services related expenditure,01/11/2023,480,Director of Children's Services and Education,
Other Supplies,Department Stores,Www.Argos.Co.Uk,Supplies and Services related expenditure,13/12/2023,480,Director of Adult Care,
Hotels And Motels,Premier Travel Inns,Premier Inn,Agency and Third Party Payments related expenditure,05/12/2023,479.47,"Director of Housing, Neighbourhood and Building Services",
Business To Business Facility/,Electrical Parts/Equipment,Edmundson Electrical,Premises related expenditure,14/12/2023,479.43,Director of Portsmouth International Port,
Other Supplies,Misc Speciality Retail,W&p / Medirite,Premises related expenditure,23/10/2023,479.31,"Director of Housing, Neighbourhood and Building Services",
Type of Retail Store,Misc Food Stores - Default,Sq *resmar Ltd,Premises related expenditure,02/11/2023,478.9,Director of Portsmouth International Port,
Hotels And Motels,Travelodge,Travelodge Gb0000,Agency and Third Party Payments related expenditure,26/10/2023,478.52,"Director of Housing, Neighbourhood and Building Services",
Hotels And Motels,Premier Travel Inns,Premier Inn,Agency and Third Party Payments related expenditure,31/10/2023,-475.77,"Director of Housing, Neighbourhood and Building Services",
Business To Business Eqpt/Furn,Computer Software Stores,Sp Book Protectors,Supplies and Services related expenditure,28/11/2023,475.5,"Director of Culture, Leisure & Regulatory Services",
Government Service,Vocational/Trade Schools,Logistics Employment Tra,Employees related expenditure,20/10/2023,475,Director of Portsmouth International Port,
Other Supplies,Misc Speciality Retail,Talent Management,Supplies and Services related expenditure,15/11/2023,475,Director of Public Health,
Facilities/Repair Supplies,Lawn/Garden Supply/Nursery,Carters Of Swanwic,Supplies and Services related expenditure,20/12/2023,474.66,"Director of Housing, Neighbourhood and Building Services",
Other Supplies,Misc Speciality Retail,W&p / Medirite,Premises related expenditure,13/11/2023,473.29,"Director of Housing, Neighbourhood and Building Services",
Miscellaneous,Charitable/Soc Service Orgs,Tuppenny Barn,Supplies and Services related expenditure,21/11/2023,472,Director of Children's Services and Education,
Facilities/Repair Supplies,Lumber/Build. Supply Stores,F H Brundle,Premises related expenditure,11/12/2023,471.6,Director of Portsmouth International Port,
Transportation Conveyor,Travel Agencies,Bkg*hotel At Booking.C,Agency and Third Party Payments related expenditure,01/12/2023,-470.83,"Director of Housing, Neighbourhood and Building Services",
Transportation Conveyor,Travel Agencies,Bkg*hotel At Booking.C,Agency and Third Party Payments related expenditure,01/12/2023,-470.83,"Director of Housing, Neighbourhood and Building Services",
Equipment And Furniture,Household Appliance Stores,Ao Retail Limited,Premises related expenditure,18/12/2023,470,"Director of Housing, Neighbourhood and Building Services",
Facilities/Repair Supplies,Floor Covering Stores,The Carpet Clearance W,Supplies and Services related expenditure,21/12/2023,470,Director of Children's Services and Education,
Freight/Courier/Warehouse Svcs,Motor Freight Carriers,Safestore Ltd Online R,Premises related expenditure,04/12/2023,466.36,"Director of Housing, Neighbourhood and Building Services",
Equipment And Furniture,Furniture/Equip Stores,Emma Sleep,Supplies and Services related expenditure,25/10/2023,466.25,Director of Children's Services and Education,
Transportation Conveyor,Travel Agencies,Bkg*hotel At Booking.C,Supplies and Services related expenditure,25/10/2023,465.5,"Director of Housing, Neighbourhood and Building Services",
Hotels And Motels,Premier Travel Inns,Premier Inn,Agency and Third Party Payments related expenditure,19/10/2023,465,"Director of Culture, Leisure & Regulatory Services",
Other Supplies,Misc Speciality Retail,W&p / Medirite,Premises related expenditure,28/11/2023,465,"Director of Housing, Neighbourhood and Building Services",
Transportation Conveyor,Travel Agencies,Bkg*hotel At Booking.C,Agency and Third Party Payments related expenditure,06/11/2023,464.58,"Director of Housing, Neighbourhood and Building Services",
Transportation Conveyor,Travel Agencies,Bkg*hotel At Booking.C,Agency and Third Party Payments related expenditure,01/12/2023,464.58,"Director of Housing, Neighbourhood and Building Services",
Business To Business Eqpt/Furn,Commercial Furniture,Viking,Premises related expenditure,14/12/2023,463.32,"Director of Culture, Leisure & Regulatory Services",
Facilities Maintenance,Clean/Maint/Janitoral Serv,Wsm Credit Control,Premises related expenditure,13/12/2023,462.37,Director of Regeneration,
Hotels And Motels,Travelodge,Travelodge Gb0000,Agency and Third Party Payments related expenditure,04/12/2023,462,"Director of Housing, Neighbourhood and Building Services",
Hotels And Motels,Travelodge,Travelodge Gb0000,Agency and Third Party Payments related expenditure,04/12/2023,462,"Director of Housing, Neighbourhood and Building Services",
Hotels And Motels,Travelodge,Travelodge Gb0000,Agency and Third Party Payments related expenditure,15/12/2023,462,"Director of Housing, Neighbourhood and Building Services",
Business To Business Facility/,Industrial Supplies - Def,Arco Limited,Supplies and Services related expenditure,06/12/2023,461.77,"Director of Housing, Neighbourhood and Building Services",
Freight/Courier/Warehouse Svcs,Motor Freight Carriers,Safestore Ltd Online R,Premises related expenditure,06/10/2023,460.46,"Director of Housing, Neighbourhood and Building Services",
Freight/Courier/Warehouse Svcs,Motor Freight Carriers,Safestore Ltd Online R,Premises related expenditure,06/11/2023,460.46,"Director of Housing, Neighbourhood and Building Services",
Facilities/Repair Supplies,Lawn/Garden Supply/Nursery,Www.Bostonseeds.Co,Supplies and Services related expenditure,21/11/2023,459.99,"Director of Housing, Neighbourhood and Building Services",
Type of Retail Store,Fabric Stores,Www.Bunting.Eu,Supplies and Services related expenditure,11/10/2023,458.5,Director of Children's Services and Education,
Other Supplies,Misc Speciality Retail,W&p / Medirite,Premises related expenditure,05/12/2023,458.02,"Director of Housing, Neighbourhood and Building Services",
Equipment And Furniture,Furniture/Equip Stores,Sp The Sofa Shop,Supplies and Services related expenditure,06/12/2023,457.99,Director of Adult Care,
Government Service,Govt Serv - Default,Www.Moneyclaim.Gov,Supplies and Services related expenditure,29/11/2023,455,Director of Finance & Resources,
Freight/Courier/Warehouse Svcs,Public Warehousing,Access Portsmouth,Premises related expenditure,12/12/2023,454.17,"Director of Housing, Neighbourhood and Building Services",
Freight/Courier/Warehouse Svcs,Public Warehousing,Access Portsmouth,Premises related expenditure,11/10/2023,450,"Director of Housing, Neighbourhood and Building Services",
Transportation Conveyor,Travel Agencies,Bkg*hotel At Booking.C,Supplies and Services related expenditure,03/11/2023,450,"Director of Housing, Neighbourhood and Building Services",
Transportation Conveyor,Travel Agencies,Bkg*hotel At Booking.C,Supplies and Services related expenditure,03/11/2023,450,"Director of Housing, Neighbourhood and Building Services",
Freight/Courier/Warehouse Svcs,Public Warehousing,Access Portsmouth,Premises related expenditure,13/11/2023,450,"Director of Housing, Neighbourhood and Building Services",
Equipment And Furniture,Furniture/Equip Stores,Wf *uk3969040004,Supplies and Services related expenditure,02/10/2023,449.98,Director of Children's Services and Education,
Professional Services,Detective/Protective Agen,Adi Gardiner Ltd,Supplies and Services related expenditure,20/10/2023,448.85,"Director of Housing, Neighbourhood and Building Services",
Government Service,Govt Serv - Default,Pcc Internet Payment,Premises related expenditure,21/11/2023,444.93,"Director of Housing, Neighbourhood and Building Services",
Facilities/Repair Supplies,Lawn/Garden Supply/Nursery,Carters Of Swanwic,Premises related expenditure,03/11/2023,443.89,"Director of Housing, Neighbourhood and Building Services",
Business To Business Eqpt/Furn,Book Stores,Www.Jctltd.Co.Uk,Supplies and Services related expenditure,06/12/2023,440.33,"Director of Housing, Neighbourhood and Building Services",
Other Supplies,Misc Speciality Retail,W&p / Medirite,Premises related expenditure,24/10/2023,440.23,Director of Adult Care,
Transportation Conveyor,Travel Agencies,Bkg*hotel At Booking.C,Supplies and Services related expenditure,31/10/2023,439,"Director of Housing, Neighbourhood and Building Services",
Equipment And Furniture,Furniture/Equip Stores,Sp The Sofa Shop,Supplies and Services related expenditure,19/10/2023,438.99,Director of Adult Care,
Hotels And Motels,Lodging/Hotels/Motels/Resorts,Pembroke Park Hotel,Supplies and Services related expenditure,18/12/2023,437.5,"Director of Housing, Neighbourhood and Building Services",
Hotels And Motels,Lodging/Hotels/Motels/Resorts,Pembroke Park Hotel,Supplies and Services related expenditure,18/12/2023,437.5,"Director of Housing, Neighbourhood and Building Services",
Facilities/Repair Supplies,Lawn/Garden Supply/Nursery,Carters Of Swanwic,Supplies and Services related expenditure,15/12/2023,437,"Director of Housing, Neighbourhood and Building Services",
Eating And Drinking Places,Eating Places/Restaurants,Harvester Great Sa,Agency and Third Party Payments related expenditure,08/12/2023,434.64,Director of Children's Services and Education,
Government Service,Govt Serv - Default,Hampshire County Counc,Supplies and Services related expenditure,17/11/2023,432.04,Director of Children's Services and Education,
Business To Business Eqpt/Furn,Commercial Furniture,Befurniture,Supplies and Services related expenditure,11/10/2023,432,"Director of Culture, Leisure & Regulatory Services",
Business Services,Business Services - Default,Www.Tj-Waste.Co.Uk,Premises related expenditure,18/12/2023,431.2,"Director of Housing, Neighbourhood and Building Services",
Hotels And Motels,Hotel Ibis,Hotel Ibis,Supplies and Services related expenditure,24/11/2023,430.5,"Director of Housing, Neighbourhood and Building Services",
Business Services,Business Services - Default,Voiceovers Ltd,Supplies and Services related expenditure,30/11/2023,430,Director of Corporate Services,
Other Supplies,Catalog Merchant,Nisbets Ltd,Supplies and Services related expenditure,19/10/2023,427.98,Director of Regeneration,
Type of Retail Store,Grocery Stores/Supermarkets,Asda Groceries Online,Supplies and Services related expenditure,21/10/2023,426.44,Director of Children's Services and Education,
Facilities/Repair Supplies,Lawn/Garden Supply/Nursery,Carters Of Swanwic,Supplies and Services related expenditure,16/11/2023,425.29,"Director of Housing, Neighbourhood and Building Services",
Professional Services,Legal Services Attorneys,Research Systems Ltd,Supplies and Services related expenditure,16/10/2023,425.04,Director of Children's Services and Education,
Business Services,Business Services - Default,Www.Local.Gov.Uk,Employees related expenditure,18/10/2023,425,Director of Adult Care,
Equipment And Furniture,Furniture/Equip Stores,Www.Gopak.Co.Uk,Supplies and Services related expenditure,04/10/2023,424.53,Director of Children's Services and Education,
Hotels And Motels,Travelodge,Travelodge Gb0000,Supplies and Services related expenditure,05/10/2023,424.1,Director of Children's Services and Education,
Equipment And Furniture,Furniture/Equip Stores,Furniture@work Ltd,Supplies and Services related expenditure,03/10/2023,423,Director of Children's Services and Education,
Amusement/Entertainment,Commercial/Pro Sports,Universal Services (Sp,Supplies and Services related expenditure,10/10/2023,422.58,"Director of Housing, Neighbourhood and Building Services",
Hotels And Motels,Travelodge,Travelodge Gb0000,Supplies and Services related expenditure,26/10/2023,421.96,Director of Children's Services and Education,
Hotels And Motels,Travelodge,Travelodge Gb0000,Agency and Third Party Payments related expenditure,23/10/2023,419.54,"Director of Housing, Neighbourhood and Building Services",
Equipment And Furniture,Household Appliance Stores,Ao Retail Limited,Capital related expenditure,18/12/2023,419.17,Capital - Housing and Tackling Homelessness (HRA),
Other Supplies,Misc Speciality Retail,W&p / Medirite,Supplies and Services related expenditure,05/12/2023,417.2,"Director of Housing, Neighbourhood and Building Services",
Transportation Conveyor,Travel Agencies,Bkg*hotel At Booking.C,Agency and Third Party Payments related expenditure,22/11/2023,416.25,"Director of Housing, Neighbourhood and Building Services",
Other Supplies,Misc Speciality Retail,W&p / Medirite,Premises related expenditure,05/10/2023,415.98,"Director of Housing, Neighbourhood and Building Services",
Type of Retail Store,Electronics Sales,Apple.Com/Uk,Supplies and Services related expenditure,29/11/2023,415.83,"Director of Housing, Neighbourhood and Building Services",
Hotels And Motels,Hotel Ibis,Hotel Ibis,Supplies and Services related expenditure,27/11/2023,415.5,"Director of Housing, Neighbourhood and Building Services",
Other Supplies,Misc Speciality Retail,W&p / Medirite,Supplies and Services related expenditure,07/11/2023,415.3,Director of Adult Care,
Facilities/Repair Supplies,Lawn/Garden Supply/Nursery,Carters Of Swanwic,Premises related expenditure,06/12/2023,415,"Director of Housing, Neighbourhood and Building Services",
Transportation Conveyor,Travel Agencies,Bkg*hotel At Booking.C,Agency and Third Party Payments related expenditure,26/10/2023,414.58,"Director of Housing, Neighbourhood and Building Services",
Business Services,Business Services - Default,Eb *the News And Chich,Supplies and Services related expenditure,31/10/2023,414.4,"Director of Housing, Neighbourhood and Building Services",
Other Supplies,Misc Speciality Retail,W&p / Medirite,Premises related expenditure,04/10/2023,413.5,"Director of Housing, Neighbourhood and Building Services",
Other Supplies,Misc Speciality Retail,W&p / Medirite,Premises related expenditure,10/10/2023,413.18,"Director of Housing, Neighbourhood and Building Services",
Business To Business Eqpt/Furn,Stationery/Office Supplies,Www.Banneruk.Com,Supplies and Services related expenditure,15/12/2023,413.04,"Director of Culture, Leisure & Regulatory Services",
Auto/Vehicle Expenses,Auto Paint Shops,Express Paints Ltd,Supplies and Services related expenditure,16/10/2023,412.2,Director of Regeneration,
Hotels And Motels,Premier Travel Inns,Premier Inn,Supplies and Services related expenditure,10/10/2023,410.96,Director of Portsmouth International Port,
Transportation Conveyor,Bus Lines/Charter/Tour,Hdb Portsmouth,Supplies and Services related expenditure,06/12/2023,410,Director of Children's Services and Education,
Eating And Drinking Places,Eating Places/Restaurants,Zettle_*the Cod Squad Ltd,Supplies and Services related expenditure,24/11/2023,409.67,Director of Children's Services and Education,
Other Supplies,Misc Speciality Retail,W&p / Medirite,Premises related expenditure,27/12/2023,409.15,"Director of Housing, Neighbourhood and Building Services",
Business To Business Eqpt/Furn,Book Stores,Hayling Island Bookshop,Supplies and Services related expenditure,31/10/2023,408.96,"Director of Culture, Leisure & Regulatory Services",
Equipment And Furniture,Furniture/Equip Stores,Www.Officeboffins.Co.U,Capital related expenditure,08/11/2023,408.95,Capital - Leader - Port,
Transportation Conveyor,Travel Agencies,Bkg*hotel At Booking.C,Agency and Third Party Payments related expenditure,27/12/2023,406.61,"Director of Housing, Neighbourhood and Building Services",
Other Supplies,Misc Speciality Retail,W&p / Medirite,Supplies and Services related expenditure,23/10/2023,406.6,"Director of Housing, Neighbourhood and Building Services",
Other Supplies,Misc Speciality Retail,W&p / Medirite,Premises related expenditure,17/10/2023,406.22,"Director of Housing, Neighbourhood and Building Services",
Other Supplies,Misc Speciality Retail,W&p / Medirite,Premises related expenditure,09/10/2023,405.62,"Director of Housing, Neighbourhood and Building Services",
Hotels And Motels,Travelodge,Travelodge Gb0000,Supplies and Services related expenditure,10/11/2023,405.29,"Director of Culture, Leisure & Regulatory Services",
Business Expenses/Services,Books/Periodicals/Newspapers,Hachette UK Distributi,Supplies and Services related expenditure,23/11/2023,405,Director of Children's Services and Education,
Other Supplies,Misc Speciality Retail,W&p / Medirite,Supplies and Services related expenditure,13/11/2023,404.11,"Director of Housing, Neighbourhood and Building Services",
Facilities/Repair Supplies,Lawn/Garden Supply/Nursery,Carters Of Swanwic,Supplies and Services related expenditure,26/10/2023,403.92,"Director of Housing, Neighbourhood and Building Services",
Type of Retail Store,Electronics Sales,Currys Online,Premises related expenditure,27/12/2023,403.33,"Director of Housing, Neighbourhood and Building Services",
Facilities/Repair Supplies,Hardware Stores,Hilti (Gt. Britain) Ltd.,Supplies and Services related expenditure,27/10/2023,402.5,Director of Corporate Services,
Transportation Conveyor,Travel Agencies,Bkg*hotel At Booking.C,Supplies and Services related expenditure,03/11/2023,402.32,"Director of Housing, Neighbourhood and Building Services",
Hotels And Motels,Hotel Ibis,Hotel Ibis,Supplies and Services related expenditure,10/11/2023,402,"Director of Housing, Neighbourhood and Building Services",
Facilities/Repair Supplies,Misc Home Furnishing,Www.Therange.Co.Uk,Supplies and Services related expenditure,20/11/2023,401.95,"Director of Housing, Neighbourhood and Building Services",
Hotels And Motels,Lodging/Hotels/Motels/Resorts,Village Hotel Porstmouth,Supplies and Services related expenditure,26/10/2023,401.67,"Director of Housing, Neighbourhood and Building Services",
Miscellaneous,Misc Personal Serv - Def,Solentculturalent,Supplies and Services related expenditure,06/12/2023,400,Director of Regeneration,
Other Supplies,Department Stores,Www.Argos.Co.Uk,Supplies and Services related expenditure,08/12/2023,400,Director of Adult Care,
Miscellaneous,Member Organizations - Def,The Aecb,Supplies and Services related expenditure,10/12/2023,400,"Director of Housing, Neighbourhood and Building Services",
Type of Retail Store,Electronics Sales,Epson Store Uk,Supplies and Services related expenditure,21/11/2023,399.99,Director of Public Health,
Business Expenses/Services,Computer Maint/Svcs - Def,The Mac Shack,Supplies and Services related expenditure,06/10/2023,399,Director of Corporate Services,
Other Supplies,Wholesale Clubs,The Fruit Basket,Supplies and Services related expenditure,04/12/2023,396.09,"Director of Housing, Neighbourhood and Building Services",
Amusement/Entertainment,Tourist Attractions And Xhbt,Spinnaker Tower,Supplies and Services related expenditure,07/12/2023,396,Director of Children's Services and Education,
Facilities/Repair Supplies,Lumber/Build. Supply Stores,C.E.F. (Portsmouth),Supplies and Services related expenditure,04/10/2023,395.9,"Director of Housing, Neighbourhood and Building Services",
Facilities/Repair Supplies,Lawn/Garden Supply/Nursery,Carters Of Swanwic,Supplies and Services related expenditure,06/10/2023,393.82,"Director of Housing, Neighbourhood and Building Services",
Transportation Conveyor,Local Commuter Transport,Hovertravel Ltd- Ecomm,Supplies and Services related expenditure,16/10/2023,393,Director of Children's Services and Education,
Hotels And Motels,Premier Travel Inns,Premier Inn,Supplies and Services related expenditure,19/10/2023,392.5,"Director of Culture, Leisure & Regulatory Services",
Facilities/Repair Supplies,Lawn/Garden Supply/Nursery,Www.Tudorenvironmental,Supplies and Services related expenditure,02/11/2023,391.81,"Director of Culture, Leisure & Regulatory Services",
Transportation Conveyor,Taxicabs/Limousines,Aqua Cars,Transport related expenditure,17/10/2023,390,Director of Children's Services and Education,
Facilities/Repair Supplies,Lawn/Garden Supply/Nursery,Carters Of Swanwic,Supplies and Services related expenditure,23/11/2023,388.84,"Director of Housing, Neighbourhood and Building Services",
Business Services,Business Services - Default,Siteground Hosting,Supplies and Services related expenditure,20/10/2023,388.8,Director of Corporate Services,
Transportation Conveyor,Taxicabs/Limousines,Aqua Cars,Transport related expenditure,26/10/2023,386.4,Director of Portsmouth International Port,
Clothing Services,Family Clothing Stores,Primark,Supplies and Services related expenditure,26/10/2023,385.9,Director of Children's Services and Education,
Hotels And Motels,Hotel Ibis,Hotel Ibis,Supplies and Services related expenditure,17/11/2023,384.75,"Director of Housing, Neighbourhood and Building Services",
Other Supplies,Misc Speciality Retail,W&p / Medirite,Premises related expenditure,28/11/2023,384.65,"Director of Housing, Neighbourhood and Building Services",
Business To Business Eqpt/Furn,Stationery/Office Supplies,Www.Banneruk.Com,Supplies and Services related expenditure,13/10/2023,384.08,"Director of Housing, Neighbourhood and Building Services",
Other Supplies,Misc Speciality Retail,Amznmktplace,Supplies and Services related expenditure,01/10/2023,383.84,Director of Adult Care,
Facilities Maintenance,Clean/Maint/Janitoral Serv,Www.Lockhartcatering.C,Supplies and Services related expenditure,02/11/2023,383.77,"Director of Housing, Neighbourhood and Building Services",
Transportation Conveyor,Travel Agencies,Bkg*hotel At Booking.C,Supplies and Services related expenditure,03/11/2023,383.33,"Director of Housing, Neighbourhood and Building Services",
Transportation Conveyor,Travel Agencies,Bkg*hotel At Booking.C,Supplies and Services related expenditure,03/11/2023,383.33,"Director of Housing, Neighbourhood and Building Services",
Hotels And Motels,Travelodge,Travelodge Gb0000,Supplies and Services related expenditure,19/10/2023,383.28,Director of Children's Services and Education,
Government Service,Govt Serv - Default,Hampshire County Counc,Supplies and Services related expenditure,05/12/2023,382.53,Director of Children's Services and Education,
Transportation Conveyor,Taxicabs/Limousines,Aqua Cars,Transport related expenditure,21/11/2023,381.9,Director of Portsmouth International Port,
Facilities/Repair Supplies,Misc Home Furnishing,The Range,Supplies and Services related expenditure,16/10/2023,380.97,"Director of Culture, Leisure & Regulatory Services",
Business Expenses/Services,Quick Copy/Repro Services,Custom Labels Ltd,Supplies and Services related expenditure,02/11/2023,380,Director of Portsmouth International Port,
Business To Business Facility/,Industrial Supplies - Def,C P Lubricants Ltd,Premises related expenditure,20/12/2023,380,Director of Portsmouth International Port,
Hotels And Motels,Lodging/Hotels/Motels/Resorts,Leonardo London City Htl,Supplies and Services related expenditure,23/11/2023,379.89,Director of Portsmouth International Port,
Business To Business Eqpt/Furn,Stationery/Office Supplies,Www.Banneruk.Com,Supplies and Services related expenditure,23/11/2023,379.59,"Director of Housing, Neighbourhood and Building Services",
Hotels And Motels,Premier Travel Inns,Premier Inn,Agency and Third Party Payments related expenditure,18/10/2023,-379.53,"Director of Housing, Neighbourhood and Building Services",
Business Expenses/Services,Stationery Stores,Www.Ryman.Co.Uk,Supplies and Services related expenditure,26/10/2023,379.07,"Director of Culture, Leisure & Regulatory Services",
Equipment And Furniture,Furniture/Equip Stores,Dunelm Softfurnishings,Supplies and Services related expenditure,22/12/2023,378.95,Director of Children's Services and Education,
Transportation Conveyor,Travel Agencies,Disney Travel,Agency and Third Party Payments related expenditure,20/11/2023,378.33,Director of Children's Services and Education,
Business To Business Eqpt/Furn,Commercial Equipment - Default,Safety Signs 4 Less,Supplies and Services related expenditure,13/12/2023,378,"Director of Housing, Neighbourhood and Building Services",
Business To Business Eqpt/Furn,Stationery/Office Supplies,Www.Banneruk.Com,Supplies and Services related expenditure,10/10/2023,377.56,"Director of Housing, Neighbourhood and Building Services",
Facilities/Repair Supplies,Lumber/Build. Supply Stores,General All Purpose Pl,Premises related expenditure,19/10/2023,377,Director of Children's Services and Education,
Other Supplies,Misc Speciality Retail,W&p / Medirite,Premises related expenditure,31/10/2023,376.9,"Director of Housing, Neighbourhood and Building Services",
Miscellaneous,Member Organizations - Def,Knowledge Exchange Gro,Employees related expenditure,09/11/2023,376.8,"Director of Housing, Neighbourhood and Building Services",
Business To Business Eqpt/Furn,Stationery/Office Supplies,Www.Banneruk.Com,Supplies and Services related expenditure,15/12/2023,376.72,"Director of Housing, Neighbourhood and Building Services",
Government Service,Govt Serv - Default,Hampshire County Counc,Supplies and Services related expenditure,20/10/2023,376.71,Director of Children's Services and Education,
Freight/Courier/Warehouse Svcs,Public Warehousing,Big Yellow - Portsmout,Premises related expenditure,23/10/2023,376.67,"Director of Housing, Neighbourhood and Building Services",
Freight/Courier/Warehouse Svcs,Public Warehousing,Big Yellow - Portsmout,Premises related expenditure,17/11/2023,376.67,"Director of Housing, Neighbourhood and Building Services",
Freight/Courier/Warehouse Svcs,Public Warehousing,Big Yellow - Portsmout,Premises related expenditure,15/12/2023,376.67,"Director of Housing, Neighbourhood and Building Services",
Other Supplies,Misc Speciality Retail,W&p / Medirite,Premises related expenditure,21/12/2023,375.98,"Director of Housing, Neighbourhood and Building Services",
Other Supplies,Misc Speciality Retail,W&p / Medirite,Premises related expenditure,09/10/2023,375,"Director of Housing, Neighbourhood and Building Services",
Transportation Conveyor,Travel Agencies,Bkg*hotel At Booking.C,Supplies and Services related expenditure,03/11/2023,375,"Director of Housing, Neighbourhood and Building Services",
Business To Business Facility/,Hardware Equipment/Supplies,Signgeer Limited,Supplies and Services related expenditure,30/11/2023,374.25,"Director of Culture, Leisure & Regulatory Services",
Airlines,Airlines And Air Carriers,Loganair,Transport related expenditure,03/11/2023,373.7,Director of Children's Services and Education,
Other Supplies,Misc Speciality Retail,W&p / Medirite,Premises related expenditure,09/10/2023,373.22,"Director of Housing, Neighbourhood and Building Services",
Business To Business Eqpt/Furn,Stationery/Office Supplies,Www.Banneruk.Com,Supplies and Services related expenditure,12/10/2023,372.25,"Director of Culture, Leisure & Regulatory Services",
Hotels And Motels,Premier Travel Inns,Premier Inn,Agency and Third Party Payments related expenditure,31/10/2023,371.17,"Director of Housing, Neighbourhood and Building Services",
Type of Retail Store,Electronics Sales,Comms Express Ltd,Premises related expenditure,27/10/2023,371.1,Director of Corporate Services,
Other Supplies,Misc Speciality Retail,W&p / Medirite,Premises related expenditure,02/10/2023,370.56,"Director of Housing, Neighbourhood and Building Services",
Amusement/Entertainment,Tourist Attractions And Xhbt,Rbg Kew,Employees related expenditure,22/11/2023,370,Director of Children's Services and Education,
Business Services,Business Services - Default,Intonation Ltd,Supplies and Services related expenditure,04/12/2023,370,Director of Corporate Services,
Type of Retail Store,Freezer/Meat Lockers,Dennis Edwards Food Serv,Supplies and Services related expenditure,12/12/2023,369.61,Director of Adult Care,
Transportation Conveyor,Local Commuter Transport,Hovertravel Ltd- Ecomm,Agency and Third Party Payments related expenditure,30/10/2023,367,Director of Children's Services and Education,
Transportation Conveyor,Local Commuter Transport,Hovertravel Ltd- Ecomm,Agency and Third Party Payments related expenditure,23/11/2023,367,Director of Children's Services and Education,
Professional Services,Architectural/Eng/Survey,M L Fixings,Premises related expenditure,06/11/2023,366.07,Director of Portsmouth International Port,
Miscellaneous,Charitable/Soc Service Orgs,Cilt Uk,Employees related expenditure,09/10/2023,365,Director of Regeneration,
Miscellaneous,Charitable/Soc Service Orgs,Cilt Uk,Employees related expenditure,10/10/2023,365,Director of Regeneration,
Professional Services,Architectural/Eng/Survey,M L Fixings,Premises related expenditure,05/12/2023,363.42,Director of Portsmouth International Port,
Business To Business Facility/,Industrial Supplies - Def,Arco Limited,Supplies and Services related expenditure,19/10/2023,363.18,"Director of Housing, Neighbourhood and Building Services",
Other Supplies,Misc Speciality Retail,W&p / Medirite,Premises related expenditure,21/11/2023,362.52,"Director of Housing, Neighbourhood and Building Services",
Other Supplies,Misc Speciality Retail,W&p / Medirite,Premises related expenditure,09/10/2023,362.23,"Director of Housing, Neighbourhood and Building Services",
Type of Retail Store,Electronics Sales,Buy It Direct,Supplies and Services related expenditure,21/11/2023,361.82,Director of Children's Services and Education,
Government Service,Govt Serv - Default,Hampshire County Counc,Employees related expenditure,05/10/2023,360,Director of Adult Care,
Business To Business Eqpt/Furn,Computer Software Stores,Outoftheark/ Sparkyard,Supplies and Services related expenditure,14/11/2023,360,Director of Children's Services and Education,
Auto/Vehicle Expenses,Auto Service Shops/Non Dealer,Pds Autos Ltd,Transport related expenditure,07/12/2023,360,Director of Children's Services and Education,
Facilities Maintenance,Specialty Cleaning/Polishing,Cjs Portsmouth Limited,Premises related expenditure,12/10/2023,359.4,Director of Children's Services and Education,
Facilities Maintenance,Specialty Cleaning/Polishing,Cjs Portsmouth Limited,Premises related expenditure,12/10/2023,359.4,Director of Children's Services and Education,
Facilities/Repair Supplies,Lawn/Garden Supply/Nursery,Carters Of Swanwic,Supplies and Services related expenditure,04/12/2023,358.98,"Director of Housing, Neighbourhood and Building Services",
Amusement/Entertainment,Amusement/Rec Serv - Def,Croma Locksmiths & Sec,Supplies and Services related expenditure,06/10/2023,357.83,"Director of Housing, Neighbourhood and Building Services",
Miscellaneous,Sport/Recreational Camps,Flip Out Portsmouth,Supplies and Services related expenditure,23/10/2023,357.5,Director of Children's Services and Education,
Freight/Courier/Warehouse Svcs,Public Warehousing,Big Yellow - Portsmout,Premises related expenditure,09/10/2023,357.33,"Director of Housing, Neighbourhood and Building Services",
Freight/Courier/Warehouse Svcs,Public Warehousing,Big Yellow - Portsmout,Premises related expenditure,06/11/2023,357.33,"Director of Housing, Neighbourhood and Building Services",
Freight/Courier/Warehouse Svcs,Public Warehousing,Big Yellow - Portsmout,Premises related expenditure,04/12/2023,357.33,"Director of Housing, Neighbourhood and Building Services",
Business To Business Facility/,Electrical Parts/Equipment,Rs Components,Premises related expenditure,21/11/2023,357.09,Director of Portsmouth International Port,
Transportation Conveyor,Passenger Railways,Trainline,Supplies and Services related expenditure,06/12/2023,356.29,Director of Children's Services and Education,
Other Supplies,Department Stores,Www.Argos.Co.Uk,Supplies and Services related expenditure,27/10/2023,355.95,Director of Children's Services and Education,
Miscellaneous,Fines,Combined Court Cen,Supplies and Services related expenditure,11/10/2023,355,"Director of Housing, Neighbourhood and Building Services",
Other Supplies,Misc Speciality Retail,W&p / Medirite,Supplies and Services related expenditure,20/10/2023,354.95,"Director of Housing, Neighbourhood and Building Services",
Utility,Phone Serv/Equip Utility,Bt Repayment Works Or,Supplies and Services related expenditure,10/10/2023,354.42,"Director of Housing, Neighbourhood and Building Services",
Medical,Med/Health Services - Def,Social-Ability,Supplies and Services related expenditure,31/10/2023,354,Director of Adult Care,
Business To Business Services,Misc Publishing & Printing,Www.Solopress.Com,Supplies and Services related expenditure,24/10/2023,353.08,Director of Regeneration,
Business To Business Services,Misc Publishing & Printing,Www.Solopress.Com,Supplies and Services related expenditure,11/12/2023,352.16,Director of Regeneration,
Clothing Services,Mens/Womens Clothing Stores,Inform Printed Solutio,Capital related expenditure,06/10/2023,351.97,Capital - Housing and Tackling Homelessness,
Type of Retail Store,Freezer/Meat Lockers,Dennis Edwards Food Serv,Supplies and Services related expenditure,17/10/2023,351.85,Director of Adult Care,
Other Supplies,Misc Speciality Retail,W&p / Medirite,Premises related expenditure,06/10/2023,350.93,"Director of Housing, Neighbourhood and Building Services",
Other Supplies,Misc Speciality Retail,W&p / Medirite,Premises related expenditure,06/11/2023,350.22,"Director of Housing, Neighbourhood and Building Services",
Government Service,Govt Serv - Default,Pcc Internet Payment,Supplies and Services related expenditure,13/10/2023,350,Director of Children's Services and Education,
Type of Retail Store,Art Dealers & Galleries,Alamy.Com Limited,Supplies and Services related expenditure,25/10/2023,350,Director of Corporate Services,
Government Service,Schools - Default,2 Start Limited,Transport related expenditure,17/11/2023,350,"Director of Culture, Leisure & Regulatory Services",
Facilities/Repair Supplies,Lawn/Garden Supply/Nursery,Carters Of Swanwic,Supplies and Services related expenditure,08/12/2023,349.93,"Director of Housing, Neighbourhood and Building Services",
Business To Business Facility/,Industrial Supplies - Def,Arco Limited,Supplies and Services related expenditure,10/11/2023,349.92,"Director of Housing, Neighbourhood and Building Services",
Other Supplies,Misc Speciality Retail,4imprint Direct Ltd,Supplies and Services related expenditure,08/11/2023,349.78,Director of Corporate Services,
Digital Goods,"Digital Goods - Media, Books, Movies, Music",Eplatform.Co Ebooks,Supplies and Services related expenditure,02/11/2023,349.61,"Director of Culture, Leisure & Regulatory Services",
Hotels And Motels,Hotel Ibis,Hotel Ibis,Supplies and Services related expenditure,13/12/2023,349.5,"Director of Housing, Neighbourhood and Building Services",
Professional Services,Commercial Photo/Art/Graph,Gettyimages.Com,Supplies and Services related expenditure,17/10/2023,349,Director of Portsmouth International Port,
Miscellaneous,Charitable/Soc Service Orgs,Www.Navsh.Org.Uk,Supplies and Services related expenditure,25/10/2023,349,Director of Children's Services and Education,
Miscellaneous,Charitable/Soc Service Orgs,Www.Navsh.Org.Uk,Supplies and Services related expenditure,25/10/2023,349,Director of Children's Services and Education,
Miscellaneous,Charitable/Soc Service Orgs,Www.Navsh.Org.Uk,Supplies and Services related expenditure,25/10/2023,349,Director of Children's Services and Education,
Miscellaneous,Charitable/Soc Service Orgs,Www.Navsh.Org.Uk,Supplies and Services related expenditure,25/10/2023,349,Director of Children's Services and Education,
Digital Goods,"Digital Goods - Media, Books, Movies, Music",Eplatform.Co Ebooks,Supplies and Services related expenditure,13/12/2023,348.89,"Director of Culture, Leisure & Regulatory Services",
Freight/Courier/Warehouse Svcs,Motor Freight Carriers,Safestore Ltd Online R,Premises related expenditure,28/11/2023,348.36,"Director of Housing, Neighbourhood and Building Services",
Digital Goods,"Digital Goods - Media, Books, Movies, Music",Eplatform.Co Ebooks,Supplies and Services related expenditure,16/10/2023,348.27,"Director of Culture, Leisure & Regulatory Services",
Business To Business Facility/,Industrial Supplies - Def,Lubetec UK Ltd,Premises related expenditure,12/12/2023,348.14,Director of Portsmouth International Port,
Transportation Conveyor,Travel Agencies,Bkg*hotel At Booking.C,Agency and Third Party Payments related expenditure,01/12/2023,-347.5,"Director of Housing, Neighbourhood and Building Services",
Hotels And Motels,Travelodge,Travelodge Gb0000,Agency and Third Party Payments related expenditure,04/12/2023,347.48,"Director of Housing, Neighbourhood and Building Services",
Government Service,Schools - Default,Www.Worksafe.Uk.Com,Supplies and Services related expenditure,16/11/2023,347,Director of Corporate Services,
Transportation Conveyor,Taxicabs/Limousines,Aqua Cars,Supplies and Services related expenditure,02/11/2023,346.9,"Director of Housing, Neighbourhood and Building Services",
Hotels And Motels,Travelodge,Travelodge Gb0000,Agency and Third Party Payments related expenditure,25/10/2023,346.5,"Director of Housing, Neighbourhood and Building Services",
Miscellaneous,Charitable/Soc Service Orgs,Www.Cpag.Org.Uk,Supplies and Services related expenditure,08/11/2023,346.5,Director of Finance & Resources,
Clothing/Uniform Services,Laundry/Cleaning/Garment Sv,Sumup *pompey Hand Car W,Supplies and Services related expenditure,06/10/2023,344,Director of Regeneration,
Hotels And Motels,Hotel Ibis,Hotel Ibis,Supplies and Services related expenditure,29/11/2023,343.5,"Director of Housing, Neighbourhood and Building Services",
Professional Services,Professional Services - Def,Thomson Reuters UK Ltd,Supplies and Services related expenditure,13/10/2023,343,Director of Corporate Services,
Professional Services,Professional Services - Def,Thomson Reuters UK Ltd,Supplies and Services related expenditure,08/12/2023,343,Director of Corporate Services,
Freight/Courier/Warehouse Svcs,Motor Freight Carriers,Safestore Ltd Online R,Premises related expenditure,30/10/2023,342.46,"Director of Housing, Neighbourhood and Building Services",
Other Supplies,Misc Speciality Retail,W&p / Medirite,Premises related expenditure,19/10/2023,342.4,"Director of Housing, Neighbourhood and Building Services",
Type of Retail Store,Grocery Stores/Supermarkets,Booker Ltd - 38536564,Supplies and Services related expenditure,05/12/2023,342.02,Director of Children's Services and Education,
Miscellaneous,Civic/Social/Fraternal Assc,White Ribbon Uk,Supplies and Services related expenditure,01/11/2023,342,Chief Exec,
Facilities/Repair Supplies,Misc Home Furnishing,Www.Therange.Co.Uk,Supplies and Services related expenditure,05/12/2023,341.8,Director of Children's Services and Education,
Digital Goods,"Digital Goods - Media, Books, Movies, Music",Westminster Insight,Supplies and Services related expenditure,12/10/2023,341.1,Director of Children's Services and Education,
Digital Goods,"Digital Goods - Media, Books, Movies, Music",Westminster Insight,Supplies and Services related expenditure,12/10/2023,341.1,Director of Children's Services and Education,
Type of Retail Store,Electronics Sales,Currys Online,Supplies and Services related expenditure,22/11/2023,340.83,Director of Children's Services and Education,
Transportation Conveyor,Travel Agencies,Bkg*hotel At Booking.C,Agency and Third Party Payments related expenditure,23/10/2023,-340,"Director of Housing, Neighbourhood and Building Services",
Freight/Courier/Warehouse Svcs,Motor Freight Carriers,Sumup *holley Removals L,Supplies and Services related expenditure,08/11/2023,340,Director of Children's Services and Education,
Type of Retail Store,Electronics Sales,Remarkable,Supplies and Services related expenditure,07/12/2023,340,Director of Children's Services and Education,
Business To Business Facility/,Industrial Supplies - Def,Www.Arco.Co.Uk,Supplies and Services related expenditure,07/11/2023,339.87,Director of Portsmouth International Port,
Business To Business Eqpt/Furn,Computer Software Stores,Sp Blank Badge,Supplies and Services related expenditure,15/12/2023,339.13,"Director of Housing, Neighbourhood and Building Services",
Hotels And Motels,Hotel Ibis,Hotel Ibis,Supplies and Services related expenditure,13/12/2023,339,"Director of Housing, Neighbourhood and Building Services",
Business To Business Eqpt/Furn,Stationery/Office Supplies,Www.Banneruk.Com,Supplies and Services related expenditure,27/10/2023,338.25,"Director of Culture, Leisure & Regulatory Services",
Hotels And Motels,Lodging/Hotels/Motels/Resorts,Farmhouse (Portsmouth),Agency and Third Party Payments related expenditure,24/11/2023,338.25,"Director of Housing, Neighbourhood and Building Services",
Hotels And Motels,Travelodge,Travelodge Gb0000,Supplies and Services related expenditure,02/11/2023,337.82,Director of Children's Services and Education,
Facilities Maintenance,Clean/Maint/Janitoral Serv,Bright & Beautiful Ports,Supplies and Services related expenditure,29/11/2023,337.5,Director of Children's Services and Education,
Business To Business Eqpt/Furn,Commercial Equipment - Default,Parts Town UK Limited,Premises related expenditure,06/12/2023,337.5,Director of Adult Care,
Miscellaneous,Member Organizations - Def,Institute Of Directors,Supplies and Services related expenditure,16/11/2023,336.75,Solent LEP,
Other Supplies,Misc Speciality Retail,Amznmktplace,Supplies and Services related expenditure,29/11/2023,335.97,Director of Children's Services and Education,
Business To Business Facility/,Electrical Parts/Equipment,Premier Farnell,Supplies and Services related expenditure,17/10/2023,335.12,Director of Regeneration,
Other Supplies,Misc Speciality Retail,W&p / Medirite,Premises related expenditure,06/11/2023,335.1,"Director of Housing, Neighbourhood and Building Services",
Type of Retail Store,Freezer/Meat Lockers,Dennis Edwards Food Serv,Supplies and Services related expenditure,28/11/2023,334.97,Director of Adult Care,
Freight/Courier/Warehouse Svcs,Public Warehousing,Big Yellow - Portsmout,Premises related expenditure,23/10/2023,334.67,"Director of Housing, Neighbourhood and Building Services",
Freight/Courier/Warehouse Svcs,Public Warehousing,Big Yellow - Portsmout,Premises related expenditure,20/11/2023,334.67,"Director of Housing, Neighbourhood and Building Services",
Freight/Courier/Warehouse Svcs,Public Warehousing,Big Yellow - Portsmout,Premises related expenditure,18/12/2023,334.67,"Director of Housing, Neighbourhood and Building Services",
Other Supplies,Misc Speciality Retail,W&p / Medirite,Premises related expenditure,11/12/2023,334.52,"Director of Housing, Neighbourhood and Building Services",
Government Service,Govt Serv - Default,Dvsa,Supplies and Services related expenditure,30/11/2023,334.17,Director of Regeneration,
Business To Business Facility/,Chemicals/Allied Prods - Def,Byotrol,Premises related expenditure,26/10/2023,334.13,"Director of Housing, Neighbourhood and Building Services",
Miscellaneous,Charitable/Soc Service Orgs,John Pounds Centre,Supplies and Services related expenditure,03/10/2023,334,Director of Public Health,
Transportation Conveyor,Bus Lines/Charter/Tour,H. Luckett And Co,Supplies and Services related expenditure,12/10/2023,333.33,"Director of Culture, Leisure & Regulatory Services",
Other Supplies,Misc Speciality Retail,Amznmktplace,Supplies and Services related expenditure,05/10/2023,333.3,Director of Adult Care,
Business To Business Facility/,Industrial Supplies - Def,Arco Limited,Supplies and Services related expenditure,26/10/2023,333.1,"Director of Housing, Neighbourhood and Building Services",
Hotels And Motels,Lodging/Hotels/Motels/Resorts,Hotel Melia Castilla,Supplies and Services related expenditure,14/11/2023,332.73,Director of Portsmouth International Port,
Government Service,Schools - Default,Pearson Education Ltd.,Supplies and Services related expenditure,05/10/2023,331.75,Director of Children's Services and Education,
Other Supplies,Camera & Photo Supply Store,Bristol Cameras Limited,Supplies and Services related expenditure,07/11/2023,331.67,Director of Children's Services and Education,
Hotels And Motels,Premier Travel Inns,Premier Inn,Agency and Third Party Payments related expenditure,05/12/2023,331.18,"Director of Housing, Neighbourhood and Building Services",
Digital Goods,"Digital Goods - Media, Books, Movies, Music",British Pathe,Supplies and Services related expenditure,17/10/2023,330,Director of Portsmouth International Port,
Equipment And Furniture,Household Appliance Stores,J & M Flooring,Premises related expenditure,09/11/2023,330,Director of Children's Services and Education,
Hotels And Motels,Travelodge,Travelodge Gb0000,Agency and Third Party Payments related expenditure,28/12/2023,330,"Director of Housing, Neighbourhood and Building Services",
Hotels And Motels,Premier Travel Inns,Premier Inn,Supplies and Services related expenditure,05/10/2023,329.96,Director of Adult Care,
Type of Retail Store,Pet Stores/Food & Supply,Sp Flyte So Fancy,Capital related expenditure,03/10/2023,329.17,"Capital - Culture, Leisure & Economic Development",
Miscellaneous,Charitable/Soc Service Orgs,British Heart Foundati,Supplies and Services related expenditure,03/11/2023,329.17,Director of Children's Services and Education,
Transportation Conveyor,Taxicabs/Limousines,Aqua Cars,Transport related expenditure,21/12/2023,328.9,Director of Portsmouth International Port,
Facilities/Repair Supplies,Lawn/Garden Supply/Nursery,Carters Of Swanwic,Supplies and Services related expenditure,16/10/2023,328.5,"Director of Housing, Neighbourhood and Building Services",
Business To Business Facility/,Industrial Supplies - Def,Arco Ltd,Premises related expenditure,11/12/2023,326.56,"Director of Culture, Leisure & Regulatory Services",
Other Supplies,Misc Speciality Retail,W&p / Medirite,Premises related expenditure,28/11/2023,326.21,"Director of Housing, Neighbourhood and Building Services",
Transportation Conveyor,Local Commuter Transport,Hovertravel Ltd- Ecomm,Agency and Third Party Payments related expenditure,08/12/2023,325.5,Director of Children's Services and Education,
Hotels And Motels,Hotel Ibis,Hotel Ibis,Supplies and Services related expenditure,08/12/2023,325.5,"Director of Housing, Neighbourhood and Building Services",
Miscellaneous,Member Organizations - Def,Govnet Events,Employees related expenditure,09/11/2023,325,Director of Regeneration,
Amusement/Entertainment,Theatrical Producers,Www.Portsmouthiceskati,Supplies and Services related expenditure,13/11/2023,325,"Director of Housing, Neighbourhood and Building Services",
Business Services,Business Services - Default,Nurtureuk,Supplies and Services related expenditure,20/11/2023,325,Director of Children's Services and Education,
Miscellaneous,Member Organizations - Def,Energy Managers Assoc,Employees related expenditure,28/11/2023,325,"Director of Housing, Neighbourhood and Building Services",
Government Service,Schools - Default,Www.2start-Training.Co,Employees related expenditure,22/12/2023,325,"Director of Housing, Neighbourhood and Building Services",
Hotels And Motels,Hotel Ibis,Hotel Ibis,Supplies and Services related expenditure,29/11/2023,324.75,"Director of Housing, Neighbourhood and Building Services",
Transportation Conveyor,Travel Agencies,Bkg*hotel At Booking.C,Supplies and Services related expenditure,31/10/2023,324.58,"Director of Housing, Neighbourhood and Building Services",
Hotels And Motels,Travelodge,Travelodge Gb0000,Agency and Third Party Payments related expenditure,04/12/2023,-324.36,"Director of Housing, Neighbourhood and Building Services",
Business To Business Other Sup,Non-Durable Goods - Default,Selles Medical Ltd,Supplies and Services related expenditure,12/10/2023,324.2,Director of Children's Services and Education,
Business Services,Business Services - Default,Text Anywhere,Supplies and Services related expenditure,01/11/2023,323.5,Director of Children's Services and Education,
Business Services,Business Services - Default,Text Anywhere,Supplies and Services related expenditure,12/12/2023,323.5,Director of Children's Services and Education,
Transportation Conveyor,Travel Agencies,Bkg*hotel At Booking.C,Supplies and Services related expenditure,30/11/2023,323,"Director of Housing, Neighbourhood and Building Services",
Miscellaneous,Charitable/Soc Service Orgs,Sumup *lily And Lime - M,Agency and Third Party Payments related expenditure,13/12/2023,322.92,"Director of Culture, Leisure & Regulatory Services",
Amusement/Entertainment,Theatrical Producers,The Groundlings Theatre T,Supplies and Services related expenditure,28/11/2023,322,"Director of Housing, Neighbourhood and Building Services",
Utility,Utilities/Elec/Gas/H2O/Sani,Castle Water,Supplies and Services related expenditure,06/12/2023,321.21,Director of Children's Services and Education,
Other Supplies,Misc Speciality Retail,W&p / Medirite,Premises related expenditure,30/10/2023,321.06,"Director of Housing, Neighbourhood and Building Services",
Equipment And Furniture,Furniture/Equip Stores,Ikea Ltd Shop Online,Supplies and Services related expenditure,17/11/2023,320.83,Director of Children's Services and Education,
Business To Business Facility/,Industrial Supplies - Def,Arco Ltd,Supplies and Services related expenditure,15/11/2023,320.64,"Director of Housing, Neighbourhood and Building Services",
Type of Retail Store,Freezer/Meat Lockers,Dennis Edwards Food Serv,Supplies and Services related expenditure,02/10/2023,320.13,Director of Adult Care,
Government Service,Tax Payments,Dvla Vehicle Tax,Transport related expenditure,09/10/2023,320,"Director of Housing, Neighbourhood and Building Services",
Government Service,Tax Payments,Dvla Vehicle Tax,Transport related expenditure,12/10/2023,320,"Director of Housing, Neighbourhood and Building Services",
Government Service,Tax Payments,Dvla Vehicle Tax,Transport related expenditure,12/10/2023,320,"Director of Housing, Neighbourhood and Building Services",
Government Service,Schools - Default,Platform Limited,Supplies and Services related expenditure,14/11/2023,320,Director of Corporate Services,
Government Service,Schools - Default,Ruth Miskin Training,Supplies and Services related expenditure,06/12/2023,320,Director of Children's Services and Education,
Type of Retail Store,Misc Food Stores - Default,Sq *the Pastry Corner,Supplies and Services related expenditure,28/12/2023,320,Director of Corporate Services,
Business Expenses/Services,Books/Periodicals/Newspapers,Pirongs Limited,Supplies and Services related expenditure,01/12/2023,319.75,Director of Children's Services and Education,
Other Supplies,Misc Speciality Retail,W&p / Medirite,Premises related expenditure,04/12/2023,319.64,"Director of Housing, Neighbourhood and Building Services",
Type of Retail Store,Electronics Sales,Currys Online,Supplies and Services related expenditure,15/11/2023,319,Director of Adult Care,
Type of Retail Store,Music Stores/Pianos,Andertons Music,Supplies and Services related expenditure,20/12/2023,319,"Director of Housing, Neighbourhood and Building Services",
Other Supplies,Misc Speciality Retail,W&p / Medirite,Supplies and Services related expenditure,23/11/2023,318.25,"Director of Housing, Neighbourhood and Building Services",
Clothing Services,Mens/Womens Clothing Stores,Tshirt Studio,Supplies and Services related expenditure,04/12/2023,317.25,Director of Children's Services and Education,
Business To Business Eqpt/Furn,Commercial Equipment - Default,Lockertek Ltd,Supplies and Services related expenditure,24/11/2023,317.19,Director of Regeneration,
Professional Services,Architectural/Eng/Survey,M L Fixings,Premises related expenditure,15/11/2023,315.94,Director of Portsmouth International Port,
Auto/Vehicle Expenses,Auto Paint Shops,Express Paints Ltd,Supplies and Services related expenditure,04/12/2023,314,Director of Regeneration,
Facilities/Repair Supplies,Lawn/Garden Supply/Nursery,M & S Enterprises,Supplies and Services related expenditure,27/11/2023,313.65,"Director of Housing, Neighbourhood and Building Services",
Facilities/Repair Supplies,Lawn/Garden Supply/Nursery,Carters Of Swanwic,Supplies and Services related expenditure,19/12/2023,313.6,"Director of Housing, Neighbourhood and Building Services",
Other Supplies,Misc Speciality Retail,W&p / Medirite,Supplies and Services related expenditure,06/11/2023,312.9,"Director of Housing, Neighbourhood and Building Services",
Business To Business Eqpt/Furn,Book Stores,Www.Jctltd.Co.Uk,Supplies and Services related expenditure,04/10/2023,312.33,"Director of Housing, Neighbourhood and Building Services",
Business To Business Services,Misc Publishing & Printing,Www.Upsondowns.Co.Uk,Supplies and Services related expenditure,04/10/2023,312,Director of Children's Services and Education,
Facilities/Repair Supplies,Lawn/Garden Supply/Nursery,Www.Tudorenvironmental,Supplies and Services related expenditure,03/11/2023,311.7,"Director of Culture, Leisure & Regulatory Services",
Business Services,Business Services - Default,Furneaux Riddall & Co,Premises related expenditure,12/10/2023,311.22,Director of Portsmouth International Port,
Other Supplies,Misc Speciality Retail,Dennis Edwards For Foo,Supplies and Services related expenditure,22/11/2023,311.02,Director of Adult Care,
Hotels And Motels,Premier Travel Inns,Premier Inn,Agency and Third Party Payments related expenditure,31/10/2023,-310.37,"Director of Housing, Neighbourhood and Building Services",
Medical,Med/Health Services - Def,Intermedical Uk,Supplies and Services related expenditure,06/12/2023,310,Director of Public Health,
Other Supplies,Misc Gen Merchandise - Def,B&m Retail Ltd,Supplies and Services related expenditure,16/11/2023,309.34,Director of Children's Services and Education,
Equipment And Furniture,Furniture/Equip Stores,Www.Venesta.Co.Uk,Premises related expenditure,09/10/2023,308.6,Director of Children's Services and Education,
Hotels And Motels,Travelodge,Travelodge Gb0000,Agency and Third Party Payments related expenditure,26/10/2023,308,"Director of Housing, Neighbourhood and Building Services",
Hotels And Motels,Travelodge,Travelodge Gb0000,Agency and Third Party Payments related expenditure,30/11/2023,308,"Director of Housing, Neighbourhood and Building Services",
Hotels And Motels,Travelodge,Travelodge Gb0000,Agency and Third Party Payments related expenditure,04/12/2023,308,"Director of Housing, Neighbourhood and Building Services",
Business Expenses/Services,Florists,Boston Bulbs Wholesale,Supplies and Services related expenditure,05/10/2023,307.87,"Director of Housing, Neighbourhood and Building Services",
Hotels And Motels,Travelodge,Travelodge Gb0000,Agency and Third Party Payments related expenditure,13/12/2023,307.1,"Director of Housing, Neighbourhood and Building Services",
Other Supplies,Misc Speciality Retail,4imprint Direct Ltd,Supplies and Services related expenditure,17/10/2023,306.09,Director of Corporate Services,
Business To Business Facility/,Industrial Supplies - Def,Eriks Ind Services,Premises related expenditure,08/11/2023,306,Director of Portsmouth International Port,
Other Supplies,Department Stores,Www.Argos.Co.Uk,Supplies and Services related expenditure,07/12/2023,305.94,Director of Children's Services and Education,
Business Services,Business Services - Default,Www.Tj-Waste.Co.Uk,Premises related expenditure,23/11/2023,305.55,Director of Adult Care,
Freight/Courier/Warehouse Svcs,Public Warehousing,Access Portsmouth,Premises related expenditure,31/10/2023,305,"Director of Housing, Neighbourhood and Building Services",
Utility,Utilities/Elec/Gas/H2O/Sani,Business Stream,Premises related expenditure,02/11/2023,304.89,Director of Portsmouth International Port,
Miscellaneous,Charitable/Soc Service Orgs,Justgiving Savethechildre,Supplies and Services related expenditure,13/12/2023,304.73,Director of Children's Services and Education,
Other Supplies,Misc Speciality Retail,W&p / Medirite,Premises related expenditure,29/11/2023,304.7,"Director of Housing, Neighbourhood and Building Services",
Equipment And Furniture,Household Appliance Stores,Ao Retail Limited,Supplies and Services related expenditure,12/12/2023,304,Director of Children's Services and Education,
Miscellaneous,Continuity/Subscription Mercht,Real Response Media Limit,Supplies and Services related expenditure,04/10/2023,303.75,Director of Portsmouth International Port,
Utility,Utilities/Elec/Gas/H2O/Sani,Https://Customerhu,Premises related expenditure,07/11/2023,302.9,Director of Children's Services and Education,
Type of Retail Store,Freezer/Meat Lockers,Dennis Edwards Food Serv,Supplies and Services related expenditure,14/11/2023,302.58,Director of Adult Care,
Business To Business Facility/,Industrial Supplies - Def,Pirtek Portsmouth,Transport related expenditure,18/10/2023,302.15,"Director of Culture, Leisure & Regulatory Services",
Freight/Courier/Warehouse Svcs,Motor Freight Carriers,Safestore Ltd Online R,Premises related expenditure,29/11/2023,301.83,"Director of Housing, Neighbourhood and Building Services",
Freight/Courier/Warehouse Svcs,Motor Freight Carriers,Safestore Ltd Online R,Premises related expenditure,27/12/2023,301.83,"Director of Housing, Neighbourhood and Building Services",
Other Supplies,Misc Speciality Retail,W&p / Medirite,Premises related expenditure,05/12/2023,301.1,"Director of Housing, Neighbourhood and Building Services",
Business To Business Facility/,Hardware Equipment/Supplies,Sitebox Limited,Supplies and Services related expenditure,06/11/2023,300.31,"Director of Culture, Leisure & Regulatory Services",
Government Service,Govt Serv - Default,Pcc Moto Payment,Supplies and Services related expenditure,13/11/2023,300.12,Director of Adult Care,
Transportation Conveyor,Passenger Railways,Trainline,Transport related expenditure,27/11/2023,300.1,Director of Regeneration,
Miscellaneous,Civic/Social/Fraternal Assc,Paypal,Premises related expenditure,02/10/2023,300,Director of Portsmouth International Port,
Miscellaneous,Charitable/Soc Service Orgs,The Salvation Army,Supplies and Services related expenditure,17/10/2023,300,Director of Adult Care,
Miscellaneous,Charitable/Soc Service Orgs,Social Work Awards,Agency and Third Party Payments related expenditure,27/10/2023,300,Director of Children's Services and Education,
Government Service,Schools - Default,Linguascope,Supplies and Services related expenditure,03/11/2023,300,Director of Children's Services and Education,
Government Service,Colleges/Univ/Jc/Profession,Https://Www.Estore.Wlv,Supplies and Services related expenditure,30/11/2023,-300,Director of Children's Services and Education,
Type of Retail Store,Grocery Stores/Supermarkets,Asda Stores Ltd,Supplies and Services related expenditure,20/12/2023,300,Director of Children's Services and Education,
Facilities/Repair Supplies,Misc Home Furnishing,Christmastrees.Co.Uk,Supplies and Services related expenditure,23/11/2023,299.99,Director of Children's Services and Education,
Other Supplies,Misc Speciality Retail,Amznmktplace,Supplies and Services related expenditure,06/12/2023,299.99,Director of Children's Services and Education,
Facilities Maintenance,Specialty Cleaning/Polishing,Cjs Portsmouth Limited,Premises related expenditure,25/10/2023,299,"Director of Housing, Neighbourhood and Building Services",
Transportation Conveyor,Passenger Railways,Trainline,Transport related expenditure,06/11/2023,298.5,Director of Regeneration,
Miscellaneous,Member Organizations - Def,Ppl Prs Ltd,Supplies and Services related expenditure,04/10/2023,297.93,"Director of Housing, Neighbourhood and Building Services",
Facilities/Repair Supplies,Lumber/Build. Supply Stores,B&q Marketplace,Premises related expenditure,22/11/2023,297.76,Director of Children's Services and Education,
Freight/Courier/Warehouse Svcs,Motor Freight Carriers,Safestore Ltd Online R,Premises related expenditure,04/12/2023,297.36,"Director of Housing, Neighbourhood and Building Services",
Freight/Courier/Warehouse Svcs,Motor Freight Carriers,Safestore Ltd Online R,Premises related expenditure,04/10/2023,297.12,"Director of Housing, Neighbourhood and Building Services",
Transportation Conveyor,Passenger Railways,Swrailway Tck Off,Transport related expenditure,25/10/2023,297,Director of Children's Services and Education,
Amusement/Entertainment,Theatrical Producers,Thorpe Park,Agency and Third Party Payments related expenditure,17/10/2023,296,Director of Children's Services and Education,
Type of Retail Store,Sports/Riding Apparel Store,Sportsdirect.Com,Premises related expenditure,11/12/2023,295.53,Director of Children's Services and Education,
Other Supplies,Misc Speciality Retail,W&p / Medirite,Premises related expenditure,07/12/2023,295.11,"Director of Housing, Neighbourhood and Building Services",
Facilities Maintenance,Specialty Cleaning/Polishing,Npl*new Pig Ltd,Supplies and Services related expenditure,10/11/2023,294.57,"Director of Culture, Leisure & Regulatory Services",
Freight/Courier/Warehouse Svcs,Motor Freight Carriers,Safestore Ltd Online R,Premises related expenditure,06/10/2023,292.64,"Director of Housing, Neighbourhood and Building Services",
Freight/Courier/Warehouse Svcs,Motor Freight Carriers,Safestore Ltd Online R,Premises related expenditure,06/11/2023,292.64,"Director of Housing, Neighbourhood and Building Services",
Other Supplies,Misc Speciality Retail,W&p / Medirite,Premises related expenditure,09/10/2023,292.62,"Director of Housing, Neighbourhood and Building Services",
Freight/Courier/Warehouse Svcs,Public Warehousing,Access Portsmouth,Premises related expenditure,29/12/2023,292.5,"Director of Housing, Neighbourhood and Building Services",
Business To Business Eqpt/Furn,Stationery/Office Supplies,Www.Banneruk.Com,Supplies and Services related expenditure,13/10/2023,292.2,Director of Children's Services and Education,
Type of Retail Store,Drug Stores & Pharmacies,Goldchem Pharmacy,Supplies and Services related expenditure,31/10/2023,292,Director of Children's Services and Education,
Transportation Conveyor,Travel Agencies,Airbnb * Hmtrdkypkp,Supplies and Services related expenditure,19/12/2023,292,Director of Children's Services and Education,
Other Supplies,Department Stores,John Lewis,Supplies and Services related expenditure,12/12/2023,291.73,Director of Children's Services and Education,
Facilities/Repair Supplies,Floor Covering Stores,Direct Carpet Centre,Supplies and Services related expenditure,13/12/2023,291.67,Director of Children's Services and Education,
Transportation Conveyor,Passenger Railways,Trainline,Supplies and Services related expenditure,05/10/2023,291.59,Director of Children's Services and Education,
Other Supplies,Misc Speciality Retail,W&p / Medirite,Premises related expenditure,09/10/2023,291.58,"Director of Housing, Neighbourhood and Building Services",
Transportation Conveyor,Travel Agencies,Bkg*hotel At Booking.C,Agency and Third Party Payments related expenditure,13/10/2023,290.39,"Director of Housing, Neighbourhood and Building Services",
Other Supplies,Misc Speciality Retail,Dennis Edwards For Foo,Supplies and Services related expenditure,30/10/2023,290.24,Director of Adult Care,
Type of Retail Store,Grocery Stores/Supermarkets,Asda Groceries Online,Supplies and Services related expenditure,30/11/2023,290.19,Director of Adult Care,
Business To Business Facility/,Hardware Equipment/Supplies,Radmore And Tucker Ltd,Supplies and Services related expenditure,05/10/2023,289.98,"Director of Housing, Neighbourhood and Building Services",
Hotels And Motels,Lodging/Hotels/Motels/Resorts,Www.Butlins.Com,Supplies and Services related expenditure,06/12/2023,289.35,Director of Adult Care,
Type of Retail Store,Grocery Stores/Supermarkets,Asda Groceries Online,Supplies and Services related expenditure,29/10/2023,288.97,Director of Adult Care,
Business To Business Eqpt/Furn,Stationery/Office Supplies,Cartridge Save,Supplies and Services related expenditure,30/10/2023,288.54,"Director of Culture, Leisure & Regulatory Services",
Business To Business Other Sup,Uniforms & Commercial Clothing,Alexandra Website,Supplies and Services related expenditure,22/11/2023,288.35,"Director of Housing, Neighbourhood and Building Services",
Hotels And Motels,Lodging/Hotels/Motels/Resorts,Farmhouse (Portsmouth),Agency and Third Party Payments related expenditure,10/11/2023,288.22,"Director of Housing, Neighbourhood and Building Services",
Business To Business Eqpt/Furn,Stationery/Office Supplies,Www.Banneruk.Com,Supplies and Services related expenditure,17/10/2023,288,Director of Corporate Services,
Freight/Courier/Warehouse Svcs,Public Warehousing,Big Yellow - Portsmout,Premises related expenditure,02/10/2023,285.33,"Director of Housing, Neighbourhood and Building Services",
